Organisation Code,Organisation Label,Effective Date,Organisational Unit,Service Division Label,Category Internal Name,Purpose,Detailed Expenditure Code,Payment Date,Transaction Number,Irrecoverable VAT Amount,Amount,Capital Or Revenue,Beneficiary Name,Procurement Card
Http://opendatacommunities.org/id/metropolitan-district-council/leeds,Leeds City Council,30/04/2023,Adults and Health,Services For Older People Under 65 P/Dis,Agency Payments,Sheltered Accommodation,569,26/04/2023,2304-00001,0.00,5400.00,R,A & V TRANSITIONAL HOMES,No
Http://opendatacommunities.org/id/metropolitan-district-council/leeds,Leeds City Council,30/04/2023,Strategic Landlord,HRA Housing Leeds,Capital,OTHER COSTS,7,21/04/2023,2304-00002,0.00,80.00,C,REDACTED PERSONAL DATA,No
Http://opendatacommunities.org/id/metropolitan-district-council/leeds,Leeds City Council,30/04/2023,Strategic Landlord,HRA Housing Leeds,Capital,OTHER COSTS,7,27/04/2023,2304-00003,0.00,94.17,C,REDACTED PERSONAL DATA,No
Http://opendatacommunities.org/id/metropolitan-district-council/leeds,Leeds City Council,30/04/2023,Children and Families,Social Care ,Agency Payments,Placement Support,550,06/03/2023,2304-00004,0.00,225.83,R,A Brunton Ltd,Yes
Http://opendatacommunities.org/id/metropolitan-district-council/leeds,Leeds City Council,30/04/2023,Resources,Leeds Building Services,Supplies and Services,Other Hired And Contracted Services,265,06/04/2023,2304-00005,0.00,26376.00,R,A Buckler (Haulage) Ltd,No
Http://opendatacommunities.org/id/metropolitan-district-council/leeds,Leeds City Council,30/04/2023,Children and Families,Social Care,Agency Payments,Section 17,551,14/04/2023,2304-00006,0.00,250.00,R,REDACTED PERSONAL DATA,No
Http://opendatacommunities.org/id/metropolitan-district-council/leeds,Leeds City Council,30/04/2023,Communities Housing and Environment,Benefits Wlefare and Poverty,Supplies and Services,Grant Related Expenditure,290,18/04/2023,2304-00007,0.00,650.00,R,REDACTED PERSONAL DATA,No
Http://opendatacommunities.org/id/metropolitan-district-council/leeds,Leeds City Council,30/04/2023,Strategic Landlord,HRA Housing Leeds,Capital,CONSTRUCTION,3,27/04/2023,2304-00008,0.00,201262.10,C,A Connolly Limited,No
Http://opendatacommunities.org/id/metropolitan-district-council/leeds,Leeds City Council,30/04/2023,Resources,Leeds Building Services,Supplies and Services,Other Hired And Contracted Services,265,06/04/2023,2304-00009,0.00,27237.85,R,A Coole Electrical Ltd,No
Http://opendatacommunities.org/id/metropolitan-district-council/leeds,Leeds City Council,30/04/2023,Resources,Leeds Building Services,Supplies and Services,Other Hired And Contracted Services,265,12/04/2023,2304-00010,0.00,21469.06,R,A Coole Electrical Ltd,No
Http://opendatacommunities.org/id/metropolitan-district-council/leeds,Leeds City Council,30/04/2023,Resources,Leeds Building Services,Supplies and Services,Other Hired And Contracted Services,265,14/04/2023,2304-00011,0.00,6544.11,R,A Coole Electrical Ltd,No
Http://opendatacommunities.org/id/metropolitan-district-council/leeds,Leeds City Council,30/04/2023,Resources,Leeds Building Services,Supplies and Services,Other Hired And Contracted Services,265,18/04/2023,2304-00012,0.00,3730.91,R,A Coole Electrical Ltd,No
Http://opendatacommunities.org/id/metropolitan-district-council/leeds,Leeds City Council,30/04/2023,Communities Housing and Environment,Customer Access,Supplies and Services,Bought In Professional Services,277,05/04/2023,2304-00013,0.00,20.10,R,REDACTED COMMERCIAL CONFIDENTIALITY,No
Http://opendatacommunities.org/id/metropolitan-district-council/leeds,Leeds City Council,30/04/2023,Communities Housing and Environment,Customer Access,Supplies and Services,Bought In Professional Services,277,14/04/2023,2304-00014,0.00,18.00,R,REDACTED COMMERCIAL CONFIDENTIALITY,No
Http://opendatacommunities.org/id/metropolitan-district-council/leeds,Leeds City Council,30/04/2023,Communities Housing and Environment,Customer Access,Supplies and Services,Bought In Professional Services,277,26/04/2023,2304-00015,0.00,18.00,R,REDACTED COMMERCIAL CONFIDENTIALITY,No
Http://opendatacommunities.org/id/metropolitan-district-council/leeds,Leeds City Council,30/04/2023,Strategic Landlord,HRA Housing Leeds,Capital,OTHER COSTS,7,20/04/2023,2304-00016,0.00,80.00,C,REDACTED PERSONAL DATA,No
Http://opendatacommunities.org/id/metropolitan-district-council/leeds,Leeds City Council,30/04/2023,Strategic Landlord,HRA Housing Leeds,Capital,OTHER COSTS,7,20/04/2023,2304-00017,0.00,80.00,C,REDACTED PERSONAL DATA,No
Http://opendatacommunities.org/id/metropolitan-district-council/leeds,Leeds City Council,30/04/2023,Adults and Health,Services For Older People - 65 And Over,Supplies and Services,Bought In Professional Services,277,14/04/2023,2304-00018,0.00,1250.00,R,A E Spector,No
Http://opendatacommunities.org/id/metropolitan-district-council/leeds,Leeds City Council,30/04/2023,Children and Families,Social Care,Agency Payments,Services Rendered By Voluntary Sector,505,05/04/2023,2304-00019,0.00,1144.65,R,REDACTED PERSONAL DATA,No
Http://opendatacommunities.org/id/metropolitan-district-council/leeds,Leeds City Council,30/04/2023,Children and Families,Social Care,Agency Payments,Services Rendered By Voluntary Sector,505,06/04/2023,2304-00020,0.00,9390.38,R,REDACTED PERSONAL DATA,No
Http://opendatacommunities.org/id/metropolitan-district-council/leeds,Leeds City Council,30/04/2023,Children and Families,Social Care,Agency Payments,Services Rendered By Voluntary Sector,505,21/04/2023,2304-00021,0.00,6960.00,R,REDACTED PERSONAL DATA,No
Http://opendatacommunities.org/id/metropolitan-district-council/leeds,Leeds City Council,30/04/2023,Strategic Landlord,HRA Housing Leeds,Capital,OTHER COSTS,7,06/04/2023,2304-00022,0.00,100.00,C,REDACTED PERSONAL DATA,No
Http://opendatacommunities.org/id/metropolitan-district-council/leeds,Leeds City Council,30/04/2023,City Development,Libraries Arts & Heritage,Supplies and Services,Bought In Professional Services,277,14/04/2023,2304-00023,0.00,100.00,R,A F Miller,No
Http://opendatacommunities.org/id/metropolitan-district-council/leeds,Leeds City Council,30/04/2023,Children and Families,Social Care,Agency Payments,Services Rendered By Other Organisations,511,05/04/2023,2304-00024,0.00,228.93,R,REDACTED PERSONAL DATA,No
Http://opendatacommunities.org/id/metropolitan-district-council/leeds,Leeds City Council,30/04/2023,Children and Families,Social Care,Agency Payments,Services Rendered By Other Organisations,511,06/04/2023,2304-00025,0.00,147.60,R,REDACTED PERSONAL DATA,No
Http://opendatacommunities.org/id/metropolitan-district-council/leeds,Leeds City Council,30/04/2023,Children and Families,Social Care,Agency Payments,Services Rendered By Other Organisations,511,06/04/2023,2304-00026,0.00,530.87,R,REDACTED PERSONAL DATA,No
Http://opendatacommunities.org/id/metropolitan-district-council/leeds,Leeds City Council,30/04/2023,Communities Housing and Environment,Benefits Wlefare and Poverty,Supplies and Services,Grant Related Expenditure,290,11/04/2023,2304-00027,0.00,650.00,R,REDACTED PERSONAL DATA,No
Http://opendatacommunities.org/id/metropolitan-district-council/leeds,Leeds City Council,30/04/2023,Strategic Landlord,HRA Housing Leeds,Capital,OTHER COSTS,7,11/04/2023,2304-00028,0.00,100.00,C,REDACTED PERSONAL DATA,No
Http://opendatacommunities.org/id/metropolitan-district-council/leeds,Leeds City Council,30/04/2023,Adults and Health,Other Generic Services,Agency Payments,Fees To Carers,563,11/04/2023,2304-00029,0.00,41.77,R,REDACTED PERSONAL DATA,No
Http://opendatacommunities.org/id/metropolitan-district-council/leeds,Leeds City Council,30/04/2023,Adults and Health,Other Generic Services,Agency Payments,Fees To Carers,563,11/04/2023,2304-00030,0.00,41.77,R,REDACTED PERSONAL DATA,No
Http://opendatacommunities.org/id/metropolitan-district-council/leeds,Leeds City Council,30/04/2023,Adults and Health,Other Generic Services,Agency Payments,Fees To Carers,563,17/04/2023,2304-00031,0.00,489.60,R,REDACTED PERSONAL DATA,No
Http://opendatacommunities.org/id/metropolitan-district-council/leeds,Leeds City Council,30/04/2023,Adults and Health,Other Generic Services,Agency Payments,Fees To Carers,563,17/04/2023,2304-00032,0.00,56.70,R,REDACTED PERSONAL DATA,No
Http://opendatacommunities.org/id/metropolitan-district-council/leeds,Leeds City Council,30/04/2023,Adults and Health,Other Generic Services,Agency Payments,Fees To Carers,563,28/04/2023,2304-00033,0.00,46.91,R,REDACTED PERSONAL DATA,No
Http://opendatacommunities.org/id/metropolitan-district-council/leeds,Leeds City Council,30/04/2023,Strategic Landlord,HRA Housing Leeds,Capital,OTHER COSTS,7,27/04/2023,2304-00034,0.00,100.00,C,REDACTED PERSONAL DATA,No
Http://opendatacommunities.org/id/metropolitan-district-council/leeds,Leeds City Council,30/04/2023,Resources,Leeds Building Services,Supplies and Services,Operational Materials,205,21/04/2023,2304-00035,0.00,1085.00,R,A J H  Pump Supply & Repair Ltd,No
Http://opendatacommunities.org/id/metropolitan-district-council/leeds,Leeds City Council,30/04/2023,Strategic Landlord,HRA Housing Leeds,Capital,OTHER COSTS,7,25/04/2023,2304-00036,0.00,100.00,C,REDACTED PERSONAL DATA,No
Http://opendatacommunities.org/id/metropolitan-district-council/leeds,Leeds City Council,30/04/2023,Children and Families,Social Care,Agency Payments,Services Rendered By Other Organisations,511,06/04/2023,2304-00037,0.00,1151.28,R,REDACTED PERSONAL DATA,No
Http://opendatacommunities.org/id/metropolitan-district-council/leeds,Leeds City Council,30/04/2023,Strategic Landlord,HRA Housing Leeds,Capital,OTHER COSTS,7,20/04/2023,2304-00038,0.00,100.00,C,REDACTED PERSONAL DATA,No
Http://opendatacommunities.org/id/metropolitan-district-council/leeds,Leeds City Council,30/04/2023,Strategic Landlord,HRA Housing Leeds,Capital,OTHER COSTS,7,14/04/2023,2304-00039,0.00,100.00,C,REDACTED PERSONAL DATA,No
Http://opendatacommunities.org/id/metropolitan-district-council/leeds,Leeds City Council,30/04/2023,Communities Housing and Environment,Customer Access,Supplies and Services,Bought In Professional Services,277,20/04/2023,2304-00040,0.00,18.00,R,A MUSALAM,No
Http://opendatacommunities.org/id/metropolitan-district-council/leeds,Leeds City Council,30/04/2023,Children and Families,Social Care,Agency Payments,Services Rendered By Other Organisations,511,05/04/2023,2304-00041,0.00,686.79,R,REDACTED PERSONAL DATA,No
Http://opendatacommunities.org/id/metropolitan-district-council/leeds,Leeds City Council,30/04/2023,Children and Families,Social Care,Agency Payments,Services Rendered By Other Organisations,511,05/04/2023,2304-00042,0.00,1535.04,R,REDACTED PERSONAL DATA,No
Http://opendatacommunities.org/id/metropolitan-district-council/leeds,Leeds City Council,30/04/2023,Children and Families,Social Care,Agency Payments,Services Rendered By Voluntary Sector,505,20/04/2023,2304-00043,0.00,2900.00,R,REDACTED PERSONAL DATA,No
Http://opendatacommunities.org/id/metropolitan-district-council/leeds,Leeds City Council,30/04/2023,Communities Housing and Environment,Customer Access,Supplies and Services,Bought In Professional Services,277,05/04/2023,2304-00044,0.00,18.00,R,A NAMAKI,No
Http://opendatacommunities.org/id/metropolitan-district-council/leeds,Leeds City Council,30/04/2023,Communities Housing and Environment,Customer Access,Supplies and Services,Bought In Professional Services,277,05/04/2023,2304-00045,0.00,9.00,R,A NAMAKI,No
Http://opendatacommunities.org/id/metropolitan-district-council/leeds,Leeds City Council,30/04/2023,Communities Housing and Environment,Customer Access,Supplies and Services,Bought In Professional Services,277,05/04/2023,2304-00046,0.00,103.50,R,A NAMAKI,No
Http://opendatacommunities.org/id/metropolitan-district-council/leeds,Leeds City Council,30/04/2023,Communities Housing and Environment,Customer Access,Supplies and Services,Bought In Professional Services,277,05/04/2023,2304-00047,0.00,18.00,R,A NAMAKI,No
Http://opendatacommunities.org/id/metropolitan-district-council/leeds,Leeds City Council,30/04/2023,Communities Housing and Environment,Customer Access,Supplies and Services,Bought In Professional Services,277,05/04/2023,2304-00048,0.00,18.00,R,A NAMAKI,No
Http://opendatacommunities.org/id/metropolitan-district-council/leeds,Leeds City Council,30/04/2023,Communities Housing and Environment,Customer Access,Supplies and Services,Bought In Professional Services,277,14/04/2023,2304-00049,0.00,108.00,R,A NAMAKI,No
Http://opendatacommunities.org/id/metropolitan-district-council/leeds,Leeds City Council,30/04/2023,Communities Housing and Environment,Customer Access,Supplies and Services,Bought In Professional Services,277,14/04/2023,2304-00050,0.00,103.50,R,A NAMAKI,No
Http://opendatacommunities.org/id/metropolitan-district-council/leeds,Leeds City Council,30/04/2023,Communities Housing and Environment,Customer Access,Supplies and Services,Bought In Professional Services,277,14/04/2023,2304-00051,0.00,36.00,R,A NAMAKI,No
Http://opendatacommunities.org/id/metropolitan-district-council/leeds,Leeds City Council,30/04/2023,Communities Housing and Environment,Customer Access,Supplies and Services,Bought In Professional Services,277,14/04/2023,2304-00052,0.00,103.50,R,A NAMAKI,No
Http://opendatacommunities.org/id/metropolitan-district-council/leeds,Leeds City Council,30/04/2023,Communities Housing and Environment,Customer Access,Supplies and Services,Bought In Professional Services,277,14/04/2023,2304-00053,0.00,103.50,R,A NAMAKI,No
Http://opendatacommunities.org/id/metropolitan-district-council/leeds,Leeds City Council,30/04/2023,Communities Housing and Environment,Customer Access,Supplies and Services,Bought In Professional Services,277,14/04/2023,2304-00054,0.00,36.00,R,A NAMAKI,No
Http://opendatacommunities.org/id/metropolitan-district-council/leeds,Leeds City Council,30/04/2023,Communities Housing and Environment,Customer Access,Supplies and Services,Bought In Professional Services,277,19/04/2023,2304-00055,0.00,108.00,R,A NAMAKI,No
Http://opendatacommunities.org/id/metropolitan-district-council/leeds,Leeds City Council,30/04/2023,Communities Housing and Environment,Customer Access,Supplies and Services,Bought In Professional Services,277,19/04/2023,2304-00056,0.00,121.50,R,A NAMAKI,No
Http://opendatacommunities.org/id/metropolitan-district-council/leeds,Leeds City Council,30/04/2023,Communities Housing and Environment,Customer Access,Supplies and Services,Bought In Professional Services,277,26/04/2023,2304-00057,0.00,103.50,R,A NAMAKI,No
Http://opendatacommunities.org/id/metropolitan-district-council/leeds,Leeds City Council,30/04/2023,Communities Housing and Environment,Customer Access,Supplies and Services,Bought In Professional Services,277,26/04/2023,2304-00058,0.00,22.50,R,A NAMAKI,No
Http://opendatacommunities.org/id/metropolitan-district-council/leeds,Leeds City Council,30/04/2023,Children and Families,Social Care,Agency Payments,Services Rendered By Other Organisations,511,06/04/2023,2304-00059,0.00,383.76,R,REDACTED PERSONAL DATA,No
Http://opendatacommunities.org/id/metropolitan-district-council/leeds,Leeds City Council,30/04/2023,Communities Housing and Environment,Parks and Countryside,Supplies and Services,Resaleable Materials,204,28/04/2023,2304-00060,0.00,1805.00,R,A NEWTON,No
Http://opendatacommunities.org/id/metropolitan-district-council/leeds,Leeds City Council,30/04/2023,Children and Families,Social Care,Agency Payments,Section 17,551,27/04/2023,2304-00061,0.00,39.60,R,REDACTED PERSONAL DATA,No
Http://opendatacommunities.org/id/metropolitan-district-council/leeds,Leeds City Council,30/04/2023,Strategic Landlord,HRA Housing Leeds,Capital,OTHER COSTS,7,27/04/2023,2304-00062,0.00,100.00,C,REDACTED PERSONAL DATA,No
Http://opendatacommunities.org/id/metropolitan-district-council/leeds,Leeds City Council,30/04/2023,Strategic Landlord,HRA Housing Leeds,Capital,OTHER COSTS,7,19/04/2023,2304-00063,0.00,100.00,C,REDACTED PERSONAL DATA,No
Http://opendatacommunities.org/id/metropolitan-district-council/leeds,Leeds City Council,30/04/2023,Communities Housing and Environment,Benefits Wlefare and Poverty,Supplies and Services,Grant Related Expenditure,290,28/04/2023,2304-00064,0.00,650.00,R,REDACTED PERSONAL DATA,No
Http://opendatacommunities.org/id/metropolitan-district-council/leeds,Leeds City Council,30/04/2023,Children and Families,Social Care,Agency Payments,Services Rendered By Other Organisations,511,05/04/2023,2304-00065,0.00,457.86,R,REDACTED PERSONAL DATA,No
Http://opendatacommunities.org/id/metropolitan-district-council/leeds,Leeds City Council,30/04/2023,Communities Housing and Environment,Waste Management,Employees,Training & Development,70,13/04/2023,2304-00066,0.00,250.00,R,A T Nerac Ltd,No
Http://opendatacommunities.org/id/metropolitan-district-council/leeds,Leeds City Council,30/04/2023,Communities Housing and Environment,Waste Management,Employees,Training & Development,70,13/04/2023,2304-00067,0.00,179.80,R,A T Nerac Ltd,No
Http://opendatacommunities.org/id/metropolitan-district-council/leeds,Leeds City Council,30/04/2023,Communities Housing and Environment,Waste Management,Employees,Training & Development,70,21/04/2023,2304-00068,0.00,505.30,R,A T Nerac Ltd,No
Http://opendatacommunities.org/id/metropolitan-district-council/leeds,Leeds City Council,30/04/2023,Children and Families,Social Care,Agency Payments,Services Rendered By Other Organisations,511,05/04/2023,2304-00069,0.00,228.93,R,REDACTED PERSONAL DATA,No
Http://opendatacommunities.org/id/metropolitan-district-council/leeds,Leeds City Council,30/04/2023,Strategic Landlord,HRA Housing Leeds,Capital,OTHER COSTS,7,25/04/2023,2304-00070,0.00,80.00,C,REDACTED PERSONAL DATA,No
Http://opendatacommunities.org/id/metropolitan-district-council/leeds,Leeds City Council,30/04/2023,Communities Housing and Environment,Climate Energy & Greenspaces ,Supplies and Services,Office Consumables,210,04/03/2023,2304-00071,0.00,1.33,R,A.T.A.C S.P.A.,Yes
Http://opendatacommunities.org/id/metropolitan-district-council/leeds,Leeds City Council,30/04/2023,Resources,Leeds Building Services,Supplies and Services,Operational Materials,205,20/04/2023,2304-00072,0.00,22.00,R,A1 STAIR LIFT SERVICES,No
Http://opendatacommunities.org/id/metropolitan-district-council/leeds,Leeds City Council,30/04/2023,Resources,Leeds Building Services,Supplies and Services,Operational Materials,205,26/04/2023,2304-00073,0.00,218.00,R,A1 STAIR LIFT SERVICES,No
Http://opendatacommunities.org/id/metropolitan-district-council/leeds,Leeds City Council,30/04/2023,Communities Housing and Environment,Parks and Countryside ,Transport,External Hire -Occasional,304,01/03/2023,2304-00074,0.00,280.00,R,A1mobile.Co.Uk,Yes
Http://opendatacommunities.org/id/metropolitan-district-council/leeds,Leeds City Council,30/04/2023,Communities Housing and Environment,Parks and Countryside ,Transport,External Hire -Occasional,304,14/04/2023,2304-00075,0.00,112.00,R,A1mobile.Co.Uk,Yes
Http://opendatacommunities.org/id/metropolitan-district-council/leeds,Leeds City Council,30/04/2023,Communities Housing and Environment,Customer Access,Supplies and Services,Bought In Professional Services,277,05/04/2023,2304-00076,0.00,700.00,R,AA Global Language Services Ltd,No
Http://opendatacommunities.org/id/metropolitan-district-council/leeds,Leeds City Council,30/04/2023,Communities Housing and Environment,Parks and Countryside ,Supplies and Services,Resaleable Materials,204,04/04/2023,2304-00077,0.00,252.90,R,Aagrah Foods,Yes
Http://opendatacommunities.org/id/metropolitan-district-council/leeds,Leeds City Council,30/04/2023,Children and Families,Social Care,Internal Recharges,Legal Disbursements,411,20/04/2023,2304-00078,0.00,455.00,R,Aaqib Javed,No
Http://opendatacommunities.org/id/metropolitan-district-council/leeds,Leeds City Council,30/04/2023,Children and Families,Social Care ,Supplies and Services,Operational Furniture And Equipment,203,16/03/2023,2304-00079,0.00,166.58,R,Aardvark Archery,Yes
Http://opendatacommunities.org/id/metropolitan-district-council/leeds,Leeds City Council,30/04/2023,Children and Families,Social Care ,Supplies and Services,Operational Materials,205,20/04/2023,2304-00080,0.00,6.67,R,Aardvark Archery,Yes
Http://opendatacommunities.org/id/metropolitan-district-council/leeds,Leeds City Council,30/04/2023,Adults and Health,Services For Older People - 65 And Over,Agency Payments,Residential Care Dementia,571,26/04/2023,2304-00081,0.00,2154.28,R,Aaron Court Care Home,No
Http://opendatacommunities.org/id/metropolitan-district-council/leeds,Leeds City Council as Accountable Body,30/04/2023,Social Services Pooled Budgets,Leeds Community Equip Store Pooled Budgt,Supplies and Services,Other Equipment,203,06/04/2023,2304-00082,0.00,1224.00,R,AAT (GB) LTD,No
Http://opendatacommunities.org/id/metropolitan-district-council/leeds,Leeds City Council as Accountable Body,30/04/2023,Social Services Pooled Budgets,Leeds Community Equip Store Pooled Budgt,Supplies and Services,Other Equipment,203,06/04/2023,2304-00083,0.00,1239.00,R,AAT (GB) LTD,No
Http://opendatacommunities.org/id/metropolitan-district-council/leeds,Leeds City Council as Accountable Body,30/04/2023,Social Services Pooled Budgets,Leeds Community Equip Store Pooled Budgt,Supplies and Services,Other Equipment,203,27/04/2023,2304-00084,0.00,5301.00,R,AAT (GB) LTD,No
Http://opendatacommunities.org/id/metropolitan-district-council/leeds,Leeds City Council as Accountable Body,30/04/2023,Social Services Pooled Budgets,Leeds Community Equip Store Pooled Budgt,Supplies and Services,Other Equipment,203,27/04/2023,2304-00085,0.00,1616.00,R,AAT (GB) LTD,No
Http://opendatacommunities.org/id/metropolitan-district-council/leeds,Leeds City Council as Accountable Body,30/04/2023,Social Services Pooled Budgets,Jcs For People With Learning Disabilitie,Supplies and Services,Other Equipment,203,27/04/2023,2304-00086,0.00,1746.00,R,AAT (GB) LTD,No
Http://opendatacommunities.org/id/metropolitan-district-council/leeds,Leeds City Council as Accountable Body,30/04/2023,Social Services Pooled Budgets,Jcs For People With Learning Disabilitie,Supplies and Services,Other Equipment,203,27/04/2023,2304-00087,0.00,1394.00,R,AAT (GB) LTD,No
Http://opendatacommunities.org/id/metropolitan-district-council/leeds,Leeds City Council,30/04/2023,City Development,Libraries Arts & Heritage ,Supplies and Services,Books & Audio-Visual Materials,206,14/03/2023,2304-00088,0.00,29.43,R,Ab* Abebooks.Uk Jqq6ap,Yes
Http://opendatacommunities.org/id/metropolitan-district-council/leeds,Leeds City Council,30/04/2023,Communities Housing and Environment,Car Parking Services ,Supplies and Services,Postages,212,17/04/2023,2304-00089,0.00,48.50,R,Abacus Express,Yes
Http://opendatacommunities.org/id/metropolitan-district-council/leeds,Leeds City Council as Accountable Body,30/04/2023,Social Services Pooled Budgets,Jcs For People With Learning Disabilitie,Agency Payments,Residential,580,26/04/2023,2304-00090,0.00,11720.20,R,Abbey Care And Education,No
Http://opendatacommunities.org/id/metropolitan-district-council/leeds,Leeds City Council,30/04/2023,Children and Families,Learning,Supplies and Services,Other Hired And Contracted Services,265,06/04/2023,2304-00091,0.00,50.00,R,Abbey Multi Academy Trust,No
Http://opendatacommunities.org/id/metropolitan-district-council/leeds,Leeds City Council,30/04/2023,Adults and Health,Services For Adults Under 65 Mental/Dis,Agency Payments,Home Care,568,14/04/2023,2304-00092,0.00,225.75,R,Abbeyfield The Dales Limited,No
Http://opendatacommunities.org/id/metropolitan-district-council/leeds,Leeds City Council,30/04/2023,Children and Families,Social Care,Agency Payments,Allowances,546,12/04/2023,2304-00093,0.00,619.20,R,Abbie O Mahony,No
Http://opendatacommunities.org/id/metropolitan-district-council/leeds,Leeds City Council,30/04/2023,Children and Families,Social Care,Agency Payments,Services Rendered By Other Organisations,511,06/04/2023,2304-00094,0.00,1343.16,R,REDACTED PERSONAL DATA,No
Http://opendatacommunities.org/id/metropolitan-district-council/leeds,Leeds City Council,30/04/2023,Communities Housing and Environment,Parks and Countryside ,Supplies and Services,Other Hired And Contracted Services,265,28/02/2023,2304-00095,0.00,1200.00,R,Abbotts Memorial Compa,Yes
Http://opendatacommunities.org/id/metropolitan-district-council/leeds,Leeds City Council,30/04/2023,Communities Housing and Environment,Parks and Countryside ,Supplies and Services,Other Hired And Contracted Services,265,08/03/2023,2304-00096,0.00,2400.00,R,Abbotts Memorial Compa,Yes
Http://opendatacommunities.org/id/metropolitan-district-council/leeds,Leeds City Council,30/04/2023,Communities Housing and Environment,Parks and Countryside ,Supplies and Services,Other Hired And Contracted Services,265,15/03/2023,2304-00097,0.00,1800.00,R,Abbotts Memorial Compa,Yes
Http://opendatacommunities.org/id/metropolitan-district-council/leeds,Leeds City Council,30/04/2023,Communities Housing and Environment,Parks and Countryside ,Supplies and Services,Other Hired And Contracted Services,265,22/03/2023,2304-00098,0.00,5250.00,R,Abbotts Memorial Compa,Yes
Http://opendatacommunities.org/id/metropolitan-district-council/leeds,Leeds City Council,30/04/2023,Communities Housing and Environment,Parks and Countryside ,Supplies and Services,Other Hired And Contracted Services,265,05/04/2023,2304-00099,0.00,6390.00,R,Abbotts Memorial Compa,Yes
Http://opendatacommunities.org/id/metropolitan-district-council/leeds,Leeds City Council,30/04/2023,Communities Housing and Environment,Parks and Countryside ,Supplies and Services,Other Hired And Contracted Services,265,17/04/2023,2304-00100,0.00,3220.00,R,Abbotts Memorial Compa,Yes
Http://opendatacommunities.org/id/metropolitan-district-council/leeds,Leeds City Council,30/04/2023,Communities Housing and Environment,Parks and Countryside ,Supplies and Services,Other Hired And Contracted Services,265,18/04/2023,2304-00101,0.00,1400.00,R,Abbotts Memorial Compa,Yes
Http://opendatacommunities.org/id/metropolitan-district-council/leeds,Leeds City Council,30/04/2023,Communities Housing and Environment,Parks and Countryside ,Supplies and Services,Other Hired And Contracted Services,265,18/04/2023,2304-00102,0.00,1200.00,R,Abbotts Memorial Compa,Yes
Http://opendatacommunities.org/id/metropolitan-district-council/leeds,Leeds City Council,30/04/2023,Communities Housing and Environment,Parks and Countryside ,Supplies and Services,Other Hired And Contracted Services,265,18/04/2023,2304-00103,0.00,1000.00,R,Abbotts Memorial Compa,Yes
Http://opendatacommunities.org/id/metropolitan-district-council/leeds,Leeds City Council,30/04/2023,Communities Housing and Environment,Parks and Countryside ,Supplies and Services,Other Hired And Contracted Services,265,19/04/2023,2304-00104,0.00,3220.00,R,Abbotts Memorial Compa,Yes
Http://opendatacommunities.org/id/metropolitan-district-council/leeds,Leeds City Council,30/04/2023,Communities Housing and Environment,Parks and Countryside ,Supplies and Services,Other Hired And Contracted Services,265,24/04/2023,2304-00105,0.00,2100.00,R,Abbotts Memorial Compa,Yes
Http://opendatacommunities.org/id/metropolitan-district-council/leeds,Leeds City Council,30/04/2023,Children and Families,Social Care,Agency Payments,Services Rendered By Other Organisations,511,05/04/2023,2304-00106,0.00,2747.16,R,ABC NURSERY AT LUFC,No
Http://opendatacommunities.org/id/metropolitan-district-council/leeds,Leeds City Council,30/04/2023,Children and Families,Social Care,Agency Payments,Services Rendered By Other Organisations,511,06/04/2023,2304-00107,0.00,8826.48,R,ABC NURSERY AT LUFC,No
Http://opendatacommunities.org/id/metropolitan-district-council/leeds,Leeds City Council,30/04/2023,Children and Families,Social Care,Agency Payments,Services Rendered By Voluntary Sector,505,06/04/2023,2304-00108,0.00,300.00,R,ABC NURSERY AT LUFC,No
Http://opendatacommunities.org/id/metropolitan-district-council/leeds,Leeds City Council,30/04/2023,Children and Families,Social Care,Agency Payments,Services Rendered By Voluntary Sector,505,18/04/2023,2304-00109,0.00,8700.00,R,ABC NURSERY AT LUFC,No
Http://opendatacommunities.org/id/metropolitan-district-council/leeds,Leeds City Council,30/04/2023,Children and Families,Social Care,Agency Payments,Services Rendered By Voluntary Sector,505,18/04/2023,2304-00110,0.00,750.00,R,ABC NURSERY AT LUFC,No
Http://opendatacommunities.org/id/metropolitan-district-council/leeds,Leeds City Council,30/04/2023,Children and Families,Social Care,Agency Payments,Services Rendered By Other Organisations,511,05/04/2023,2304-00111,0.00,915.72,R,Abc@D'S Childcare,No
Http://opendatacommunities.org/id/metropolitan-district-council/leeds,Leeds City Council,30/04/2023,Children and Families,Social Care,Agency Payments,Services Rendered By Other Organisations,511,06/04/2023,2304-00112,0.00,7291.44,R,Abc@D'S Childcare,No
Http://opendatacommunities.org/id/metropolitan-district-council/leeds,Leeds City Council,30/04/2023,Children and Families,Social Care,Agency Payments,Services Rendered By Voluntary Sector,505,18/04/2023,2304-00113,0.00,3480.00,R,Abc@D'S Childcare,No
Http://opendatacommunities.org/id/metropolitan-district-council/leeds,Leeds City Council,30/04/2023,Children and Families,Social Care,Agency Payments,Services Rendered By Voluntary Sector,505,20/04/2023,2304-00114,0.00,88.00,R,Abc@D'S Childcare,No
Http://opendatacommunities.org/id/metropolitan-district-council/leeds,Leeds City Council,30/04/2023,Communities Housing and Environment,Customer Access,Supplies and Services,Bought In Professional Services,277,26/04/2023,2304-00115,0.00,7.50,R,Abdalla Ahmed,No
Http://opendatacommunities.org/id/metropolitan-district-council/leeds,Leeds City Council,30/04/2023,Communities Housing and Environment,Customer Access,Supplies and Services,Bought In Professional Services,277,26/04/2023,2304-00116,0.00,18.00,R,Abdalla Ahmed,No
Http://opendatacommunities.org/id/metropolitan-district-council/leeds,Leeds City Council,30/04/2023,Communities Housing and Environment,Customer Access,Supplies and Services,Bought In Professional Services,277,05/04/2023,2304-00117,0.00,40.50,R,Abdul Kalam,No
Http://opendatacommunities.org/id/metropolitan-district-council/leeds,Leeds City Council,30/04/2023,Communities Housing and Environment,Customer Access,Supplies and Services,Bought In Professional Services,277,05/04/2023,2304-00118,0.00,27.00,R,Abdulahad Denha,No
Http://opendatacommunities.org/id/metropolitan-district-council/leeds,Leeds City Council,30/04/2023,Communities Housing and Environment,Customer Access,Supplies and Services,Bought In Professional Services,277,05/04/2023,2304-00119,0.00,18.00,R,Abdulahad Denha,No
Http://opendatacommunities.org/id/metropolitan-district-council/leeds,Leeds City Council,30/04/2023,Communities Housing and Environment,Customer Access,Supplies and Services,Bought In Professional Services,277,05/04/2023,2304-00120,0.00,31.50,R,Abdulahad Denha,No
Http://opendatacommunities.org/id/metropolitan-district-council/leeds,Leeds City Council,30/04/2023,Communities Housing and Environment,Customer Access,Supplies and Services,Bought In Professional Services,277,14/04/2023,2304-00121,0.00,18.00,R,Abdulahad Denha,No
Http://opendatacommunities.org/id/metropolitan-district-council/leeds,Leeds City Council,30/04/2023,Communities Housing and Environment,Customer Access,Supplies and Services,Bought In Professional Services,277,14/04/2023,2304-00122,0.00,18.00,R,Abdulahad Denha,No
Http://opendatacommunities.org/id/metropolitan-district-council/leeds,Leeds City Council,30/04/2023,Communities Housing and Environment,Customer Access,Supplies and Services,Bought In Professional Services,277,19/04/2023,2304-00123,0.00,18.00,R,Abdulahad Denha,No
Http://opendatacommunities.org/id/metropolitan-district-council/leeds,Leeds City Council,30/04/2023,Communities Housing and Environment,Customer Access,Supplies and Services,Bought In Professional Services,277,19/04/2023,2304-00124,0.00,18.00,R,Abdulahad Denha,No
Http://opendatacommunities.org/id/metropolitan-district-council/leeds,Leeds City Council,30/04/2023,Communities Housing and Environment,Customer Access,Supplies and Services,Bought In Professional Services,277,26/04/2023,2304-00125,0.00,18.00,R,Abdulahad Denha,No
Http://opendatacommunities.org/id/metropolitan-district-council/leeds,Leeds City Council,30/04/2023,Communities Housing and Environment,Customer Access,Supplies and Services,Bought In Professional Services,277,26/04/2023,2304-00126,0.00,18.00,R,Abdulahad Denha,No
Http://opendatacommunities.org/id/metropolitan-district-council/leeds,Leeds City Council,30/04/2023,Communities Housing and Environment,Customer Access,Supplies and Services,Bought In Professional Services,277,05/04/2023,2304-00127,0.00,18.00,R,Abdulrahim Dastyar,No
Http://opendatacommunities.org/id/metropolitan-district-council/leeds,Leeds City Council,30/04/2023,Communities Housing and Environment,Customer Access,Supplies and Services,Bought In Professional Services,277,05/04/2023,2304-00128,0.00,18.00,R,Abdulrahim Dastyar,No
Http://opendatacommunities.org/id/metropolitan-district-council/leeds,Leeds City Council,30/04/2023,Communities Housing and Environment,Customer Access,Supplies and Services,Bought In Professional Services,277,14/04/2023,2304-00129,0.00,18.00,R,Abdulrahim Dastyar,No
Http://opendatacommunities.org/id/metropolitan-district-council/leeds,Leeds City Council,30/04/2023,Communities Housing and Environment,Customer Access,Supplies and Services,Bought In Professional Services,277,14/04/2023,2304-00130,0.00,18.00,R,Abdulrahim Dastyar,No
Http://opendatacommunities.org/id/metropolitan-district-council/leeds,Leeds City Council,30/04/2023,Communities Housing and Environment,Customer Access,Supplies and Services,Bought In Professional Services,277,19/04/2023,2304-00131,0.00,27.00,R,Abdulrahim Dastyar,No
Http://opendatacommunities.org/id/metropolitan-district-council/leeds,Leeds City Council,30/04/2023,Communities Housing and Environment,Customer Access,Supplies and Services,Bought In Professional Services,277,19/04/2023,2304-00132,0.00,27.00,R,Abdulrahim Dastyar,No
Http://opendatacommunities.org/id/metropolitan-district-council/leeds,Leeds City Council,30/04/2023,Communities Housing and Environment,Customer Access,Supplies and Services,Bought In Professional Services,277,19/04/2023,2304-00133,0.00,9.00,R,Abdulrahim Dastyar,No
Http://opendatacommunities.org/id/metropolitan-district-council/leeds,Leeds City Council,30/04/2023,Communities Housing and Environment,Customer Access,Supplies and Services,Bought In Professional Services,277,19/04/2023,2304-00134,0.00,9.00,R,Abdulrahim Dastyar,No
Http://opendatacommunities.org/id/metropolitan-district-council/leeds,Leeds City Council,30/04/2023,Communities Housing and Environment,Customer Access,Supplies and Services,Bought In Professional Services,277,26/04/2023,2304-00135,0.00,27.00,R,Abdulrahim Dastyar,No
Http://opendatacommunities.org/id/metropolitan-district-council/leeds,Leeds City Council,30/04/2023,Communities Housing and Environment,Customer Access,Supplies and Services,Bought In Professional Services,277,26/04/2023,2304-00136,0.00,18.00,R,Abdulrahim Dastyar,No
Http://opendatacommunities.org/id/metropolitan-district-council/leeds,Leeds City Council,30/04/2023,Communities Housing and Environment,Customer Access,Supplies and Services,Bought In Professional Services,277,26/04/2023,2304-00137,0.00,9.00,R,Abdulrahim Dastyar,No
Http://opendatacommunities.org/id/metropolitan-district-council/leeds,Leeds City Council,30/04/2023,Strategic Accounts,Strategic,Supplies and Services,Non-Recurring Grants,227,05/04/2023,2304-00138,0.00,360.00,R,ABERFORD AND DISTRICT PARISH COUNCIL,No
Http://opendatacommunities.org/id/metropolitan-district-council/leeds,Leeds City Council,30/04/2023,Strategic Accounts,Strategic,Supplies and Services,Office Consumables,210,05/04/2023,2304-00139,0.00,23000.00,R,ABERFORD AND DISTRICT PARISH COUNCIL,No
Http://opendatacommunities.org/id/metropolitan-district-council/leeds,Leeds City Council,30/04/2023,Adults and Health,Services For Older People Under 65 P/Dis,Agency Payments,Nursing Home,570,26/04/2023,2304-00140,0.00,3202.00,R,Aberford Hall,No
Http://opendatacommunities.org/id/metropolitan-district-council/leeds,Leeds City Council,30/04/2023,Adults and Health,Services For Older People - 65 And Over,Agency Payments,Nursing Home,570,26/04/2023,2304-00141,0.00,36215.69,R,Aberford Hall,No
Http://opendatacommunities.org/id/metropolitan-district-council/leeds,Leeds City Council,30/04/2023,Children and Families,Learning,Agency Payments,SEN Placements,566,11/04/2023,2304-00142,0.00,960.00,R,Aberford Village Hall,No
Http://opendatacommunities.org/id/metropolitan-district-council/leeds,Leeds City Council,30/04/2023,Resources,Leeds Building Services,Supplies and Services,Operational Materials,205,14/04/2023,2304-00143,0.00,390.88,R,ABI GARAGE DOORS LTD,No
Http://opendatacommunities.org/id/metropolitan-district-council/leeds,Leeds City Council,30/04/2023,Resources,Leeds Building Services,Supplies and Services,Operational Materials,205,14/04/2023,2304-00144,0.00,390.88,R,ABI GARAGE DOORS LTD,No
Http://opendatacommunities.org/id/metropolitan-district-council/leeds,Leeds City Council,30/04/2023,Strategic Landlord,Property and Contracts,Internal Recharges,Legal Disbursements,411,06/04/2023,2304-00145,0.00,475.00,R,Abigail Cheetham,No
Http://opendatacommunities.org/id/metropolitan-district-council/leeds,Leeds City Council,30/04/2023,Strategic Landlord,Property and Contracts,Internal Recharges,Legal Disbursements,411,06/04/2023,2304-00146,0.00,450.00,R,Abigail Cheetham,No
Http://opendatacommunities.org/id/metropolitan-district-council/leeds,Leeds City Council,30/04/2023,Strategic Landlord,Property and Contracts,Internal Recharges,Legal Disbursements,411,06/04/2023,2304-00147,0.00,150.00,R,Abigail Cheetham,No
Http://opendatacommunities.org/id/metropolitan-district-council/leeds,Leeds City Council,30/04/2023,Children and Families,Social Care,Agency Payments, Direct Work,549,18/04/2023,2304-00148,0.00,2.00,R,REDACTED PERSONAL DATA,No
Http://opendatacommunities.org/id/metropolitan-district-council/leeds,Leeds City Council,30/04/2023,Children and Families,Social Care,Agency Payments, Direct Work,549,18/04/2023,2304-00149,0.00,2.00,R,REDACTED PERSONAL DATA,No
Http://opendatacommunities.org/id/metropolitan-district-council/leeds,Leeds City Council,30/04/2023,Children and Families,Social Care,Agency Payments, Direct Work,549,18/04/2023,2304-00150,0.00,2.00,R,REDACTED PERSONAL DATA,No
Http://opendatacommunities.org/id/metropolitan-district-council/leeds,Leeds City Council,30/04/2023,Children and Families,Social Care,Agency Payments, Direct Work,549,18/04/2023,2304-00151,0.00,2.00,R,REDACTED PERSONAL DATA,No
Http://opendatacommunities.org/id/metropolitan-district-council/leeds,Leeds City Council,30/04/2023,Children and Families,Social Care,Agency Payments,General External Residential Placements,507,27/04/2023,2304-00152,0.00,17692.01,R,Absolute Children's Services Ltd,No
Http://opendatacommunities.org/id/metropolitan-district-council/leeds,Leeds City Council,30/04/2023,Children and Families,Social Care ,Appropriations,Leaving Care Allowances,634,13/04/2023,2304-00153,0.00,1.00,R,Abu Bakr Supermarket,Yes
Http://opendatacommunities.org/id/metropolitan-district-council/leeds,Leeds City Council,30/04/2023,Adults and Health,Social Services Support Services,Employees,Training & Development,70,21/04/2023,2304-00154,0.00,3115.00,R,ACAS,No
Http://opendatacommunities.org/id/metropolitan-district-council/leeds,Leeds City Council,30/04/2023,Strategic Landlord,Housing Management,External Income,Other Income,973,27/04/2023,2304-00155,0.00,72.00,R,ACCESS LOCKSMITHS (LEEDS) LIMITED,No
Http://opendatacommunities.org/id/metropolitan-district-council/leeds,Leeds City Council,30/04/2023,Resources,Leeds Building Services,Supplies and Services,Other Hired And Contracted Services,265,06/04/2023,2304-00156,0.00,1440.00,R,Ace Elevators Limited,No
Http://opendatacommunities.org/id/metropolitan-district-council/leeds,Leeds City Council,30/04/2023,Resources,Leeds Building Services,Supplies and Services,Other Hired And Contracted Services,265,14/04/2023,2304-00157,0.00,911.20,R,Ace Elevators Limited,No
Http://opendatacommunities.org/id/metropolitan-district-council/leeds,Leeds City Council,30/04/2023,Resources,Leeds Building Services,Supplies and Services,Other Hired And Contracted Services,265,21/04/2023,2304-00158,0.00,440.00,R,Ace Elevators Limited,No
Http://opendatacommunities.org/id/metropolitan-district-council/leeds,Leeds City Council,30/04/2023,Resources,Leeds Building Services,Supplies and Services,Other Hired And Contracted Services,265,21/04/2023,2304-00159,0.00,682.80,R,Ace Elevators Limited,No
Http://opendatacommunities.org/id/metropolitan-district-council/leeds,Leeds City Council,30/04/2023,Resources,Leeds Building Services,Supplies and Services,Other Hired And Contracted Services,265,28/04/2023,2304-00160,0.00,779.91,R,Ace Elevators Limited,No
Http://opendatacommunities.org/id/metropolitan-district-council/leeds,Leeds City Council,30/04/2023,City Development,Economic Development,Supplies and Services,Grants To Businesses,243,14/04/2023,2304-00161,0.00,9988.44,R,Aceede Services Ltd,No
Http://opendatacommunities.org/id/metropolitan-district-council/leeds,Leeds City Council,30/04/2023,Communities Housing and Environment,Parks and Countryside ,Supplies and Services,Other Hired And Contracted Services,265,01/03/2023,2304-00162,0.00,64.84,R,Acme Facilities Group,Yes
Http://opendatacommunities.org/id/metropolitan-district-council/leeds,Leeds City Council,30/04/2023,Communities Housing and Environment,Parks and Countryside ,Supplies and Services,Other Hired And Contracted Services,265,22/03/2023,2304-00163,0.00,487.42,R,Acme Facilities Group,Yes
Http://opendatacommunities.org/id/metropolitan-district-council/leeds,Leeds City Council,30/04/2023,Communities Housing and Environment,Parks and Countryside ,Supplies and Services,Other Hired And Contracted Services,265,17/04/2023,2304-00164,0.00,1141.78,R,Acme Facilities Group,Yes
Http://opendatacommunities.org/id/metropolitan-district-council/leeds,Leeds City Council,30/04/2023,City Development,Highways,Capital,CONSTRUCTION,3,06/04/2023,2304-00165,0.00,5347.00,C,Acorn Analytical Services Limited,No
Http://opendatacommunities.org/id/metropolitan-district-council/leeds,Leeds City Council,30/04/2023,Resources,Leeds Building Services,Supplies and Services,Other Hired And Contracted Services,265,19/04/2023,2304-00166,0.00,526.50,R,Acorn Analytical Services Limited,No
Http://opendatacommunities.org/id/metropolitan-district-council/leeds,Leeds City Council as Accountable Body,30/04/2023,Social Services Pooled Budgets,Jcs For People With Learning Disabilitie,Agency Payments,Residential,580,26/04/2023,2304-00167,0.00,55436.00,R,Acorn Care & Education Limited,No
Http://opendatacommunities.org/id/metropolitan-district-council/leeds,Leeds City Council as Accountable Body,30/04/2023,Social Services Pooled Budgets,Jcs For People With Learning Disabilitie,Agency Payments,Residential,580,26/04/2023,2304-00168,0.00,103912.96,R,Acorn Care & Education Limited,No
Http://opendatacommunities.org/id/metropolitan-district-council/leeds,Leeds City Council,30/04/2023,Children and Families,Social Care,Agency Payments,General External Residential Placements,507,06/04/2023,2304-00169,0.00,16431.43,R,Acorn Care & Education Ltd (Sales),No
Http://opendatacommunities.org/id/metropolitan-district-council/leeds,Leeds City Council,30/04/2023,Children and Families,Social Care,Agency Payments,General External Residential Placements,507,28/04/2023,2304-00170,0.00,13387.57,R,Acorn Care & Education Ltd (Sales),No
Http://opendatacommunities.org/id/metropolitan-district-council/leeds,Leeds City Council,30/04/2023,Children and Families,Social Care,Agency Payments,General External Residential Placements,507,28/04/2023,2304-00171,0.00,9517.00,R,Acorn Care & Education Ltd (Sales),No
Http://opendatacommunities.org/id/metropolitan-district-council/leeds,Leeds City Council,30/04/2023,Children and Families,Social Care,Agency Payments,General External Residential Placements,507,28/04/2023,2304-00172,0.00,19048.75,R,Acorn Care & Education Ltd (Sales),No
Http://opendatacommunities.org/id/metropolitan-district-council/leeds,Leeds City Council,30/04/2023,Children and Families,Social Care,Agency Payments,General External Residential Placements,507,28/04/2023,2304-00173,0.00,18635.34,R,Acorn Care & Education Ltd (Sales),No
Http://opendatacommunities.org/id/metropolitan-district-council/leeds,Leeds City Council,30/04/2023,Children and Families,Social Care,Agency Payments,General External Residential Placements,507,28/04/2023,2304-00174,0.00,17249.29,R,Acorn Care & Education Ltd (Sales),No
Http://opendatacommunities.org/id/metropolitan-district-council/leeds,Leeds City Council,30/04/2023,Adults and Health,Services For Older People Under 65 P/Dis,Agency Payments,Nursing Home,570,26/04/2023,2304-00175,0.00,3500.00,R,Acorn Care Home,No
Http://opendatacommunities.org/id/metropolitan-district-council/leeds,Leeds City Council,30/04/2023,Adults and Health,Other Adult Services,Agency Payments,Residential - Drugs & Alcohol,583,28/04/2023,2304-00176,0.00,1472.55,R,Acorn Recovery Projects,No
Http://opendatacommunities.org/id/metropolitan-district-council/leeds,Leeds City Council,30/04/2023,Children and Families,Social Care,Agency Payments,Services Rendered By Other Organisations,511,05/04/2023,2304-00177,0.00,457.86,R,ACORNS NURSERY,No
Http://opendatacommunities.org/id/metropolitan-district-council/leeds,Leeds City Council,30/04/2023,Children and Families,Social Care,Agency Payments,Services Rendered By Other Organisations,511,06/04/2023,2304-00178,0.00,11129.04,R,ACORNS NURSERY,No
Http://opendatacommunities.org/id/metropolitan-district-council/leeds,Leeds City Council,30/04/2023,Children and Families,Social Care,Agency Payments,Services Rendered By Voluntary Sector,505,18/04/2023,2304-00179,0.00,4060.00,R,ACORNS NURSERY,No
Http://opendatacommunities.org/id/metropolitan-district-council/leeds,Leeds City Council,30/04/2023,Adults and Health,Services For Older People - 65 And Over,Agency Payments,Nursing Home,570,26/04/2023,2304-00180,0.00,48751.87,R,Acre Green,No
Http://opendatacommunities.org/id/metropolitan-district-council/leeds,Leeds City Council,30/04/2023,Adults and Health,Services For Older People Under 65 P/Dis,Agency Payments,Residential,580,26/04/2023,2304-00181,0.00,2233.00,R,Acre Green,No
Http://opendatacommunities.org/id/metropolitan-district-council/leeds,Leeds City Council,30/04/2023,Adults and Health,Services For Older People - 65 And Over,Agency Payments,Residential,580,26/04/2023,2304-00182,0.00,4872.80,R,Acre Green,No
Http://opendatacommunities.org/id/metropolitan-district-council/leeds,Leeds City Council,30/04/2023,Children and Families,Social Care,Agency Payments,Services Rendered By Other Organisations,511,05/04/2023,2304-00183,0.00,915.72,R,Acre Wood Day Nursery,No
Http://opendatacommunities.org/id/metropolitan-district-council/leeds,Leeds City Council,30/04/2023,Children and Families,Social Care,Agency Payments,Services Rendered By Other Organisations,511,06/04/2023,2304-00184,0.00,13239.72,R,Acre Wood Day Nursery,No
Http://opendatacommunities.org/id/metropolitan-district-council/leeds,Leeds City Council,30/04/2023,Children and Families,Social Care,Agency Payments,Services Rendered By Voluntary Sector,505,18/04/2023,2304-00185,0.00,2900.00,R,Acre Wood Day Nursery,No
Http://opendatacommunities.org/id/metropolitan-district-council/leeds,Leeds City Council,30/04/2023,Adults and Health,Services For Adults Under 65 Mental/Dis,Agency Payments,Fees - Level 4,520,28/04/2023,2304-00186,0.00,2440.00,R,Action First Assessments Ltd,No
Http://opendatacommunities.org/id/metropolitan-district-council/leeds,Leeds City Council as Accountable Body,30/04/2023,Social Services Pooled Budgets,Jcs For People With Learning Disabilitie,Agency Payments,Residential,580,26/04/2023,2304-00187,0.00,10702.60,R,Action For Care Contracts Limited,No
Http://opendatacommunities.org/id/metropolitan-district-council/leeds,Leeds City Council,30/04/2023,Children and Families,Social Care,Agency Payments,Independent Fostering Agencies,509,03/04/2023,2304-00188,0.00,5060.44,R,Action For Children Services Ltd,No
Http://opendatacommunities.org/id/metropolitan-district-council/leeds,Leeds City Council,30/04/2023,Children and Families,Social Care,Agency Payments,Independent Fostering Agencies,509,03/04/2023,2304-00189,0.00,4570.72,R,Action For Children Services Ltd,No
Http://opendatacommunities.org/id/metropolitan-district-council/leeds,Leeds City Council,30/04/2023,Adults and Health,Services For Older People - 65 And Over,Agency Payments,Payments To Voluntary Organisations,561,03/04/2023,2304-00190,0.00,45009.02,R,ACTION FOR GIPTON ELDERLY,No
Http://opendatacommunities.org/id/metropolitan-district-council/leeds,Leeds City Council,30/04/2023,Children and Families,Social Care,Agency Payments,Services Rendered By Voluntary Sector,505,18/04/2023,2304-00191,0.00,1500.00,R,Active Kids (Yeadon),No
Http://opendatacommunities.org/id/metropolitan-district-council/leeds,Leeds City Council,30/04/2023,Children and Families,Social Care,Agency Payments,Services Rendered By Voluntary Sector,505,18/04/2023,2304-00192,0.00,5800.00,R,Active Kids (Yeadon),No
Http://opendatacommunities.org/id/metropolitan-district-council/leeds,Leeds City Council,30/04/2023,Children and Families,Social Care,Agency Payments,Services Rendered By Other Organisations,511,05/04/2023,2304-00193,0.00,915.72,R,ACTIVE KIDS YEADON LLP,No
Http://opendatacommunities.org/id/metropolitan-district-council/leeds,Leeds City Council,30/04/2023,Children and Families,Social Care,Agency Payments,Services Rendered By Other Organisations,511,06/04/2023,2304-00194,0.00,7214.69,R,ACTIVE KIDS YEADON LLP,No
Http://opendatacommunities.org/id/metropolitan-district-council/leeds,Leeds City Council,30/04/2023,Children and Families,Social Care ,Supplies and Services,Other Hired And Contracted Services,265,11/04/2023,2304-00195,0.00,3.75,R,Active Leeds,Yes
Http://opendatacommunities.org/id/metropolitan-district-council/leeds,Leeds City Council,30/04/2023,City Development,Recreation ,Supplies and Services,Other Hired And Contracted Services,265,25/04/2023,2304-00196,0.00,4.00,R,Active Leeds,Yes
Http://opendatacommunities.org/id/metropolitan-district-council/leeds,Leeds City Council,30/04/2023,Adults and Health,Services For Adults Under 65 Mental/Dis,Agency Payments,Sheltered Accommodation,569,26/04/2023,2304-00197,0.00,17848.64,R,Active Pathways,No
Http://opendatacommunities.org/id/metropolitan-district-council/leeds,Leeds City Council,30/04/2023,Adults and Health,Services For Older People - 65 And Over,Agency Payments,Sheltered Accommodation,569,26/04/2023,2304-00198,0.00,4059.27,R,Active Pathways,No
Http://opendatacommunities.org/id/metropolitan-district-council/leeds,Leeds City Council as Accountable Body,30/04/2023,Social Services Pooled Budgets,Jcs For People With Learning Disabilitie,Agency Payments,Sheltered Accommodation,569,26/04/2023,2304-00199,0.00,8301.68,R,Active Pathways,No
Http://opendatacommunities.org/id/metropolitan-district-council/leeds,Leeds City Council,30/04/2023,Adults and Health,Services For Adults Under 65 Mental/Dis,Agency Payments,Residential,580,26/04/2023,2304-00200,0.00,12973.80,R,Active Pathways Limited,No
Http://opendatacommunities.org/id/metropolitan-district-council/leeds,Leeds City Council,30/04/2023,Communities Housing and Environment,Waste Management,Supplies and Services,Recycling & Reuse Charges,234,12/04/2023,2304-00201,0.00,10609.92,R,Acumen Waste Services Ltd,No
Http://opendatacommunities.org/id/metropolitan-district-council/leeds,Leeds City Council,30/04/2023,Communities Housing and Environment,Waste Management,Supplies and Services,Recycling & Reuse Charges,234,21/04/2023,2304-00202,0.00,4999.68,R,Acumen Waste Services Ltd,No
Http://opendatacommunities.org/id/metropolitan-district-council/leeds,Leeds City Council,30/04/2023,Communities Housing and Environment,Waste Management,Supplies and Services,Recycling & Reuse Charges,234,26/04/2023,2304-00203,0.00,5866.56,R,Acumen Waste Services Ltd,No
Http://opendatacommunities.org/id/metropolitan-district-council/leeds,Leeds City Council,30/04/2023,Communities Housing and Environment,Parks and Countryside ,Supplies and Services,Resaleable Materials,204,06/03/2023,2304-00204,0.00,1008.00,R,Acushnet Europe Ltd,Yes
Http://opendatacommunities.org/id/metropolitan-district-council/leeds,Leeds City Council,30/04/2023,Resources,Shared Services,Supplies and Services,Other Hired And Contracted Services,265,14/04/2023,2304-00205,0.00,178.65,R,AD3 Envelope Printers Limited,No
Http://opendatacommunities.org/id/metropolitan-district-council/leeds,Leeds City Council,30/04/2023,Resources,Shared Services,Supplies and Services,Operational Materials,205,21/04/2023,2304-00206,0.00,1497.00,R,AD3 Envelope Printers Limited,No
Http://opendatacommunities.org/id/metropolitan-district-council/leeds,Leeds City Council,30/04/2023,Resources,Shared Services,Supplies and Services,Other Hired And Contracted Services,265,21/04/2023,2304-00207,0.00,131.54,R,AD3 Envelope Printers Limited,No
Http://opendatacommunities.org/id/metropolitan-district-council/leeds,Leeds City Council,30/04/2023,Resources,Shared Services,Supplies and Services,Other Hired And Contracted Services,265,28/04/2023,2304-00208,0.00,427.75,R,AD3 Envelope Printers Limited,No
Http://opendatacommunities.org/id/metropolitan-district-council/leeds,Leeds City Council,30/04/2023,Communities Housing and Environment,Strategic Housing Partnership & Support,Supplies and Services,Other Hired And Contracted Services,265,04/04/2023,2304-00209,0.00,604.10,R,Adair Paxton LLP,No
Http://opendatacommunities.org/id/metropolitan-district-council/leeds,Leeds City Council,30/04/2023,Communities Housing and Environment,Strategic Housing Partnership & Support,Supplies and Services,Other Hired And Contracted Services,265,05/04/2023,2304-00210,0.00,419.94,R,Adair Paxton LLP,No
Http://opendatacommunities.org/id/metropolitan-district-council/leeds,Leeds City Council,30/04/2023,City Development,Libraries Arts & Heritage,Supplies and Services,Books & Audio-Visual Materials,206,06/04/2023,2304-00211,0.00,53.51,R,REDACTED PERSONAL DATA,No
Http://opendatacommunities.org/id/metropolitan-district-council/leeds,Leeds City Council,30/04/2023,Children and Families,Social Care,Agency Payments,Allowances,546,20/04/2023,2304-00212,0.00,200.00,R,REDACTED PERSONAL DATA,No
Http://opendatacommunities.org/id/metropolitan-district-council/leeds,Leeds City Council,30/04/2023,Insurance,Insurance,Supplies and Services,Insurance Claims,248,19/04/2023,2304-00213,0.00,68.00,R,REDACTED PERSONAL DATA,No
Http://opendatacommunities.org/id/metropolitan-district-council/leeds,Leeds City Council,30/04/2023,Children and Families,Social Care,Agency Payments, Direct Work,549,11/04/2023,2304-00214,0.00,2.50,R,REDACTED PERSONAL DATA,No
Http://opendatacommunities.org/id/metropolitan-district-council/leeds,Leeds City Council,30/04/2023,Children and Families,Social Care,Agency Payments, Direct Work,549,11/04/2023,2304-00215,0.00,14.61,R,REDACTED PERSONAL DATA,No
Http://opendatacommunities.org/id/metropolitan-district-council/leeds,Leeds City Council,30/04/2023,Children and Families,Social Care,Agency Payments,Placement Support,550,17/04/2023,2304-00216,0.00,13.95,R,REDACTED PERSONAL DATA,No
Http://opendatacommunities.org/id/metropolitan-district-council/leeds,Leeds City Council,30/04/2023,Children and Families,Social Care,Agency Payments, Direct Work,549,27/04/2023,2304-00217,0.00,11.00,R,REDACTED PERSONAL DATA,No
Http://opendatacommunities.org/id/metropolitan-district-council/leeds,Leeds City Council,30/04/2023,Children and Families,Social Care,Agency Payments,Placement Support,550,06/04/2023,2304-00218,0.00,21.80,R,REDACTED PERSONAL DATA,No
Http://opendatacommunities.org/id/metropolitan-district-council/leeds,Leeds City Council,30/04/2023,Adults and Health,Social Services Support Services,Employees,Training & Development,70,27/04/2023,2304-00219,0.00,13.00,R,REDACTED PERSONAL DATA,No
Http://opendatacommunities.org/id/metropolitan-district-council/leeds,Leeds City Council,30/04/2023,Resources,PPPU and Procurement,Supplies and Services,Bought In Professional Services,277,20/04/2023,2304-00220,0.00,3796.00,R,Addleshaw Goddard LLP,No
Http://opendatacommunities.org/id/metropolitan-district-council/leeds,Leeds City Council,30/04/2023,Communities Housing and Environment,Climate Energy & Greenspaces,Internal Recharges,Professional Legal Services Charges,410,21/04/2023,2304-00221,0.00,4738.00,R,Addleshaw Goddard LLP,No
Http://opendatacommunities.org/id/metropolitan-district-council/leeds,Leeds City Council,30/04/2023,Adults and Health,Services For Older People - 65 And Over,Agency Payments,Residential,580,26/04/2023,2304-00222,0.00,3415.20,R,Adel Manor Care Centre,No
Http://opendatacommunities.org/id/metropolitan-district-council/leeds,Leeds City Council,30/04/2023,Children and Families,Social Care,Agency Payments,Services Rendered By Voluntary Sector,505,05/04/2023,2304-00223,0.00,1373.58,R,ADEL PRE SCHOOL,No
Http://opendatacommunities.org/id/metropolitan-district-council/leeds,Leeds City Council,30/04/2023,Children and Families,Social Care,Agency Payments,Services Rendered By Voluntary Sector,505,06/04/2023,2304-00224,0.00,3884.04,R,ADEL PRE SCHOOL,No
Http://opendatacommunities.org/id/metropolitan-district-council/leeds,Leeds City Council,30/04/2023,Children and Families,Social Care,Agency Payments,Services Rendered By Voluntary Sector,505,18/04/2023,2304-00225,0.00,8700.00,R,ADEL PRE SCHOOL,No
Http://opendatacommunities.org/id/metropolitan-district-council/leeds,Leeds City Council,30/04/2023,City Development,Recreation,Supplies and Services,Bought In Professional Services,277,26/04/2023,2304-00226,0.00,160.00,R,Adele Battersby,No
Http://opendatacommunities.org/id/metropolitan-district-council/leeds,Leeds City Council,30/04/2023,City Development,Recreation,Supplies and Services,Bought In Professional Services,277,28/04/2023,2304-00227,0.00,220.00,R,Adele Battersby,No
Http://opendatacommunities.org/id/metropolitan-district-council/leeds,Leeds City Council,30/04/2023,City Development,Recreation,Supplies and Services,Bought In Professional Services,277,28/04/2023,2304-00228,0.00,20.00,R,Adele Battersby,No
Http://opendatacommunities.org/id/metropolitan-district-council/leeds,Leeds City Council,30/04/2023,Children and Families,Social Care,Agency Payments,Services Rendered By Other Organisations,511,05/04/2023,2304-00229,0.00,228.93,R,REDACTED PERSONAL DATA,No
Http://opendatacommunities.org/id/metropolitan-district-council/leeds,Leeds City Council,30/04/2023,Children and Families,Social Care,Agency Payments,Services Rendered By Other Organisations,511,05/04/2023,2304-00230,0.00,1343.16,R,REDACTED PERSONAL DATA,No
Http://opendatacommunities.org/id/metropolitan-district-council/leeds,Leeds City Council,30/04/2023,Resources,Commercial Services,Supplies and Services,Other Hired And Contracted Services,265,26/04/2023,2304-00231,0.00,33.04,R,REDACTED PERSONAL DATA,No
Http://opendatacommunities.org/id/metropolitan-district-council/leeds,Leeds City Council,30/04/2023,Children and Families,Social Care,Agency Payments,Contact,548,06/04/2023,2304-00232,0.00,32.00,R,REDACTED PERSONAL DATA,No
Http://opendatacommunities.org/id/metropolitan-district-council/leeds,Leeds City Council,30/04/2023,Communities Housing and Environment,Communities,Supplies and Services,Other Hired And Contracted Services,265,25/04/2023,2304-00233,0.00,200.00,R,REDACTED PERSONAL DATA,No
Http://opendatacommunities.org/id/metropolitan-district-council/leeds,Leeds City Council,30/04/2023,City Development,Support Services,Employees,Professional Subscriptions,89,05/04/2023,2304-00234,0.00,2185.00,R,ADEPT,No
Http://opendatacommunities.org/id/metropolitan-district-council/leeds,Leeds City Council,30/04/2023,City Development,Libraries Arts & Heritage ,Supplies and Services,Operational Furniture And Equipment,203,14/03/2023,2304-00235,0.00,638.00,R,Adexa.Co.Uk,Yes
Http://opendatacommunities.org/id/metropolitan-district-council/leeds,Leeds City Council,30/04/2023,City Development,Libraries Arts & Heritage,Supplies and Services,Other Hired And Contracted Services,265,26/04/2023,2304-00236,0.00,29613.46,R,ADI UK LTD,No
Http://opendatacommunities.org/id/metropolitan-district-council/leeds,Leeds City Council,30/04/2023,Communities Housing and Environment,Community Safety,Supplies and Services,Other Hired And Contracted Services,265,14/04/2023,2304-00237,0.00,614.75,R,ADI-Gardiner Ltd,No
Http://opendatacommunities.org/id/metropolitan-district-council/leeds,Leeds City Council,30/04/2023,Resources,Leeds Building Services,Supplies and Services,Operational Materials,205,14/04/2023,2304-00238,0.00,-3336.28,R,ADI-Gardiner Ltd,No
Http://opendatacommunities.org/id/metropolitan-district-council/leeds,Leeds City Council,30/04/2023,Resources,Leeds Building Services,Supplies and Services,Operational Materials,205,14/04/2023,2304-00239,0.00,311.00,R,ADI-Gardiner Ltd,No
Http://opendatacommunities.org/id/metropolitan-district-council/leeds,Leeds City Council,30/04/2023,Resources,Leeds Building Services,Supplies and Services,Operational Materials,205,14/04/2023,2304-00240,0.00,89.26,R,ADI-Gardiner Ltd,No
Http://opendatacommunities.org/id/metropolitan-district-council/leeds,Leeds City Council,30/04/2023,Resources,Leeds Building Services,Supplies and Services,Operational Materials,205,14/04/2023,2304-00241,0.00,1639.00,R,ADI-Gardiner Ltd,No
Http://opendatacommunities.org/id/metropolitan-district-council/leeds,Leeds City Council,30/04/2023,Resources,Leeds Building Services,Supplies and Services,Operational Materials,205,14/04/2023,2304-00242,0.00,164.78,R,ADI-Gardiner Ltd,No
Http://opendatacommunities.org/id/metropolitan-district-council/leeds,Leeds City Council,30/04/2023,Resources,Leeds Building Services,Supplies and Services,Operational Materials,205,14/04/2023,2304-00243,0.00,9.90,R,ADI-Gardiner Ltd,No
Http://opendatacommunities.org/id/metropolitan-district-council/leeds,Leeds City Council,30/04/2023,Resources,Leeds Building Services,Supplies and Services,Operational Materials,205,14/04/2023,2304-00244,0.00,30.40,R,ADI-Gardiner Ltd,No
Http://opendatacommunities.org/id/metropolitan-district-council/leeds,Leeds City Council,30/04/2023,Resources,Leeds Building Services,Supplies and Services,Operational Materials,205,14/04/2023,2304-00245,0.00,74.19,R,ADI-Gardiner Ltd,No
Http://opendatacommunities.org/id/metropolitan-district-council/leeds,Leeds City Council,30/04/2023,Resources,Leeds Building Services,Supplies and Services,Operational Materials,205,14/04/2023,2304-00246,0.00,37.84,R,ADI-Gardiner Ltd,No
Http://opendatacommunities.org/id/metropolitan-district-council/leeds,Leeds City Council,30/04/2023,Resources,Leeds Building Services,Supplies and Services,Operational Materials,205,14/04/2023,2304-00247,0.00,62.40,R,ADI-Gardiner Ltd,No
Http://opendatacommunities.org/id/metropolitan-district-council/leeds,Leeds City Council,30/04/2023,Resources,Leeds Building Services,Supplies and Services,Operational Materials,205,14/04/2023,2304-00248,0.00,72.72,R,ADI-Gardiner Ltd,No
Http://opendatacommunities.org/id/metropolitan-district-council/leeds,Leeds City Council,30/04/2023,Resources,Leeds Building Services,Supplies and Services,Operational Materials,205,14/04/2023,2304-00249,0.00,11.48,R,ADI-Gardiner Ltd,No
Http://opendatacommunities.org/id/metropolitan-district-council/leeds,Leeds City Council,30/04/2023,Resources,Leeds Building Services,Supplies and Services,Operational Materials,205,14/04/2023,2304-00250,0.00,12.86,R,ADI-Gardiner Ltd,No
Http://opendatacommunities.org/id/metropolitan-district-council/leeds,Leeds City Council,30/04/2023,Resources,Leeds Building Services,Supplies and Services,Operational Materials,205,14/04/2023,2304-00251,0.00,465.57,R,ADI-Gardiner Ltd,No
Http://opendatacommunities.org/id/metropolitan-district-council/leeds,Leeds City Council,30/04/2023,Resources,Leeds Building Services,Supplies and Services,Operational Materials,205,14/04/2023,2304-00252,0.00,36.90,R,ADI-Gardiner Ltd,No
Http://opendatacommunities.org/id/metropolitan-district-council/leeds,Leeds City Council,30/04/2023,Resources,Leeds Building Services,Supplies and Services,Operational Materials,205,14/04/2023,2304-00253,0.00,40.07,R,ADI-Gardiner Ltd,No
Http://opendatacommunities.org/id/metropolitan-district-council/leeds,Leeds City Council,30/04/2023,Resources,Leeds Building Services,Supplies and Services,Operational Materials,205,14/04/2023,2304-00254,0.00,40.07,R,ADI-Gardiner Ltd,No
Http://opendatacommunities.org/id/metropolitan-district-council/leeds,Leeds City Council,30/04/2023,Resources,Leeds Building Services,Supplies and Services,Operational Materials,205,14/04/2023,2304-00255,0.00,165.04,R,ADI-Gardiner Ltd,No
Http://opendatacommunities.org/id/metropolitan-district-council/leeds,Leeds City Council,30/04/2023,Resources,Leeds Building Services,Supplies and Services,Operational Materials,205,21/04/2023,2304-00256,0.00,192.60,R,ADI-Gardiner Ltd,No
Http://opendatacommunities.org/id/metropolitan-district-council/leeds,Leeds City Council,30/04/2023,Resources,Leeds Building Services,Supplies and Services,Operational Materials,205,21/04/2023,2304-00257,0.00,19.96,R,ADI-Gardiner Ltd,No
Http://opendatacommunities.org/id/metropolitan-district-council/leeds,Leeds City Council,30/04/2023,Resources,Leeds Building Services,Supplies and Services,Operational Materials,205,26/04/2023,2304-00258,0.00,147.80,R,ADI-Gardiner Ltd,No
Http://opendatacommunities.org/id/metropolitan-district-council/leeds,Leeds City Council,30/04/2023,Communities Housing and Environment,Benefits Wlefare and Poverty,Supplies and Services,Grant Related Expenditure,290,24/04/2023,2304-00259,0.00,650.00,R,REDACTED PERSONAL DATA,No
Http://opendatacommunities.org/id/metropolitan-district-council/leeds,Leeds City Council,30/04/2023,City Development,Libraries Arts & Heritage ,Supplies and Services,Publication And Promotion,267,07/03/2023,2304-00260,0.00,43.32,R,Adobe Creative Cloud,Yes
Http://opendatacommunities.org/id/metropolitan-district-council/leeds,Leeds City Council,30/04/2023,City Development,Libraries Arts & Heritage ,Supplies and Services,Publication And Promotion,267,07/04/2023,2304-00261,0.00,43.32,R,Adobe Creative Cloud,Yes
Http://opendatacommunities.org/id/metropolitan-district-council/leeds,Leeds City Council,30/04/2023,Children and Families,Social Care ,Supplies and Services,Teaching Materials,202,01/03/2023,2304-00262,0.00,15.17,R,Adobe Products,Yes
Http://opendatacommunities.org/id/metropolitan-district-council/leeds,Leeds City Council,30/04/2023,Resources,Commercial Services ,Supplies and Services,Teaching Materials,202,01/04/2023,2304-00263,0.00,15.17,R,Adobe Products,Yes
Http://opendatacommunities.org/id/metropolitan-district-council/leeds,Leeds City Council,30/04/2023,Adults and Health,Services For Adults Under 65 Mental/Dis,Agency Payments,Home Care,568,05/04/2023,2304-00264,0.00,536.00,R,Adopt Healthcare Ltd,No
Http://opendatacommunities.org/id/metropolitan-district-council/leeds,Leeds City Council,30/04/2023,Adults and Health,Services For Adults Under 65 Mental/Dis,Agency Payments,Home Care,568,05/04/2023,2304-00265,0.00,148.50,R,Adopt Healthcare Ltd,No
Http://opendatacommunities.org/id/metropolitan-district-council/leeds,Leeds City Council,30/04/2023,Adults and Health,Services For Adults Under 65 Mental/Dis,Agency Payments,Home Care,568,12/04/2023,2304-00266,0.00,536.00,R,Adopt Healthcare Ltd,No
Http://opendatacommunities.org/id/metropolitan-district-council/leeds,Leeds City Council,30/04/2023,Adults and Health,Services For Adults Under 65 Mental/Dis,Agency Payments,Home Care,568,12/04/2023,2304-00267,0.00,148.50,R,Adopt Healthcare Ltd,No
Http://opendatacommunities.org/id/metropolitan-district-council/leeds,Leeds City Council,30/04/2023,Adults and Health,Services For Adults Under 65 Mental/Dis,Agency Payments,Home Care,568,19/04/2023,2304-00268,0.00,536.00,R,Adopt Healthcare Ltd,No
Http://opendatacommunities.org/id/metropolitan-district-council/leeds,Leeds City Council,30/04/2023,Adults and Health,Services For Adults Under 65 Mental/Dis,Agency Payments,Home Care,568,19/04/2023,2304-00269,0.00,148.50,R,Adopt Healthcare Ltd,No
Http://opendatacommunities.org/id/metropolitan-district-council/leeds,Leeds City Council,30/04/2023,Adults and Health,Services For Adults Under 65 Mental/Dis,Agency Payments,Home Care,568,26/04/2023,2304-00270,0.00,536.00,R,Adopt Healthcare Ltd,No
Http://opendatacommunities.org/id/metropolitan-district-council/leeds,Leeds City Council,30/04/2023,Adults and Health,Services For Adults Under 65 Mental/Dis,Agency Payments,Home Care,568,26/04/2023,2304-00271,0.00,148.50,R,Adopt Healthcare Ltd,No
Http://opendatacommunities.org/id/metropolitan-district-council/leeds,Leeds City Council,30/04/2023,Children and Families,Social Care ,Agency Payments,Contact,548,03/04/2023,2304-00272,0.00,3.75,R,Adrenaline,Yes
Http://opendatacommunities.org/id/metropolitan-district-council/leeds,Leeds City Council as Accountable Body,30/04/2023,Social Services Pooled Budgets,Jcs For People With Learning Disabilitie,Agency Payments,Residential,580,26/04/2023,2304-00273,0.00,2609.36,R,ADRIAN HOUSE,No
Http://opendatacommunities.org/id/metropolitan-district-council/leeds,Leeds City Council,30/04/2023,Resources,Facilities Management ,Premises,Premises Security Services,162,24/04/2023,2304-00274,0.00,325.01,R,Adt Fire And Security,Yes
Http://opendatacommunities.org/id/metropolitan-district-council/leeds,Leeds City Council,30/04/2023,Resources,Facilities Management ,Premises,Premises Security Services,162,24/04/2023,2304-00275,0.00,325.01,R,Adt Fire And Security,Yes
Http://opendatacommunities.org/id/metropolitan-district-council/leeds,Leeds City Council,30/04/2023,Resources,Facilities Management ,Premises,Premises Security Services,162,24/04/2023,2304-00276,0.00,582.38,R,Adt Fire And Security,Yes
Http://opendatacommunities.org/id/metropolitan-district-council/leeds,Leeds City Council,30/04/2023,Strategic Landlord,Property and Contracts,Premises,General Maintenance,104,26/04/2023,2304-00277,0.00,596.49,R,ADT Fire And Security Plc,No
Http://opendatacommunities.org/id/metropolitan-district-council/leeds,Leeds City Council,30/04/2023,City Development,Recreation,Supplies and Services,External Audit Fees,261,06/04/2023,2304-00278,0.00,135.00,R,ADVANCE STOCKS LTD,No
Http://opendatacommunities.org/id/metropolitan-district-council/leeds,Leeds City Council,30/04/2023,Children and Families,Social Care,Internal Recharges,Legal Disbursements,411,03/04/2023,2304-00279,0.00,385.00,R,ADVANCED CHILD CARE ASSESSMENTS LTD,No
Http://opendatacommunities.org/id/metropolitan-district-council/leeds,Leeds City Council,30/04/2023,Children and Families,Social Care,Internal Recharges,Legal Disbursements,411,05/04/2023,2304-00280,0.00,145.07,R,ADVANCED CHILD CARE ASSESSMENTS LTD,No
Http://opendatacommunities.org/id/metropolitan-district-council/leeds,Leeds City Council,30/04/2023,Children and Families,Social Care,Internal Recharges,Legal Disbursements,411,21/04/2023,2304-00281,0.00,294.47,R,ADVANCED CHILD CARE ASSESSMENTS LTD,No
Http://opendatacommunities.org/id/metropolitan-district-council/leeds,Leeds City Council as Accountable Body,30/04/2023,Social Services Pooled Budgets,Jcs For People With Learning Disabilitie,Agency Payments,Home Care,568,13/04/2023,2304-00282,0.00,6108.30,R,Advantage Healthcare Ltd,No
Http://opendatacommunities.org/id/metropolitan-district-council/leeds,Leeds City Council,30/04/2023,Children and Families,Social Care ,Supplies and Services,Operational Materials,205,17/03/2023,2304-00283,0.00,864.69,R,Adventure Climb Rescue,Yes
Http://opendatacommunities.org/id/metropolitan-district-council/leeds,Leeds City Council,30/04/2023,City Development,Highways,Capital,OTHER COSTS,7,03/04/2023,2304-00284,0.00,30274.81,C,Aecom Limited,No
Http://opendatacommunities.org/id/metropolitan-district-council/leeds,Leeds City Council,30/04/2023,City Development,Asset Management,Capital,OTHER COSTS,7,04/04/2023,2304-00285,0.00,1251.99,C,Aecom Limited,No
Http://opendatacommunities.org/id/metropolitan-district-council/leeds,Leeds City Council,30/04/2023,City Development,Highways,Supplies and Services,Other Hired And Contracted Services,265,05/04/2023,2304-00286,0.00,2212.09,R,Aecom Limited,No
Http://opendatacommunities.org/id/metropolitan-district-council/leeds,Leeds City Council,30/04/2023,City Development,Highways,Capital,OTHER COSTS,7,05/04/2023,2304-00287,0.00,93571.46,C,Aecom Limited,No
Http://opendatacommunities.org/id/metropolitan-district-council/leeds,Leeds City Council,30/04/2023,City Development,Highways,Capital,OTHER COSTS,7,05/04/2023,2304-00288,0.00,109337.10,C,Aecom Limited,No
Http://opendatacommunities.org/id/metropolitan-district-council/leeds,Leeds City Council,30/04/2023,City Development,Asset Management,Capital,OTHER COSTS,7,14/04/2023,2304-00289,0.00,2813.01,C,Aecom Limited,No
Http://opendatacommunities.org/id/metropolitan-district-council/leeds,Leeds City Council,30/04/2023,Adults and Health,Services For Older People Under 65 P/Dis,Agency Payments,Home Care,568,05/04/2023,2304-00290,0.00,11710.47,R,Aegis Care Solutions Ltd,No
Http://opendatacommunities.org/id/metropolitan-district-council/leeds,Leeds City Council,30/04/2023,Adults and Health,Services For Older People - 65 And Over,Agency Payments,Home Care,568,05/04/2023,2304-00291,0.00,40197.36,R,Aegis Care Solutions Ltd,No
Http://opendatacommunities.org/id/metropolitan-district-council/leeds,Leeds City Council,30/04/2023,Adults and Health,Services For Adults Under 65 Mental/Dis,Agency Payments,HCAIT Community Support,575,05/04/2023,2304-00292,0.00,61.47,R,Aegis Care Solutions Ltd,No
Http://opendatacommunities.org/id/metropolitan-district-council/leeds,Leeds City Council,30/04/2023,Adults and Health,Services For Older People - 65 And Over,Agency Payments,HCAIT Community Support,575,05/04/2023,2304-00293,0.00,327.84,R,Aegis Care Solutions Ltd,No
Http://opendatacommunities.org/id/metropolitan-district-council/leeds,Leeds City Council,30/04/2023,Adults and Health,Services For Older People - 65 And Over,Agency Payments,HCAIT Other,577,05/04/2023,2304-00294,0.00,4325.19,R,Aegis Care Solutions Ltd,No
Http://opendatacommunities.org/id/metropolitan-district-council/leeds,Leeds City Council as Accountable Body,30/04/2023,Social Services Pooled Budgets,Jcs For People With Learning Disabilitie,Agency Payments,Home Care,568,05/04/2023,2304-00295,0.00,5040.56,R,Aegis Care Solutions Ltd,No
Http://opendatacommunities.org/id/metropolitan-district-council/leeds,Leeds City Council,30/04/2023,Adults and Health,Services For Older People - 65 And Over,Agency Payments,Home Care,568,26/04/2023,2304-00296,0.00,38964.72,R,Aegis Care Solutions Ltd,No
Http://opendatacommunities.org/id/metropolitan-district-council/leeds,Leeds City Council,30/04/2023,Adults and Health,Services For Older People Under 65 P/Dis,Agency Payments,Home Care,568,26/04/2023,2304-00297,0.00,12530.48,R,Aegis Care Solutions Ltd,No
Http://opendatacommunities.org/id/metropolitan-district-council/leeds,Leeds City Council,30/04/2023,Adults and Health,Services For Adults Under 65 Mental/Dis,Agency Payments,HCAIT Community Support,575,26/04/2023,2304-00298,0.00,245.88,R,Aegis Care Solutions Ltd,No
Http://opendatacommunities.org/id/metropolitan-district-council/leeds,Leeds City Council,30/04/2023,Adults and Health,Services For Older People - 65 And Over,Agency Payments,HCAIT Community Support,575,26/04/2023,2304-00299,0.00,327.84,R,Aegis Care Solutions Ltd,No
Http://opendatacommunities.org/id/metropolitan-district-council/leeds,Leeds City Council,30/04/2023,Adults and Health,Services For Older People - 65 And Over,Agency Payments,HCAIT Other,577,26/04/2023,2304-00300,0.00,1927.66,R,Aegis Care Solutions Ltd,No
Http://opendatacommunities.org/id/metropolitan-district-council/leeds,Leeds City Council as Accountable Body,30/04/2023,Social Services Pooled Budgets,Jcs For People With Learning Disabilitie,Agency Payments,Home Care,568,26/04/2023,2304-00301,0.00,5040.56,R,Aegis Care Solutions Ltd,No
Http://opendatacommunities.org/id/metropolitan-district-council/leeds,Leeds City Council as Accountable Body,30/04/2023,Social Services Pooled Budgets,Jcs For People With Learning Disabilitie,Agency Payments,Day Centre,564,06/04/2023,2304-00302,0.00,8201.15,R,Affinity Trust,No
Http://opendatacommunities.org/id/metropolitan-district-council/leeds,Leeds City Council as Accountable Body,30/04/2023,Social Services Pooled Budgets,Jcs For People With Learning Disabilitie,Agency Payments,Sheltered Accommodation,569,26/04/2023,2304-00303,0.00,116933.60,R,Affinity Trust North Divisional Office,No
Http://opendatacommunities.org/id/metropolitan-district-council/leeds,Leeds City Council,30/04/2023,Communities Housing and Environment,Parks and Countryside ,Transport,Hire Of Movable Plant & Machinery,315,09/03/2023,2304-00304,0.00,6010.00,R,Afi Uplift,Yes
Http://opendatacommunities.org/id/metropolitan-district-council/leeds,Leeds City Council,30/04/2023,Communities Housing and Environment,Parks and Countryside ,Transport,Hire Of Movable Plant & Machinery,315,19/04/2023,2304-00305,0.00,4750.00,R,Afi Uplift,Yes
Http://opendatacommunities.org/id/metropolitan-district-council/leeds,Leeds City Council,30/04/2023,Children and Families,Social Care,Agency Payments,Placement Support,550,06/04/2023,2304-00306,0.00,360.00,R,AFRUCA - Safeguarding Children,No
Http://opendatacommunities.org/id/metropolitan-district-council/leeds,Leeds City Council,30/04/2023,Adults and Health,Services For Older People - 65 And Over,Agency Payments,Payments To Voluntary Organisations,561,03/04/2023,2304-00307,0.00,9539.75,R,Age Uk Leeds,No
Http://opendatacommunities.org/id/metropolitan-district-council/leeds,Leeds City Council,30/04/2023,Communities Housing and Environment,Communities,Supplies and Services,Other Hired And Contracted Services,265,14/04/2023,2304-00308,0.00,145.00,R,Age Uk Leeds,No
Http://opendatacommunities.org/id/metropolitan-district-council/leeds,Leeds City Council,30/04/2023,City Development,Highways,Capital,CONSTRUCTION,3,03/04/2023,2304-00309,0.00,8651.90,C,AGGREGATE INDUSTRIES UK LTD,No
Http://opendatacommunities.org/id/metropolitan-district-council/leeds,Leeds City Council,30/04/2023,City Development,Highways,Supplies and Services,Operational Materials,205,13/04/2023,2304-00310,0.00,98.60,R,AGGREGATE INDUSTRIES UK LTD,No
Http://opendatacommunities.org/id/metropolitan-district-council/leeds,Leeds City Council,30/04/2023,City Development,Highways,Supplies and Services,Operational Materials,205,14/04/2023,2304-00311,0.00,1676.91,R,AGGREGATE INDUSTRIES UK LTD,No
Http://opendatacommunities.org/id/metropolitan-district-council/leeds,Leeds City Council,30/04/2023,City Development,Highways,Supplies and Services,Operational Materials,205,14/04/2023,2304-00312,0.00,5010.35,R,AGGREGATE INDUSTRIES UK LTD,No
Http://opendatacommunities.org/id/metropolitan-district-council/leeds,Leeds City Council,30/04/2023,City Development,Highways,Supplies and Services,Operational Materials,205,19/04/2023,2304-00313,0.00,2562.09,R,AGGREGATE INDUSTRIES UK LTD,No
Http://opendatacommunities.org/id/metropolitan-district-council/leeds,Leeds City Council,30/04/2023,City Development,Highways,Supplies and Services,Operational Materials,205,20/04/2023,2304-00314,0.00,94.40,R,AGGREGATE INDUSTRIES UK LTD,No
Http://opendatacommunities.org/id/metropolitan-district-council/leeds,Leeds City Council,30/04/2023,City Development,Highways,Supplies and Services,Operational Materials,205,20/04/2023,2304-00315,0.00,4729.41,R,AGGREGATE INDUSTRIES UK LTD,No
Http://opendatacommunities.org/id/metropolitan-district-council/leeds,Leeds City Council,30/04/2023,City Development,Highways,Supplies and Services,Operational Materials,205,20/04/2023,2304-00316,0.00,220.00,R,AGGREGATE INDUSTRIES UK LTD,No
Http://opendatacommunities.org/id/metropolitan-district-council/leeds,Leeds City Council,30/04/2023,City Development,Highways,Supplies and Services,Operational Materials,205,20/04/2023,2304-00317,0.00,3478.89,R,AGGREGATE INDUSTRIES UK LTD,No
Http://opendatacommunities.org/id/metropolitan-district-council/leeds,Leeds City Council,30/04/2023,City Development,Highways,Supplies and Services,Operational Materials,205,21/04/2023,2304-00318,0.00,3476.11,R,AGGREGATE INDUSTRIES UK LTD,No
Http://opendatacommunities.org/id/metropolitan-district-council/leeds,Leeds City Council,30/04/2023,City Development,Highways,Supplies and Services,Operational Materials,205,21/04/2023,2304-00319,0.00,3445.51,R,AGGREGATE INDUSTRIES UK LTD,No
Http://opendatacommunities.org/id/metropolitan-district-council/leeds,Leeds City Council,30/04/2023,City Development,Highways,Supplies and Services,Operational Materials,205,26/04/2023,2304-00320,0.00,-1357.62,R,AGGREGATE INDUSTRIES UK LTD,No
Http://opendatacommunities.org/id/metropolitan-district-council/leeds,Leeds City Council,30/04/2023,City Development,Highways,Supplies and Services,Operational Materials,205,26/04/2023,2304-00321,0.00,2715.24,R,AGGREGATE INDUSTRIES UK LTD,No
Http://opendatacommunities.org/id/metropolitan-district-council/leeds,Leeds City Council,30/04/2023,City Development,Highways,Supplies and Services,Operational Materials,205,27/04/2023,2304-00322,0.00,6787.50,R,AGGREGATE INDUSTRIES UK LTD,No
Http://opendatacommunities.org/id/metropolitan-district-council/leeds,Leeds City Council,30/04/2023,City Development,Highways,Supplies and Services,Operational Materials,205,27/04/2023,2304-00323,0.00,6641.40,R,AGGREGATE INDUSTRIES UK LTD,No
Http://opendatacommunities.org/id/metropolitan-district-council/leeds,Leeds City Council,30/04/2023,City Development,Highways,Supplies and Services,Operational Materials,205,28/04/2023,2304-00324,0.00,101.20,R,AGGREGATE INDUSTRIES UK LTD,No
Http://opendatacommunities.org/id/metropolitan-district-council/leeds,Leeds City Council,30/04/2023,City Development,Highways,Supplies and Services,Operational Materials,205,28/04/2023,2304-00325,0.00,102.93,R,AGGREGATE INDUSTRIES UK LTD,No
Http://opendatacommunities.org/id/metropolitan-district-council/leeds,Leeds City Council,30/04/2023,City Development,Highways,Supplies and Services,Operational Materials,205,28/04/2023,2304-00326,0.00,85.80,R,AGGREGATE INDUSTRIES UK LTD,No
Http://opendatacommunities.org/id/metropolitan-district-council/leeds,Leeds City Council,30/04/2023,Communities Housing and Environment,Customer Access,Supplies and Services,Bought In Professional Services,277,05/04/2023,2304-00327,0.00,18.00,R,Agnieszka J Collier,No
Http://opendatacommunities.org/id/metropolitan-district-council/leeds,Leeds City Council,30/04/2023,Communities Housing and Environment,Customer Access,Supplies and Services,Bought In Professional Services,277,26/04/2023,2304-00328,0.00,18.00,R,Agnieszka J Collier,No
Http://opendatacommunities.org/id/metropolitan-district-council/leeds,Leeds City Council,30/04/2023,Communities Housing and Environment,Parks and Countryside ,Supplies and Services,Operational Materials,205,23/03/2023,2304-00329,0.00,180.00,R,Agridirect,Yes
Http://opendatacommunities.org/id/metropolitan-district-council/leeds,Leeds City Council,30/04/2023,Communities Housing and Environment,Parks and Countryside ,Supplies and Services,Office Consumables,210,06/04/2023,2304-00330,0.00,180.00,R,Agridirect,Yes
Http://opendatacommunities.org/id/metropolitan-district-council/leeds,Leeds City Council,30/04/2023,Communities Housing and Environment,Parks and Countryside ,Supplies and Services,Office Consumables,210,06/04/2023,2304-00331,0.00,95.00,R,Agridirect,Yes
Http://opendatacommunities.org/id/metropolitan-district-council/leeds,Leeds City Council,30/04/2023,Communities Housing and Environment,Waste Management ,Supplies and Services,Conference Meetings,253,24/04/2023,2304-00332,0.00,45.00,R,Ahi.Org.Uk,Yes
Http://opendatacommunities.org/id/metropolitan-district-council/leeds,Leeds City Council,30/04/2023,Communities Housing and Environment,Customer Access,Supplies and Services,Bought In Professional Services,277,19/04/2023,2304-00333,0.00,18.00,R,Ahmed Moustafa Moustafa Mousa,No
Http://opendatacommunities.org/id/metropolitan-district-council/leeds,Leeds City Council as Accountable Body,30/04/2023,Social Services Pooled Budgets,Leeds Community Equip Store Pooled Budgt,Supplies and Services,Other Equipment,203,21/04/2023,2304-00334,0.00,-30.00,R,AIDAPT BATHROOMS LTD,No
Http://opendatacommunities.org/id/metropolitan-district-council/leeds,Leeds City Council as Accountable Body,30/04/2023,Social Services Pooled Budgets,Leeds Community Equip Store Pooled Budgt,Supplies and Services,Other Equipment,203,21/04/2023,2304-00335,0.00,130.00,R,AIDAPT BATHROOMS LTD,No
Http://opendatacommunities.org/id/metropolitan-district-council/leeds,Leeds City Council as Accountable Body,30/04/2023,Social Services Pooled Budgets,Leeds Community Equip Store Pooled Budgt,Supplies and Services,Other Equipment,203,21/04/2023,2304-00336,0.00,650.00,R,AIDAPT BATHROOMS LTD,No
Http://opendatacommunities.org/id/metropolitan-district-council/leeds,Leeds City Council as Accountable Body,30/04/2023,Social Services Pooled Budgets,Leeds Community Equip Store Pooled Budgt,Supplies and Services,Other Equipment,203,28/04/2023,2304-00337,0.00,810.00,R,AIDAPT BATHROOMS LTD,No
Http://opendatacommunities.org/id/metropolitan-district-council/leeds,Leeds City Council,30/04/2023,Strategic Accounts,Miscellaneous,Appropriations,Land Drainage Levies,665,28/04/2023,2304-00338,0.00,4329.65,R,Ainsty (2008) Internal Drainage Board,No
Http://opendatacommunities.org/id/metropolitan-district-council/leeds,Leeds City Council,30/04/2023,Children and Families,Social Care ,Appropriations,Leaving Care Allowances,634,06/04/2023,2304-00339,0.00,10.06,R,Ainsworth Arms,Yes
Http://opendatacommunities.org/id/metropolitan-district-council/leeds,Leeds City Council,30/04/2023,Resources,Leeds Building Services,Supplies and Services,Operational Materials,205,05/04/2023,2304-00340,0.00,97.04,R,Air Conditioning Accessories,No
Http://opendatacommunities.org/id/metropolitan-district-council/leeds,Leeds City Council,30/04/2023,Resources,Commercial Services ,Supplies and Services,Operational Materials,205,25/04/2023,2304-00341,0.00,304.50,R,Air Force Pneumatics And,Yes
Http://opendatacommunities.org/id/metropolitan-district-council/leeds,Leeds City Council,30/04/2023,City Development,Libraries Arts & Heritage ,Transport,Public Transport Expenses,310,24/04/2023,2304-00342,0.00,574.50,R,Airbnb * Hm2zbmweqw,Yes
Http://opendatacommunities.org/id/metropolitan-district-council/leeds,Leeds City Council,30/04/2023,Children and Families,Social Care ,Supplies and Services,Holidays-  Service Users,284,05/04/2023,2304-00343,0.00,1680.00,R,Airbnb * Hm3z5y8z48,Yes
Http://opendatacommunities.org/id/metropolitan-district-council/leeds,Leeds City Council,30/04/2023,Children and Families,Social Care ,Transport,Public Transport Expenses,310,06/04/2023,2304-00344,0.00,1556.80,R,Airbnb * Hmbehqp35y,Yes
Http://opendatacommunities.org/id/metropolitan-district-council/leeds,Leeds City Council,30/04/2023,Children and Families,Social Care ,Transport,Public Transport Expenses,310,06/04/2023,2304-00345,0.00,2161.07,R,Airbnb * Hmhtfdyazd,Yes
Http://opendatacommunities.org/id/metropolitan-district-council/leeds,Leeds City Council,30/04/2023,Children and Families,Social Care ,Transport,Public Transport Expenses,310,21/03/2023,2304-00346,0.00,509.17,R,Airbnb * Hmkknrf8ct,Yes
Http://opendatacommunities.org/id/metropolitan-district-council/leeds,Leeds City Council,30/04/2023,Children and Families,Social Care ,Supplies and Services,Holidays-  Service Users,284,29/03/2023,2304-00347,0.00,726.02,R,Airbnb * Hmthc9ezxt,Yes
Http://opendatacommunities.org/id/metropolitan-district-council/leeds,Leeds City Council,30/04/2023,Communities Housing and Environment,Parks and Countryside,Supplies and Services,Other Hired And Contracted Services,265,06/04/2023,2304-00348,0.00,375.00,R,Aire Valley Tree Services Ltd,No
Http://opendatacommunities.org/id/metropolitan-district-council/leeds,Leeds City Council,30/04/2023,Communities Housing and Environment,Parks and Countryside,Supplies and Services,Other Hired And Contracted Services,265,12/04/2023,2304-00349,0.00,245.00,R,Aire Valley Tree Services Ltd,No
Http://opendatacommunities.org/id/metropolitan-district-council/leeds,Leeds City Council,30/04/2023,Communities Housing and Environment,Parks and Countryside,Supplies and Services,Other Hired And Contracted Services,265,12/04/2023,2304-00350,0.00,700.00,R,Aire Valley Tree Services Ltd,No
Http://opendatacommunities.org/id/metropolitan-district-council/leeds,Leeds City Council,30/04/2023,Communities Housing and Environment,Parks and Countryside,Supplies and Services,Other Hired And Contracted Services,265,12/04/2023,2304-00351,0.00,1589.00,R,Aire Valley Tree Services Ltd,No
Http://opendatacommunities.org/id/metropolitan-district-council/leeds,Leeds City Council,30/04/2023,Communities Housing and Environment,Parks and Countryside,Supplies and Services,Other Hired And Contracted Services,265,20/04/2023,2304-00352,0.00,1195.00,R,Aire Valley Tree Services Ltd,No
Http://opendatacommunities.org/id/metropolitan-district-council/leeds,Leeds City Council,30/04/2023,Adults and Health,Services For Older People - 65 And Over,Agency Payments,Residential Care Dementia,571,26/04/2023,2304-00353,0.00,60830.24,R,Aire View Residential Home,No
Http://opendatacommunities.org/id/metropolitan-district-council/leeds,Leeds City Council,30/04/2023,Adults and Health,Services For Older People - 65 And Over,Agency Payments,Residential,580,26/04/2023,2304-00354,0.00,5747.56,R,Aire View Residential Home,No
Http://opendatacommunities.org/id/metropolitan-district-council/leeds,Leeds City Council,30/04/2023,City Development,Recreation ,Supplies and Services,Other Hired And Contracted Services,265,11/04/2023,2304-00355,0.00,5.60,R,Aireborough Leisure Centr,Yes
Http://opendatacommunities.org/id/metropolitan-district-council/leeds,Leeds City Council,30/04/2023,Children and Families,Social Care,Agency Payments,Services Rendered By Voluntary Sector,505,03/04/2023,2304-00356,0.00,30000.00,R,Aireborough Supported Activities Scheme,No
Http://opendatacommunities.org/id/metropolitan-district-council/leeds,Leeds City Council,30/04/2023,Children and Families,Social Care,Agency Payments,Services Rendered By Voluntary Sector,505,03/04/2023,2304-00357,0.00,25631.00,R,Aireborough Supported Activities Scheme,No
Http://opendatacommunities.org/id/metropolitan-district-council/leeds,Leeds City Council,30/04/2023,Children and Families,Social Care,Supplies and Services,Operational Furniture And Equipment,203,12/04/2023,2304-00358,0.00,-90.00,R,AIREDALE CATERING EQUIPMENT LTD,No
Http://opendatacommunities.org/id/metropolitan-district-council/leeds,Leeds City Council,30/04/2023,Adults and Health,Services For Older People - 65 And Over,Agency Payments,Residential Care Dementia,571,26/04/2023,2304-00359,0.00,23276.77,R,Airedale Residential Home,No
Http://opendatacommunities.org/id/metropolitan-district-council/leeds,Leeds City Council,30/04/2023,Adults and Health,Services For Older People Under 65 P/Dis,Agency Payments,Residential Care Dementia,571,26/04/2023,2304-00360,0.00,1555.14,R,Airedale Residential Home,No
Http://opendatacommunities.org/id/metropolitan-district-council/leeds,Leeds City Council,30/04/2023,Adults and Health,Services For Older People - 65 And Over,Agency Payments,Residential,580,26/04/2023,2304-00361,0.00,32210.69,R,Airedale Residential Home,No
Http://opendatacommunities.org/id/metropolitan-district-council/leeds,Leeds City Council,30/04/2023,Communities Housing and Environment,Parks and Countryside,Supplies and Services,Consultancy Services,259,28/04/2023,2304-00362,0.00,500.00,R,Airedon Limited,No
Http://opendatacommunities.org/id/metropolitan-district-council/leeds,Leeds City Council,30/04/2023,Children and Families,Social Care ,Agency Payments,Contact,548,11/04/2023,2304-00363,0.00,51.00,R,Airhop Bristol,Yes
Http://opendatacommunities.org/id/metropolitan-district-council/leeds,Leeds City Council,30/04/2023,Strategic Landlord,Property and Contracts ,Appropriations,Disrepair Provision,644,20/03/2023,2304-00364,0.00,23.45,R,Airpay 41787676-Roadrunne,Yes
Http://opendatacommunities.org/id/metropolitan-district-council/leeds,Leeds City Council,30/04/2023,Strategic Landlord,Housing Management ,Transport,Public Transport Expenses,310,03/04/2023,2304-00365,0.00,8.95,R,Airpay 41983031-Roadrunne,Yes
Http://opendatacommunities.org/id/metropolitan-district-council/leeds,Leeds City Council,30/04/2023,Strategic Landlord,Housing Management ,Transport,Public Transport Expenses,310,03/04/2023,2304-00366,0.00,28.95,R,Airpay 41985684-Roadrunne,Yes
Http://opendatacommunities.org/id/metropolitan-district-council/leeds,Leeds City Council,30/04/2023,Children and Families,Social Care ,Appropriations,Leaving Care Allowances,634,28/02/2023,2304-00367,0.00,19.15,R,Airpay 45676626-Amber Car,Yes
Http://opendatacommunities.org/id/metropolitan-district-council/leeds,Leeds City Council,30/04/2023,Children and Families,Social Care ,Appropriations,Leaving Care Allowances,634,02/03/2023,2304-00368,0.00,20.55,R,Airpay 45704658-Amber Car,Yes
Http://opendatacommunities.org/id/metropolitan-district-council/leeds,Leeds City Council,30/04/2023,Children and Families,Social Care ,Agency Payments,Contact,548,03/03/2023,2304-00369,0.00,6.05,R,Airpay 45704985-Amber Car,Yes
Http://opendatacommunities.org/id/metropolitan-district-council/leeds,Leeds City Council,30/04/2023,Children and Families,Social Care ,Agency Payments,Contact,548,03/03/2023,2304-00370,0.00,6.15,R,Airpay 45718498-Amber Car,Yes
Http://opendatacommunities.org/id/metropolitan-district-council/leeds,Leeds City Council,30/04/2023,Children and Families,Social Care ,Appropriations,Leaving Care Allowances,634,04/03/2023,2304-00371,0.00,17.85,R,Airpay 45724982-Amber Car,Yes
Http://opendatacommunities.org/id/metropolitan-district-council/leeds,Leeds City Council,30/04/2023,Children and Families,Social Care ,Appropriations,Leaving Care Allowances,634,04/03/2023,2304-00372,0.00,21.75,R,Airpay 45725079-Amber Car,Yes
Http://opendatacommunities.org/id/metropolitan-district-council/leeds,Leeds City Council,30/04/2023,Children and Families,Social Care ,Appropriations,Leaving Care Allowances,634,04/03/2023,2304-00373,0.00,13.75,R,Airpay 45729246-Amber Car,Yes
Http://opendatacommunities.org/id/metropolitan-district-council/leeds,Leeds City Council,30/04/2023,Children and Families,Social Care ,Appropriations,Leaving Care Allowances,634,04/03/2023,2304-00374,0.00,17.95,R,Airpay 45735542-Amber Car,Yes
Http://opendatacommunities.org/id/metropolitan-district-council/leeds,Leeds City Council,30/04/2023,Children and Families,Social Care ,Appropriations,Leaving Care Allowances,634,05/03/2023,2304-00375,0.00,18.15,R,Airpay 45740054-Amber Car,Yes
Http://opendatacommunities.org/id/metropolitan-district-council/leeds,Leeds City Council,30/04/2023,Children and Families,Social Care ,Appropriations,Leaving Care Allowances,634,05/03/2023,2304-00376,0.00,16.75,R,Airpay 45740126-Amber Car,Yes
Http://opendatacommunities.org/id/metropolitan-district-council/leeds,Leeds City Council,30/04/2023,Children and Families,Social Care ,Appropriations,Leaving Care Allowances,634,06/03/2023,2304-00377,0.00,15.95,R,Airpay 45756365-Amber Car,Yes
Http://opendatacommunities.org/id/metropolitan-district-council/leeds,Leeds City Council,30/04/2023,Children and Families,Social Care ,Agency Payments,Section 17,551,08/03/2023,2304-00378,0.00,10.25,R,Airpay 45786267-Amber Car,Yes
Http://opendatacommunities.org/id/metropolitan-district-council/leeds,Leeds City Council,30/04/2023,Children and Families,Social Care ,Transport,Public Transport Expenses,310,09/03/2023,2304-00379,0.00,10.21,R,Airpay 45788145-Amber Car,Yes
Http://opendatacommunities.org/id/metropolitan-district-council/leeds,Leeds City Council,30/04/2023,Children and Families,Social Care ,Agency Payments,Placement Support,550,13/03/2023,2304-00380,0.00,25.85,R,Airpay 45847655-Amber Car,Yes
Http://opendatacommunities.org/id/metropolitan-district-council/leeds,Leeds City Council,30/04/2023,Children and Families,Social Care ,Agency Payments,Placement Support,550,15/03/2023,2304-00381,0.00,15.85,R,Airpay 45862535-Amber Car,Yes
Http://opendatacommunities.org/id/metropolitan-district-council/leeds,Leeds City Council,30/04/2023,Children and Families,Social Care ,Agency Payments,Placement Support,550,15/03/2023,2304-00382,0.00,16.05,R,Airpay 45868374-Amber Car,Yes
Http://opendatacommunities.org/id/metropolitan-district-council/leeds,Leeds City Council,30/04/2023,Children and Families,Social Care ,Agency Payments,Placement Support,550,21/03/2023,2304-00383,0.00,17.85,R,Airpay 45955075-Amber Car,Yes
Http://opendatacommunities.org/id/metropolitan-district-council/leeds,Leeds City Council,30/04/2023,Children and Families,Social Care ,Agency Payments,Placement Support,550,22/03/2023,2304-00384,0.00,20.75,R,Airpay 45955241-Amber Car,Yes
Http://opendatacommunities.org/id/metropolitan-district-council/leeds,Leeds City Council,30/04/2023,Children and Families,Social Care ,Transport,Public Transport Expenses,310,22/03/2023,2304-00385,0.00,5.12,R,Airpay 45963540-Amber Car,Yes
Http://opendatacommunities.org/id/metropolitan-district-council/leeds,Leeds City Council,30/04/2023,Children and Families,Social Care ,Transport,Public Transport Expenses,310,22/03/2023,2304-00386,0.00,4.62,R,Airpay 45969925-Amber Car,Yes
Http://opendatacommunities.org/id/metropolitan-district-council/leeds,Leeds City Council,30/04/2023,Children and Families,Social Care ,Transport,Public Transport Expenses,310,22/03/2023,2304-00387,0.00,4.54,R,Airpay 45969926-Amber Car,Yes
Http://opendatacommunities.org/id/metropolitan-district-council/leeds,Leeds City Council,30/04/2023,Children and Families,Social Care ,Transport,Public Transport Expenses,310,22/03/2023,2304-00388,0.00,4.54,R,Airpay 45969927-Amber Car,Yes
Http://opendatacommunities.org/id/metropolitan-district-council/leeds,Leeds City Council,30/04/2023,Children and Families,Social Care ,Transport,Public Transport Expenses,310,24/03/2023,2304-00389,0.00,14.37,R,Airpay 45975141-Amber Car,Yes
Http://opendatacommunities.org/id/metropolitan-district-council/leeds,Leeds City Council,30/04/2023,Children and Families,Social Care ,Appropriations,Young Peoples Activities,652,23/03/2023,2304-00390,0.00,7.95,R,Airpay 45979399-Amber Car,Yes
Http://opendatacommunities.org/id/metropolitan-district-council/leeds,Leeds City Council,30/04/2023,Children and Families,Social Care ,Transport,Public Transport Expenses,310,24/03/2023,2304-00391,0.00,15.29,R,Airpay 45991535-Amber Car,Yes
Http://opendatacommunities.org/id/metropolitan-district-council/leeds,Leeds City Council,30/04/2023,Children and Families,Social Care ,Transport,Public Transport Expenses,310,24/03/2023,2304-00392,0.00,14.62,R,Airpay 45994792-Amber Car,Yes
Http://opendatacommunities.org/id/metropolitan-district-council/leeds,Leeds City Council,30/04/2023,Children and Families,Social Care ,Transport,Public Transport Expenses,310,24/03/2023,2304-00393,0.00,16.96,R,Airpay 45998668-Amber Car,Yes
Http://opendatacommunities.org/id/metropolitan-district-council/leeds,Leeds City Council,30/04/2023,Children and Families,Social Care ,Transport,Public Transport Expenses,310,25/03/2023,2304-00394,0.00,17.12,R,Airpay 46004677-Amber Car,Yes
Http://opendatacommunities.org/id/metropolitan-district-council/leeds,Leeds City Council,30/04/2023,Children and Families,Social Care ,Agency Payments,Placement Support,550,29/03/2023,2304-00395,0.00,27.55,R,Airpay 46046608-Amber Car,Yes
Http://opendatacommunities.org/id/metropolitan-district-council/leeds,Leeds City Council,30/04/2023,Children and Families,Social Care ,Agency Payments,Placement Support,550,31/03/2023,2304-00396,0.00,12.65,R,Airpay 46069257-Amber Car,Yes
Http://opendatacommunities.org/id/metropolitan-district-council/leeds,Leeds City Council,30/04/2023,Children and Families,Social Care ,Agency Payments,Placement Support,550,31/03/2023,2304-00397,0.00,12.35,R,Airpay 46069258-Amber Car,Yes
Http://opendatacommunities.org/id/metropolitan-district-council/leeds,Leeds City Council,30/04/2023,Children and Families,Social Care ,Transport,Public Transport Expenses,310,31/03/2023,2304-00398,0.00,15.87,R,Airpay 46079407-Amber Car,Yes
Http://opendatacommunities.org/id/metropolitan-district-council/leeds,Leeds City Council,30/04/2023,Children and Families,Social Care ,Agency Payments,Placement Support,550,31/03/2023,2304-00399,0.00,25.35,R,Airpay 46083070-Amber Car,Yes
Http://opendatacommunities.org/id/metropolitan-district-council/leeds,Leeds City Council,30/04/2023,Children and Families,Social Care ,Agency Payments,Placement Support,550,31/03/2023,2304-00400,0.00,19.95,R,Airpay 46086554-Amber Car,Yes
Http://opendatacommunities.org/id/metropolitan-district-council/leeds,Leeds City Council,30/04/2023,Children and Families,Social Care ,Agency Payments,Placement Support,550,03/04/2023,2304-00401,0.00,13.05,R,Airpay 46087845-Amber Car,Yes
Http://opendatacommunities.org/id/metropolitan-district-council/leeds,Leeds City Council,30/04/2023,Children and Families,Social Care ,Appropriations,Young Peoples Activities,652,02/04/2023,2304-00402,0.00,12.65,R,Airpay 46113328-Amber Car,Yes
Http://opendatacommunities.org/id/metropolitan-district-council/leeds,Leeds City Council,30/04/2023,Children and Families,Social Care ,Appropriations,Young Peoples Activities,652,02/04/2023,2304-00403,0.00,12.35,R,Airpay 46115578-Amber Car,Yes
Http://opendatacommunities.org/id/metropolitan-district-council/leeds,Leeds City Council,30/04/2023,Children and Families,Social Care ,Transport,Public Transport Expenses,310,04/04/2023,2304-00404,0.00,4.45,R,Airpay 46139047-Amber Car,Yes
Http://opendatacommunities.org/id/metropolitan-district-council/leeds,Leeds City Council,30/04/2023,Children and Families,Social Care ,Agency Payments,Contact,548,06/04/2023,2304-00405,0.00,36.65,R,Airpay 46156827-Amber Car,Yes
Http://opendatacommunities.org/id/metropolitan-district-council/leeds,Leeds City Council,30/04/2023,Children and Families,Social Care ,Agency Payments,Contact,548,06/04/2023,2304-00406,0.00,37.45,R,Airpay 46156829-Amber Car,Yes
Http://opendatacommunities.org/id/metropolitan-district-council/leeds,Leeds City Council,30/04/2023,Children and Families,Social Care ,Agency Payments,Section 17,551,06/04/2023,2304-00407,0.00,7.85,R,Airpay 46159771-Amber Car,Yes
Http://opendatacommunities.org/id/metropolitan-district-council/leeds,Leeds City Council,30/04/2023,Children and Families,Social Care ,Transport,Public Transport Expenses,310,08/04/2023,2304-00408,0.00,5.62,R,Airpay 46185858-Amber Car,Yes
Http://opendatacommunities.org/id/metropolitan-district-council/leeds,Leeds City Council,30/04/2023,Children and Families,Social Care ,Transport,Public Transport Expenses,310,10/04/2023,2304-00409,0.00,21.75,R,Airpay 46210268-Amber Car,Yes
Http://opendatacommunities.org/id/metropolitan-district-council/leeds,Leeds City Council,30/04/2023,Children and Families,Social Care ,Transport,Public Transport Expenses,310,10/04/2023,2304-00410,0.00,24.85,R,Airpay 46217083-Amber Car,Yes
Http://opendatacommunities.org/id/metropolitan-district-council/leeds,Leeds City Council,30/04/2023,Children and Families,Social Care ,Agency Payments,Placement Support,550,11/04/2023,2304-00411,0.00,9.85,R,Airpay 46219668-Amber Car,Yes
Http://opendatacommunities.org/id/metropolitan-district-council/leeds,Leeds City Council,30/04/2023,Children and Families,Social Care ,Agency Payments,Contact,548,11/04/2023,2304-00412,0.00,33.75,R,Airpay 46220466-Amber Car,Yes
Http://opendatacommunities.org/id/metropolitan-district-council/leeds,Leeds City Council,30/04/2023,Children and Families,Social Care ,Agency Payments,Contact,548,11/04/2023,2304-00413,0.00,37.75,R,Airpay 46220467-Amber Car,Yes
Http://opendatacommunities.org/id/metropolitan-district-council/leeds,Leeds City Council,30/04/2023,Children and Families,Social Care ,Agency Payments,Section 17,551,12/04/2023,2304-00414,0.00,14.45,R,Airpay 46233433-Amber Car,Yes
Http://opendatacommunities.org/id/metropolitan-district-council/leeds,Leeds City Council,30/04/2023,Children and Families,Social Care ,Agency Payments,Section 17,551,12/04/2023,2304-00415,0.00,14.45,R,Airpay 46234490-Amber Car,Yes
Http://opendatacommunities.org/id/metropolitan-district-council/leeds,Leeds City Council,30/04/2023,Children and Families,Social Care ,Agency Payments,Contact,548,14/04/2023,2304-00416,0.00,38.15,R,Airpay 46253360-Amber Car,Yes
Http://opendatacommunities.org/id/metropolitan-district-council/leeds,Leeds City Council,30/04/2023,Children and Families,Social Care ,Agency Payments,Placement Support,550,14/04/2023,2304-00417,0.00,27.65,R,Airpay 46258175-Amber Car,Yes
Http://opendatacommunities.org/id/metropolitan-district-council/leeds,Leeds City Council,30/04/2023,Children and Families,Social Care ,Agency Payments,Placement Support,550,14/04/2023,2304-00418,0.00,27.15,R,Airpay 46258213-Amber Car,Yes
Http://opendatacommunities.org/id/metropolitan-district-council/leeds,Leeds City Council,30/04/2023,Children and Families,Social Care ,Appropriations,Leaving Care Allowances,634,15/04/2023,2304-00419,0.00,30.75,R,Airpay 46265927-Amber Car,Yes
Http://opendatacommunities.org/id/metropolitan-district-council/leeds,Leeds City Council,30/04/2023,Children and Families,Social Care ,Transport,Public Transport Expenses,310,17/04/2023,2304-00420,0.00,11.45,R,Airpay 46302679-Amber Car,Yes
Http://opendatacommunities.org/id/metropolitan-district-council/leeds,Leeds City Council,30/04/2023,Adults and Health,Services For Adults Under 65 Learn/Dis ,Transport,Public Transport Expenses,310,19/04/2023,2304-00421,0.00,10.35,R,Airpay 46323194-Amber Car,Yes
Http://opendatacommunities.org/id/metropolitan-district-council/leeds,Leeds City Council,30/04/2023,Children and Families,Social Care ,Agency Payments,Placement Support,550,20/04/2023,2304-00422,0.00,9.15,R,Airpay 46333043-Amber Car,Yes
Http://opendatacommunities.org/id/metropolitan-district-council/leeds,Leeds City Council,30/04/2023,Adults and Health,Services For Adults Under 65 Learn/Dis ,Transport,Public Transport Expenses,310,20/04/2023,2304-00423,0.00,9.35,R,Airpay 46334134-Amber Car,Yes
Http://opendatacommunities.org/id/metropolitan-district-council/leeds,Leeds City Council,30/04/2023,City Development,Recreation,Supplies and Services,Other Hired And Contracted Services,265,19/04/2023,2304-00424,0.00,585.00,R,Airspace Solutions.Com Limited,No
Http://opendatacommunities.org/id/metropolitan-district-council/leeds,Leeds City Council,30/04/2023,Adults and Health,Services For Adults Under 65 Mental/Dis,Internal Recharges,Legal Disbursements,411,14/04/2023,2304-00425,0.00,350.00,R,Aisling Campbell,No
Http://opendatacommunities.org/id/metropolitan-district-council/leeds,Leeds City Council,30/04/2023,Adults and Health,Services For Adults Under 65 Mental/Dis,Internal Recharges,Legal Disbursements,411,26/04/2023,2304-00426,0.00,1112.50,R,Aisling Campbell,No
Http://opendatacommunities.org/id/metropolitan-district-council/leeds,Leeds City Council,30/04/2023,Adults and Health,Services For Adults Under 65 Mental/Dis,Agency Payments,Fees - Level 4,520,06/04/2023,2304-00427,0.00,175.00,R,AIT Mitra Limited,No
Http://opendatacommunities.org/id/metropolitan-district-council/leeds,Leeds City Council,30/04/2023,Adults and Health,Services For Adults Under 65 Mental/Dis,Agency Payments,Fees - Level 4,520,06/04/2023,2304-00428,0.00,175.00,R,AIT Mitra Limited,No
Http://opendatacommunities.org/id/metropolitan-district-council/leeds,Leeds City Council,30/04/2023,Adults and Health,Services For Adults Under 65 Mental/Dis,Agency Payments,Fees - Level 4,520,06/04/2023,2304-00429,0.00,175.00,R,AIT Mitra Limited,No
Http://opendatacommunities.org/id/metropolitan-district-council/leeds,Leeds City Council,30/04/2023,Adults and Health,Services For Adults Under 65 Mental/Dis,Agency Payments,Fees - Level 4,520,28/04/2023,2304-00430,0.00,175.00,R,AIT Mitra Limited,No
Http://opendatacommunities.org/id/metropolitan-district-council/leeds,Leeds City Council as Accountable Body,30/04/2023,Social Services Pooled Budgets,Jcs For People With Learning Disabilitie,Agency Payments,Residential,580,26/04/2023,2304-00431,0.00,7037.80,R,AITCH care homes,No
Http://opendatacommunities.org/id/metropolitan-district-council/leeds,Leeds City Council,30/04/2023,Resources,Leeds Building Services ,Supplies and Services,Computer Software & Equipment,214,14/03/2023,2304-00432,0.00,29.77,R,Aj Parts UK Limited,Yes
Http://opendatacommunities.org/id/metropolitan-district-council/leeds,Leeds City Council,30/04/2023,Adults and Health,Services For Older People - 65 And Over ,Supplies and Services,Computer Software & Equipment,214,28/03/2023,2304-00433,0.00,43.25,R,Aj Parts UK Limited,Yes
Http://opendatacommunities.org/id/metropolitan-district-council/leeds,Leeds City Council,30/04/2023,Resources,Leeds Building Services,Premises,Cleaning Maintenance & Toiletries,127,06/04/2023,2304-00434,0.00,977.65,R,AJM FIXINGS & POWER TOOLS LTD,No
Http://opendatacommunities.org/id/metropolitan-district-council/leeds,Leeds City Council,30/04/2023,Resources,Leeds Building Services,Supplies and Services,Operational Furniture And Equipment,203,06/04/2023,2304-00435,0.00,618.16,R,AJM FIXINGS & POWER TOOLS LTD,No
Http://opendatacommunities.org/id/metropolitan-district-council/leeds,Leeds City Council,30/04/2023,Resources,Leeds Building Services,Supplies and Services,Operational Furniture And Equipment,203,06/04/2023,2304-00436,0.00,260.00,R,AJM FIXINGS & POWER TOOLS LTD,No
Http://opendatacommunities.org/id/metropolitan-district-council/leeds,Leeds City Council,30/04/2023,Resources,Leeds Building Services,Supplies and Services,Operational Furniture And Equipment,203,06/04/2023,2304-00437,0.00,289.99,R,AJM FIXINGS & POWER TOOLS LTD,No
Http://opendatacommunities.org/id/metropolitan-district-council/leeds,Leeds City Council,30/04/2023,Resources,Leeds Building Services,Premises,Cleaning Maintenance & Toiletries,127,06/04/2023,2304-00438,0.00,79.40,R,AJM FIXINGS & POWER TOOLS LTD,No
Http://opendatacommunities.org/id/metropolitan-district-council/leeds,Leeds City Council,30/04/2023,Resources,Leeds Building Services,Premises,Cleaning Maintenance & Toiletries,127,06/04/2023,2304-00439,0.00,55.02,R,AJM FIXINGS & POWER TOOLS LTD,No
Http://opendatacommunities.org/id/metropolitan-district-council/leeds,Leeds City Council,30/04/2023,Resources,Leeds Building Services,Supplies and Services,Operational Furniture And Equipment,203,06/04/2023,2304-00440,0.00,97.00,R,AJM FIXINGS & POWER TOOLS LTD,No
Http://opendatacommunities.org/id/metropolitan-district-council/leeds,Leeds City Council,30/04/2023,Resources,Leeds Building Services,Supplies and Services,Operational Furniture And Equipment,203,06/04/2023,2304-00441,0.00,359.16,R,AJM FIXINGS & POWER TOOLS LTD,No
Http://opendatacommunities.org/id/metropolitan-district-council/leeds,Leeds City Council,30/04/2023,Resources,Leeds Building Services,Supplies and Services,Operational Furniture And Equipment,203,12/04/2023,2304-00442,0.00,509.50,R,AJM FIXINGS & POWER TOOLS LTD,No
Http://opendatacommunities.org/id/metropolitan-district-council/leeds,Leeds City Council,30/04/2023,Resources,Leeds Building Services,Supplies and Services,Operational Furniture And Equipment,203,13/04/2023,2304-00443,0.00,85.85,R,AJM FIXINGS & POWER TOOLS LTD,No
Http://opendatacommunities.org/id/metropolitan-district-council/leeds,Leeds City Council,30/04/2023,Resources,Leeds Building Services,Supplies and Services,Operational Furniture And Equipment,203,13/04/2023,2304-00444,0.00,1136.19,R,AJM FIXINGS & POWER TOOLS LTD,No
Http://opendatacommunities.org/id/metropolitan-district-council/leeds,Leeds City Council,30/04/2023,Resources,Leeds Building Services,Premises,Cleaning Maintenance & Toiletries,127,13/04/2023,2304-00445,0.00,570.00,R,AJM FIXINGS & POWER TOOLS LTD,No
Http://opendatacommunities.org/id/metropolitan-district-council/leeds,Leeds City Council,30/04/2023,Resources,Leeds Building Services,Supplies and Services,Operational Furniture And Equipment,203,14/04/2023,2304-00446,0.00,1407.16,R,AJM FIXINGS & POWER TOOLS LTD,No
Http://opendatacommunities.org/id/metropolitan-district-council/leeds,Leeds City Council,30/04/2023,Resources,Leeds Building Services,Premises,Cleaning Maintenance & Toiletries,127,14/04/2023,2304-00447,0.00,481.70,R,AJM FIXINGS & POWER TOOLS LTD,No
Http://opendatacommunities.org/id/metropolitan-district-council/leeds,Leeds City Council,30/04/2023,Resources,Leeds Building Services,Supplies and Services,Operational Furniture And Equipment,203,14/04/2023,2304-00448,0.00,230.48,R,AJM FIXINGS & POWER TOOLS LTD,No
Http://opendatacommunities.org/id/metropolitan-district-council/leeds,Leeds City Council,30/04/2023,Resources,Leeds Building Services,Supplies and Services,Operational Furniture And Equipment,203,14/04/2023,2304-00449,0.00,10.06,R,AJM FIXINGS & POWER TOOLS LTD,No
Http://opendatacommunities.org/id/metropolitan-district-council/leeds,Leeds City Council,30/04/2023,Resources,Leeds Building Services,Supplies and Services,Operational Furniture And Equipment,203,14/04/2023,2304-00450,0.00,67.00,R,AJM FIXINGS & POWER TOOLS LTD,No
Http://opendatacommunities.org/id/metropolitan-district-council/leeds,Leeds City Council,30/04/2023,Resources,Leeds Building Services,Supplies and Services,Operational Furniture And Equipment,203,14/04/2023,2304-00451,0.00,359.16,R,AJM FIXINGS & POWER TOOLS LTD,No
Http://opendatacommunities.org/id/metropolitan-district-council/leeds,Leeds City Council,30/04/2023,Resources,Leeds Building Services,Premises,Cleaning Maintenance & Toiletries,127,19/04/2023,2304-00452,0.00,675.70,R,AJM FIXINGS & POWER TOOLS LTD,No
Http://opendatacommunities.org/id/metropolitan-district-council/leeds,Leeds City Council,30/04/2023,Resources,Leeds Building Services,Premises,Cleaning Maintenance & Toiletries,127,19/04/2023,2304-00453,0.00,268.80,R,AJM FIXINGS & POWER TOOLS LTD,No
Http://opendatacommunities.org/id/metropolitan-district-council/leeds,Leeds City Council,30/04/2023,Resources,Leeds Building Services,Supplies and Services,Operational Furniture And Equipment,203,19/04/2023,2304-00454,0.00,125.82,R,AJM FIXINGS & POWER TOOLS LTD,No
Http://opendatacommunities.org/id/metropolitan-district-council/leeds,Leeds City Council,30/04/2023,Resources,Leeds Building Services,Premises,Cleaning Maintenance & Toiletries,127,21/04/2023,2304-00455,0.00,540.60,R,AJM FIXINGS & POWER TOOLS LTD,No
Http://opendatacommunities.org/id/metropolitan-district-council/leeds,Leeds City Council,30/04/2023,Resources,Leeds Building Services,Supplies and Services,Operational Furniture And Equipment,203,21/04/2023,2304-00456,0.00,59.49,R,AJM FIXINGS & POWER TOOLS LTD,No
Http://opendatacommunities.org/id/metropolitan-district-council/leeds,Leeds City Council,30/04/2023,Resources,Leeds Building Services,Supplies and Services,Operational Furniture And Equipment,203,21/04/2023,2304-00457,0.00,324.95,R,AJM FIXINGS & POWER TOOLS LTD,No
Http://opendatacommunities.org/id/metropolitan-district-council/leeds,Leeds City Council,30/04/2023,Resources,Leeds Building Services,Supplies and Services,Operational Furniture And Equipment,203,21/04/2023,2304-00458,0.00,299.99,R,AJM FIXINGS & POWER TOOLS LTD,No
Http://opendatacommunities.org/id/metropolitan-district-council/leeds,Leeds City Council,30/04/2023,Resources,Leeds Building Services,Supplies and Services,Operational Furniture And Equipment,203,27/04/2023,2304-00459,0.00,67.00,R,AJM FIXINGS & POWER TOOLS LTD,No
Http://opendatacommunities.org/id/metropolitan-district-council/leeds,Leeds City Council,30/04/2023,Resources,Leeds Building Services,Supplies and Services,Operational Furniture And Equipment,203,27/04/2023,2304-00460,0.00,260.00,R,AJM FIXINGS & POWER TOOLS LTD,No
Http://opendatacommunities.org/id/metropolitan-district-council/leeds,Leeds City Council,30/04/2023,Resources,Leeds Building Services,Premises,Cleaning Maintenance & Toiletries,127,27/04/2023,2304-00461,0.00,345.40,R,AJM FIXINGS & POWER TOOLS LTD,No
Http://opendatacommunities.org/id/metropolitan-district-council/leeds,Leeds City Council,30/04/2023,Resources,Leeds Building Services,Supplies and Services,Operational Furniture And Equipment,203,27/04/2023,2304-00462,0.00,99.00,R,AJM FIXINGS & POWER TOOLS LTD,No
Http://opendatacommunities.org/id/metropolitan-district-council/leeds,Leeds City Council,30/04/2023,Resources,Commercial Services ,Supplies and Services,Operational Materials,205,30/03/2023,2304-00463,0.00,463.30,R,Akasotech,Yes
Http://opendatacommunities.org/id/metropolitan-district-council/leeds,Leeds City Council,30/04/2023,City Development,Libraries Arts & Heritage,Supplies and Services,Non-Recurring Grants,227,05/04/2023,2304-00464,0.00,9000.00,R,Akeim Toussaint Buck,No
Http://opendatacommunities.org/id/metropolitan-district-council/leeds,Leeds City Council,30/04/2023,Communities Housing and Environment,Elections Licensing and Registration,External Income,Admissions Booking Fees & Ticket Sales,933,20/04/2023,2304-00465,0.00,135.00,R,REDACTED PERSONAL DATA,No
Http://opendatacommunities.org/id/metropolitan-district-council/leeds,Leeds City Council,30/04/2023,Communities Housing and Environment,Strategic Housing Partnership & Support,Capital,CONSTRUCTION,3,14/04/2023,2304-00466,0.00,1000.00,C,AKR Construction Ltd,No
Http://opendatacommunities.org/id/metropolitan-district-council/leeds,Leeds City Council,30/04/2023,Communities Housing and Environment,Strategic Housing Partnership & Support,Capital,CONSTRUCTION,3,21/04/2023,2304-00467,0.00,6316.60,C,AKR Construction Ltd,No
Http://opendatacommunities.org/id/metropolitan-district-council/leeds,Leeds City Council,30/04/2023,Communities Housing and Environment,Strategic Housing Partnership & Support,Capital,CONSTRUCTION,3,21/04/2023,2304-00468,0.00,2300.00,C,AKR Construction Ltd,No
Http://opendatacommunities.org/id/metropolitan-district-council/leeds,Leeds City Council,30/04/2023,Communities Housing and Environment,Community Safety ,Supplies and Services,Operational Materials,205,21/03/2023,2304-00469,0.00,77.80,R,Akzonobel,Yes
Http://opendatacommunities.org/id/metropolitan-district-council/leeds,Leeds City Council,30/04/2023,Resources,Commercial Services,Supplies and Services,Compensation Claims,200,17/04/2023,2304-00470,0.00,1530.00,R,REDACTED PERSONAL DATA,No
Http://opendatacommunities.org/id/metropolitan-district-council/leeds,Leeds City Council,30/04/2023,Adults and Health,Services For Older People - 65 And Over,Agency Payments,Payments To Voluntary Organisations,561,03/04/2023,2304-00471,0.00,2700.00,R,Al Khidmat Centre,No
Http://opendatacommunities.org/id/metropolitan-district-council/leeds,Leeds City Council,30/04/2023,Children and Families,Social Care ,Appropriations,Leaving Care Grants,635,12/04/2023,2304-00472,0.00,28.47,R,Al Murad,Yes
Http://opendatacommunities.org/id/metropolitan-district-council/leeds,Leeds City Council,30/04/2023,Children and Families,Social Care ,Appropriations,Leaving Care Grants,635,05/04/2023,2304-00473,0.00,538.17,R,Al Murad Diy Ltd,Yes
Http://opendatacommunities.org/id/metropolitan-district-council/leeds,Leeds City Council,30/04/2023,Children and Families,Social Care ,Appropriations,Leaving Care Grants,635,12/04/2023,2304-00474,0.00,-86.20,R,Al Murad Diy Ltd,Yes
Http://opendatacommunities.org/id/metropolitan-district-council/leeds,Leeds City Council,30/04/2023,City Development,Libraries Arts & Heritage,Supplies and Services,Other Hired And Contracted Services,265,28/04/2023,2304-00475,0.00,48.92,R,ALAA Enterprises,No
Http://opendatacommunities.org/id/metropolitan-district-council/leeds,Leeds City Council,30/04/2023,City Development,Libraries Arts & Heritage,Supplies and Services,Contributions To Extended Facilities,271,28/04/2023,2304-00476,0.00,59.80,R,ALAA Enterprises,No
Http://opendatacommunities.org/id/metropolitan-district-council/leeds,Leeds City Council,30/04/2023,City Development,Libraries Arts & Heritage ,Supplies and Services,Licences,266,29/03/2023,2304-00477,0.00,100.00,R,Alamy.Com Limited,Yes
Http://opendatacommunities.org/id/metropolitan-district-council/leeds,Leeds City Council,30/04/2023,Resources,Human Resources ,Supplies and Services,Conference Meetings,253,11/04/2023,2304-00478,0.00,58.33,R,Alan Brown Flowers,Yes
Http://opendatacommunities.org/id/metropolitan-district-council/leeds,Leeds City Council,30/04/2023,Children and Families,Social Care,Agency Payments,Services Rendered By Other Organisations,511,06/04/2023,2304-00479,0.00,959.40,R,REDACTED PERSONAL DATA,No
Http://opendatacommunities.org/id/metropolitan-district-council/leeds,Leeds City Council,30/04/2023,Children and Families,Social Care ,Supplies and Services,Operational Furniture And Equipment,203,22/03/2023,2304-00480,0.00,328.14,R,Alarm Radio Monitoring,Yes
Http://opendatacommunities.org/id/metropolitan-district-council/leeds,Leeds City Council,30/04/2023,Children and Families,Social Care ,Supplies and Services,Operational Furniture And Equipment,203,27/03/2023,2304-00481,0.00,100.00,R,Alarm Radio Monitoring,Yes
Http://opendatacommunities.org/id/metropolitan-district-council/leeds,Leeds City Council,30/04/2023,Communities Housing and Environment,Parks and Countryside ,Supplies and Services,Operational Materials,205,29/03/2023,2304-00482,0.00,8333.33,R,Alba Trees Plc,Yes
Http://opendatacommunities.org/id/metropolitan-district-council/leeds,Leeds City Council,30/04/2023,Communities Housing and Environment,Parks and Countryside ,Supplies and Services,Operational Materials,205,29/03/2023,2304-00483,0.00,8333.33,R,Alba Trees Plc,Yes
Http://opendatacommunities.org/id/metropolitan-district-council/leeds,Leeds City Council,30/04/2023,Communities Housing and Environment,Parks and Countryside ,Supplies and Services,Operational Materials,205,29/03/2023,2304-00484,0.00,7599.08,R,Alba Trees Plc,Yes
Http://opendatacommunities.org/id/metropolitan-district-council/leeds,Leeds City Council,30/04/2023,Communities Housing and Environment,Parks and Countryside ,Supplies and Services,Operational Materials,205,27/02/2023,2304-00485,0.00,39.00,R,Albion Electric Stores Lt,Yes
Http://opendatacommunities.org/id/metropolitan-district-council/leeds,Leeds City Council,30/04/2023,Communities Housing and Environment,Parks and Countryside,Transport,Plant Spares,346,21/04/2023,2304-00486,0.00,21.45,R,ALBION ELECTRIC STORES LTD,No
Http://opendatacommunities.org/id/metropolitan-district-council/leeds,Leeds City Council,30/04/2023,Communities Housing and Environment,Communities,Supplies and Services,Computer Software & Equipment,214,26/04/2023,2304-00487,0.00,1228.33,R,Alcium Software Ltd,No
Http://opendatacommunities.org/id/metropolitan-district-council/leeds,Leeds City Council,30/04/2023,Communities Housing and Environment,Community Safety,Supplies and Services,Other Hired And Contracted Services,265,27/04/2023,2304-00488,0.00,795.00,R,Alcohol Research UK,No
Http://opendatacommunities.org/id/metropolitan-district-council/leeds,Leeds City Council,30/04/2023,Resources,Commercial Services ,Supplies and Services,Teaching Materials,202,01/03/2023,2304-00489,0.00,12.60,R,Aldi,Yes
Http://opendatacommunities.org/id/metropolitan-district-council/leeds,Leeds City Council,30/04/2023,Children and Families,Social Care ,Appropriations,Leaving Care Allowances,634,14/03/2023,2304-00490,0.00,28.70,R,Aldi,Yes
Http://opendatacommunities.org/id/metropolitan-district-council/leeds,Leeds City Council,30/04/2023,Children and Families,Social Care ,Supplies and Services,Teaching Materials,202,15/03/2023,2304-00491,0.00,27.04,R,Aldi,Yes
Http://opendatacommunities.org/id/metropolitan-district-council/leeds,Leeds City Council,30/04/2023,Children and Families,Social Care ,Supplies and Services,Food & Drink,231,22/03/2023,2304-00492,0.00,6.31,R,Aldi,Yes
Http://opendatacommunities.org/id/metropolitan-district-council/leeds,Leeds City Council,30/04/2023,Children and Families,Social Care ,Supplies and Services,Office Consumables,210,21/04/2023,2304-00493,0.00,0.25,R,Aldi,Yes
Http://opendatacommunities.org/id/metropolitan-district-council/leeds,Leeds City Council,30/04/2023,Children and Families,Social Care ,Supplies and Services,Food & Drink,231,21/04/2023,2304-00494,0.00,18.35,R,Aldi,Yes
Http://opendatacommunities.org/id/metropolitan-district-council/leeds,Leeds City Council,30/04/2023,Resources,Commercial Services ,Supplies and Services,Teaching Materials,202,22/04/2023,2304-00495,0.00,150.00,R,Aldi,Yes
Http://opendatacommunities.org/id/metropolitan-district-council/leeds,Leeds City Council,30/04/2023,Children and Families,Social Care ,Appropriations,Leaving Care Allowances,634,03/03/2023,2304-00496,0.00,10.50,R,Aldi 103 779,Yes
Http://opendatacommunities.org/id/metropolitan-district-council/leeds,Leeds City Council,30/04/2023,Children and Families,Social Care ,Agency Payments,Placement Support,550,18/03/2023,2304-00497,0.00,29.06,R,Aldi 103 779,Yes
Http://opendatacommunities.org/id/metropolitan-district-council/leeds,Leeds City Council,30/04/2023,Resources,Shared Services ,Supplies and Services,Food & Drink,231,13/04/2023,2304-00498,0.00,65.76,R,Aldi 103 779,Yes
Http://opendatacommunities.org/id/metropolitan-district-council/leeds,Leeds City Council,30/04/2023,Children and Families,Social Care ,Supplies and Services,Food & Drink,231,16/03/2023,2304-00499,0.00,3.67,R,Aldi 40 779,Yes
Http://opendatacommunities.org/id/metropolitan-district-council/leeds,Leeds City Council,30/04/2023,Children and Families,Social Care ,Supplies and Services,Food & Drink,231,30/03/2023,2304-00500,0.00,4.99,R,Aldi 40 779,Yes
Http://opendatacommunities.org/id/metropolitan-district-council/leeds,Leeds City Council,30/04/2023,Children and Families,Social Care ,Supplies and Services,Food & Drink,231,03/04/2023,2304-00501,0.00,99.33,R,Aldi 40 779,Yes
Http://opendatacommunities.org/id/metropolitan-district-council/leeds,Leeds City Council,30/04/2023,Communities Housing and Environment,Communities ,Supplies and Services,Operational Materials,205,03/04/2023,2304-00502,0.00,15.33,R,Aldi 40 779,Yes
Http://opendatacommunities.org/id/metropolitan-district-council/leeds,Leeds City Council,30/04/2023,Children and Families,Social Care ,Supplies and Services,Food & Drink,231,20/04/2023,2304-00503,0.00,11.33,R,Aldi 40 779,Yes
Http://opendatacommunities.org/id/metropolitan-district-council/leeds,Leeds City Council,30/04/2023,Children and Families,Social Care ,Supplies and Services,Food & Drink,231,28/03/2023,2304-00504,0.00,61.19,R,Aldi 48 779,Yes
Http://opendatacommunities.org/id/metropolitan-district-council/leeds,Leeds City Council,30/04/2023,Children and Families,Social Care ,Supplies and Services,Office Consumables,210,20/03/2023,2304-00505,0.00,0.25,R,Aldi 49 779,Yes
Http://opendatacommunities.org/id/metropolitan-district-council/leeds,Leeds City Council,30/04/2023,Children and Families,Social Care ,Supplies and Services,Food & Drink,231,20/03/2023,2304-00506,0.00,11.46,R,Aldi 49 779,Yes
Http://opendatacommunities.org/id/metropolitan-district-council/leeds,Leeds City Council,30/04/2023,Children and Families,Social Care ,Agency Payments,Section 17,551,21/03/2023,2304-00507,0.00,15.00,R,Aldi 49 779,Yes
Http://opendatacommunities.org/id/metropolitan-district-council/leeds,Leeds City Council,30/04/2023,Children and Families,Social Care ,Agency Payments,Section 17,551,21/03/2023,2304-00508,0.00,7.18,R,Aldi 49 779,Yes
Http://opendatacommunities.org/id/metropolitan-district-council/leeds,Leeds City Council,30/04/2023,Children and Families,Social Care ,Supplies and Services,Food & Drink,231,25/03/2023,2304-00509,0.00,7.95,R,Aldi 49 779,Yes
Http://opendatacommunities.org/id/metropolitan-district-council/leeds,Leeds City Council,30/04/2023,Adults and Health,Assessment And Care Management ,Supplies and Services,Subsistence,256,06/04/2023,2304-00510,0.00,31.29,R,Aldi 49 779,Yes
Http://opendatacommunities.org/id/metropolitan-district-council/leeds,Leeds City Council,30/04/2023,Children and Families,Social Care ,Appropriations,Leaving Care Allowances,634,28/02/2023,2304-00511,0.00,10.00,R,Aldi 71 779,Yes
Http://opendatacommunities.org/id/metropolitan-district-council/leeds,Leeds City Council,30/04/2023,Children and Families,Social Care ,Agency Payments,Section 17,551,31/03/2023,2304-00512,0.00,20.97,R,Aldi 71 779,Yes
Http://opendatacommunities.org/id/metropolitan-district-council/leeds,Leeds City Council,30/04/2023,City Development,Recreation ,Supplies and Services,Other Hired And Contracted Services,265,04/04/2023,2304-00513,0.00,8.22,R,Aldi 71 779,Yes
Http://opendatacommunities.org/id/metropolitan-district-council/leeds,Leeds City Council,30/04/2023,Children and Families,Social Care ,Agency Payments,Section 17,551,05/04/2023,2304-00514,0.00,12.36,R,Aldi 71 779,Yes
Http://opendatacommunities.org/id/metropolitan-district-council/leeds,Leeds City Council,30/04/2023,Children and Families,Social Care ,Agency Payments,Section 17,551,21/04/2023,2304-00515,0.00,17.70,R,Aldi 71 779,Yes
Http://opendatacommunities.org/id/metropolitan-district-council/leeds,Leeds City Council,30/04/2023,Communities Housing and Environment,Communities ,Supplies and Services,'Well Being' Large Grants Projects,230,07/03/2023,2304-00516,0.00,2.60,R,Aldi 779117,Yes
Http://opendatacommunities.org/id/metropolitan-district-council/leeds,Leeds City Council,30/04/2023,Children and Families,Social Care ,Agency Payments, Direct Work,549,11/04/2023,2304-00517,0.00,1.89,R,Aldi 779117,Yes
Http://opendatacommunities.org/id/metropolitan-district-council/leeds,Leeds City Council,30/04/2023,Adults and Health,Services For Older People - 65 And Over ,Supplies and Services,Food & Drink,231,17/04/2023,2304-00518,0.00,42.50,R,Aldi 779117,Yes
Http://opendatacommunities.org/id/metropolitan-district-council/leeds,Leeds City Council,30/04/2023,Children and Families,Social Care ,Supplies and Services,Food & Drink,231,28/02/2023,2304-00519,0.00,12.70,R,Aldi 779-126,Yes
Http://opendatacommunities.org/id/metropolitan-district-council/leeds,Leeds City Council,30/04/2023,Children and Families,Social Care ,Supplies and Services,Food & Drink,231,22/03/2023,2304-00520,0.00,15.66,R,Aldi 779-126,Yes
Http://opendatacommunities.org/id/metropolitan-district-council/leeds,Leeds City Council,30/04/2023,Children and Families,Social Care ,Supplies and Services,Food & Drink,231,06/04/2023,2304-00521,0.00,2.66,R,Aldi 779-126,Yes
Http://opendatacommunities.org/id/metropolitan-district-council/leeds,Leeds City Council,30/04/2023,Children and Families,Social Care ,Supplies and Services,Food & Drink,231,03/03/2023,2304-00522,0.00,12.19,R,Aldi 85 779,Yes
Http://opendatacommunities.org/id/metropolitan-district-council/leeds,Leeds City Council,30/04/2023,Children and Families,Social Care ,Supplies and Services,Food & Drink,231,14/03/2023,2304-00523,0.00,56.64,R,Aldi 85 779,Yes
Http://opendatacommunities.org/id/metropolitan-district-council/leeds,Leeds City Council,30/04/2023,Children and Families,Social Care ,Supplies and Services,Food & Drink,231,18/03/2023,2304-00524,0.00,66.86,R,Aldi 85 779,Yes
Http://opendatacommunities.org/id/metropolitan-district-council/leeds,Leeds City Council,30/04/2023,Children and Families,Social Care ,Agency Payments,Section 17,551,22/03/2023,2304-00525,0.00,26.30,R,Aldi 85 779,Yes
Http://opendatacommunities.org/id/metropolitan-district-council/leeds,Leeds City Council,30/04/2023,Children and Families,Social Care ,Appropriations,Leaving Care Allowances,634,24/03/2023,2304-00526,0.00,31.57,R,Aldi 85 779,Yes
Http://opendatacommunities.org/id/metropolitan-district-council/leeds,Leeds City Council,30/04/2023,Children and Families,Social Care ,Agency Payments,Section 17,551,31/03/2023,2304-00527,0.00,19.79,R,Aldi 85 779,Yes
Http://opendatacommunities.org/id/metropolitan-district-council/leeds,Leeds City Council,30/04/2023,Children and Families,Social Care ,Supplies and Services,Food & Drink,231,18/04/2023,2304-00528,0.00,2.65,R,Aldi 85 779,Yes
Http://opendatacommunities.org/id/metropolitan-district-council/leeds,Leeds City Council,30/04/2023,Children and Families,Social Care ,Appropriations,Leaving Care Allowances,634,02/10/2022,2304-00529,0.00,11.50,R,Aldi 88 779,Yes
Http://opendatacommunities.org/id/metropolitan-district-council/leeds,Leeds City Council,30/04/2023,Children and Families,Social Care ,Agency Payments,Section 17,551,13/03/2023,2304-00530,0.00,72.26,R,Aldi 88 779,Yes
Http://opendatacommunities.org/id/metropolitan-district-council/leeds,Leeds City Council,30/04/2023,Children and Families,Social Care ,Agency Payments,Section 17,551,24/03/2023,2304-00531,0.00,88.60,R,Aldi 88 779,Yes
Http://opendatacommunities.org/id/metropolitan-district-council/leeds,Leeds City Council,30/04/2023,Children and Families,Social Care ,Supplies and Services,Food & Drink,231,17/04/2023,2304-00532,0.00,16.42,R,Aldi 88 779,Yes
Http://opendatacommunities.org/id/metropolitan-district-council/leeds,Leeds City Council,30/04/2023,Children and Families,Social Care ,Supplies and Services,Food & Drink,231,17/04/2023,2304-00533,0.00,11.67,R,Aldi 88 779,Yes
Http://opendatacommunities.org/id/metropolitan-district-council/leeds,Leeds City Council,30/04/2023,Children and Families,Social Care ,Supplies and Services,Food & Drink,231,28/02/2023,2304-00534,0.00,103.21,R,Aldi 89 779,Yes
Http://opendatacommunities.org/id/metropolitan-district-council/leeds,Leeds City Council,30/04/2023,Children and Families,Social Care ,Supplies and Services,Food & Drink,231,10/03/2023,2304-00535,0.00,75.29,R,Aldi 89 779,Yes
Http://opendatacommunities.org/id/metropolitan-district-council/leeds,Leeds City Council,30/04/2023,Adults and Health,Services For Older People - 65 And Over ,Supplies and Services,Food & Drink,231,30/03/2023,2304-00536,0.00,13.88,R,Aldi 89 779,Yes
Http://opendatacommunities.org/id/metropolitan-district-council/leeds,Leeds City Council,30/04/2023,Children and Families,Social Care ,Supplies and Services,Food & Drink,231,05/04/2023,2304-00537,0.00,11.83,R,Aldi 89 779,Yes
Http://opendatacommunities.org/id/metropolitan-district-council/leeds,Leeds City Council,30/04/2023,Children and Families,Social Care ,Supplies and Services,Food & Drink,231,11/04/2023,2304-00538,0.00,8.33,R,Aldi 89 779,Yes
Http://opendatacommunities.org/id/metropolitan-district-council/leeds,Leeds City Council,30/04/2023,Children and Families,Social Care ,Supplies and Services,Food & Drink,231,18/04/2023,2304-00539,0.00,24.26,R,Aldi 89 779,Yes
Http://opendatacommunities.org/id/metropolitan-district-council/leeds,Leeds City Council,30/04/2023,Children and Families,Social Care ,Appropriations,Leaving Care Allowances,634,07/11/2022,2304-00540,0.00,28.38,R,Aldi Stores,Yes
Http://opendatacommunities.org/id/metropolitan-district-council/leeds,Leeds City Council,30/04/2023,Children and Families,Social Care ,Agency Payments,Section 17,551,28/02/2023,2304-00541,0.00,34.56,R,Aldi Stores,Yes
Http://opendatacommunities.org/id/metropolitan-district-council/leeds,Leeds City Council,30/04/2023,Children and Families,Social Care ,Agency Payments,Section 17,551,08/03/2023,2304-00542,0.00,24.92,R,Aldi Stores,Yes
Http://opendatacommunities.org/id/metropolitan-district-council/leeds,Leeds City Council,30/04/2023,Children and Families,Social Care ,Appropriations,Leaving Care Allowances,634,20/03/2023,2304-00543,0.00,1.62,R,Aldi Stores,Yes
Http://opendatacommunities.org/id/metropolitan-district-council/leeds,Leeds City Council,30/04/2023,Children and Families,Social Care ,Appropriations,Leaving Care Allowances,634,21/03/2023,2304-00544,0.00,8.07,R,Aldi Stores,Yes
Http://opendatacommunities.org/id/metropolitan-district-council/leeds,Leeds City Council,30/04/2023,Children and Families,Social Care ,Agency Payments,Section 17,551,05/04/2023,2304-00545,0.00,23.37,R,Aldi Stores,Yes
Http://opendatacommunities.org/id/metropolitan-district-council/leeds,Leeds City Council,30/04/2023,Children and Families,Social Care ,Supplies and Services,Food & Drink,231,13/04/2023,2304-00546,0.00,9.91,R,Aldi Stores,Yes
Http://opendatacommunities.org/id/metropolitan-district-council/leeds,Leeds City Council,30/04/2023,Children and Families,Social Care ,Supplies and Services,Food & Drink,231,14/04/2023,2304-00547,0.00,15.40,R,Aldi Stores,Yes
Http://opendatacommunities.org/id/metropolitan-district-council/leeds,Leeds City Council,30/04/2023,Children and Families,Social Care,Supplies and Services,General Amenity For Clients/Residents,285,05/04/2023,2304-00548,0.00,129.18,R,REDACTED PERSONAL DATA,No
Http://opendatacommunities.org/id/metropolitan-district-council/leeds,Leeds City Council,30/04/2023,Children and Families,Social Care,Internal Recharges,Legal Disbursements,411,05/04/2023,2304-00549,0.00,541.00,R,Alex Taylor,No
Http://opendatacommunities.org/id/metropolitan-district-council/leeds,Leeds City Council,30/04/2023,Resources,Commercial Services,Supplies and Services,Other Hired And Contracted Services,265,12/04/2023,2304-00550,0.00,70.00,R,ALEX WAGG,No
Http://opendatacommunities.org/id/metropolitan-district-council/leeds,Leeds City Council,30/04/2023,Resources,Commercial Services,Supplies and Services,Other Hired And Contracted Services,265,12/04/2023,2304-00551,0.00,173.00,R,ALEX WAGG,No
Http://opendatacommunities.org/id/metropolitan-district-council/leeds,Leeds City Council,30/04/2023,Resources,Commercial Services,Supplies and Services,Other Hired And Contracted Services,265,12/04/2023,2304-00552,0.00,125.00,R,ALEX WAGG,No
Http://opendatacommunities.org/id/metropolitan-district-council/leeds,Leeds City Council,30/04/2023,Resources,Commercial Services,Supplies and Services,Other Hired And Contracted Services,265,12/04/2023,2304-00553,0.00,215.00,R,ALEX WAGG,No
Http://opendatacommunities.org/id/metropolitan-district-council/leeds,Leeds City Council,30/04/2023,Resources,Commercial Services,Supplies and Services,Other Hired And Contracted Services,265,12/04/2023,2304-00554,0.00,150.00,R,ALEX WAGG,No
Http://opendatacommunities.org/id/metropolitan-district-council/leeds,Leeds City Council,30/04/2023,Resources,Commercial Services,Supplies and Services,Other Hired And Contracted Services,265,12/04/2023,2304-00555,0.00,125.00,R,ALEX WAGG,No
Http://opendatacommunities.org/id/metropolitan-district-council/leeds,Leeds City Council,30/04/2023,Resources,Commercial Services,Supplies and Services,Other Hired And Contracted Services,265,12/04/2023,2304-00556,0.00,125.00,R,ALEX WAGG,No
Http://opendatacommunities.org/id/metropolitan-district-council/leeds,Leeds City Council,30/04/2023,Resources,Commercial Services,Supplies and Services,Other Hired And Contracted Services,265,20/04/2023,2304-00557,0.00,125.00,R,ALEX WAGG,No
Http://opendatacommunities.org/id/metropolitan-district-council/leeds,Leeds City Council,30/04/2023,Resources,Commercial Services,Supplies and Services,Other Hired And Contracted Services,265,26/04/2023,2304-00558,0.00,150.00,R,ALEX WAGG,No
Http://opendatacommunities.org/id/metropolitan-district-council/leeds,Leeds City Council,30/04/2023,Resources,Commercial Services,Supplies and Services,Other Hired And Contracted Services,265,26/04/2023,2304-00559,0.00,125.00,R,ALEX WAGG,No
Http://opendatacommunities.org/id/metropolitan-district-council/leeds,Leeds City Council,30/04/2023,Resources,Commercial Services,Supplies and Services,Other Hired And Contracted Services,265,26/04/2023,2304-00560,0.00,385.00,R,ALEX WAGG,No
Http://opendatacommunities.org/id/metropolitan-district-council/leeds,Leeds City Council,30/04/2023,Resources,Commercial Services,Supplies and Services,Other Hired And Contracted Services,265,26/04/2023,2304-00561,0.00,520.00,R,ALEX WAGG,No
Http://opendatacommunities.org/id/metropolitan-district-council/leeds,Leeds City Council,30/04/2023,Resources,Commercial Services,Supplies and Services,Other Hired And Contracted Services,265,26/04/2023,2304-00562,0.00,250.00,R,ALEX WAGG,No
Http://opendatacommunities.org/id/metropolitan-district-council/leeds,Leeds City Council,30/04/2023,Insurance,Insurance,Supplies and Services,Insurance Claims,248,21/04/2023,2304-00563,0.00,200.00,R,REDACTED PERSONAL DATA,No
Http://opendatacommunities.org/id/metropolitan-district-council/leeds,Leeds City Council,30/04/2023,Adults and Health,Services For Older People - 65 And Over,Agency Payments,Residential Care Dementia,571,26/04/2023,2304-00564,0.00,24232.66,R,ALEXANDER RESIDENTIAL HOME,No
Http://opendatacommunities.org/id/metropolitan-district-council/leeds,Leeds City Council,30/04/2023,Adults and Health,Services For Older People - 65 And Over,Agency Payments,Residential,580,26/04/2023,2304-00565,0.00,25011.16,R,ALEXANDER RESIDENTIAL HOME,No
Http://opendatacommunities.org/id/metropolitan-district-council/leeds,Leeds City Council as Accountable Body,30/04/2023,Social Services Pooled Budgets,Jcs For People With Learning Disabilitie,Agency Payments,Residential,580,26/04/2023,2304-00566,0.00,11898.00,R,ALEXANDER RESIDENTIAL HOME,No
Http://opendatacommunities.org/id/metropolitan-district-council/leeds,Leeds City Council,30/04/2023,Children and Families,Social Care,Appropriations,Leaving Care Allowances,634,25/04/2023,2304-00567,0.00,61.05,R,REDACTED PERSONAL DATA,No
Http://opendatacommunities.org/id/metropolitan-district-council/leeds,Leeds City Council,30/04/2023,Adults and Health,Services For Older People - 65 And Over,Agency Payments,Residential Care Dementia,571,26/04/2023,2304-00568,0.00,5588.16,R,ALEXANDRA COURT,No
Http://opendatacommunities.org/id/metropolitan-district-council/leeds,Leeds City Council,30/04/2023,Adults and Health,Services For Older People - 65 And Over,Agency Payments,Residential,580,26/04/2023,2304-00569,0.00,6248.12,R,ALEXANDRA COURT,No
Http://opendatacommunities.org/id/metropolitan-district-council/leeds,Leeds City Council,30/04/2023,Adults and Health,Services For Older People - 65 And Over ,Supplies and Services,Clothing & Uniforms,241,09/03/2023,2304-00570,0.00,54.00,R,Alexandra Website,Yes
Http://opendatacommunities.org/id/metropolitan-district-council/leeds,Leeds City Council,30/04/2023,Adults and Health,Services For Older People - 65 And Over ,Supplies and Services,Clothing & Uniforms,241,21/03/2023,2304-00571,0.00,90.02,R,Alexandra Website,Yes
Http://opendatacommunities.org/id/metropolitan-district-council/leeds,Leeds City Council,30/04/2023,Resources,Commercial Services,Supplies and Services,Compensation Claims,200,17/04/2023,2304-00572,0.00,1612.80,R,REDACTED PERSONAL DATA,No
Http://opendatacommunities.org/id/metropolitan-district-council/leeds,Leeds City Council,30/04/2023,Children and Families,Social Care,Appropriations,Leaving Care Grants,635,24/04/2023,2304-00573,0.00,566.00,R,REDACTED PERSONAL DATA,No
Http://opendatacommunities.org/id/metropolitan-district-council/leeds,Leeds City Council,30/04/2023,Children and Families,Social Care,Appropriations,Leaving Care Grants,635,24/04/2023,2304-00574,0.00,667.41,R,REDACTED PERSONAL DATA,No
Http://opendatacommunities.org/id/metropolitan-district-council/leeds,Leeds City Council,30/04/2023,Resources,Leeds Building Services,Supplies and Services,Other Hired And Contracted Services,265,05/04/2023,2304-00575,0.00,6493.41,R,Alfred Bagnall & Sons (Leeds) Ltd,No
Http://opendatacommunities.org/id/metropolitan-district-council/leeds,Leeds City Council,30/04/2023,Resources,Leeds Building Services,Supplies and Services,Other Hired And Contracted Services,265,06/04/2023,2304-00576,0.00,23348.12,R,Alfred Bagnall & Sons (Leeds) Ltd,No
Http://opendatacommunities.org/id/metropolitan-district-council/leeds,Leeds City Council,30/04/2023,Resources,Leeds Building Services,Supplies and Services,Other Hired And Contracted Services,265,06/04/2023,2304-00577,0.00,420.00,R,Alfred Bagnall & Sons (Leeds) Ltd,No
Http://opendatacommunities.org/id/metropolitan-district-council/leeds,Leeds City Council,30/04/2023,Resources,Leeds Building Services,Supplies and Services,Other Hired And Contracted Services,265,06/04/2023,2304-00578,0.00,570.00,R,Alfred Bagnall & Sons (Leeds) Ltd,No
Http://opendatacommunities.org/id/metropolitan-district-council/leeds,Leeds City Council,30/04/2023,City Development,Markets & City Centre Management,Supplies and Services,Grant Related Expenditure,290,06/04/2023,2304-00579,0.00,2026.00,R,Alfred Bagnall & Sons (Leeds) Ltd,No
Http://opendatacommunities.org/id/metropolitan-district-council/leeds,Leeds City Council,30/04/2023,City Development,Markets & City Centre Management,Supplies and Services,Grant Related Expenditure,290,06/04/2023,2304-00580,0.00,1267.00,R,Alfred Bagnall & Sons (Leeds) Ltd,No
Http://opendatacommunities.org/id/metropolitan-district-council/leeds,Leeds City Council,30/04/2023,Resources,Leeds Building Services,Supplies and Services,Other Hired And Contracted Services,265,19/04/2023,2304-00581,0.00,640.00,R,Alfred Bagnall & Sons (Leeds) Ltd,No
Http://opendatacommunities.org/id/metropolitan-district-council/leeds,Leeds City Council,30/04/2023,Resources,Leeds Building Services,Supplies and Services,Other Hired And Contracted Services,265,19/04/2023,2304-00582,0.00,2480.00,R,Alfred Bagnall & Sons (Leeds) Ltd,No
Http://opendatacommunities.org/id/metropolitan-district-council/leeds,Leeds City Council,30/04/2023,Resources,Leeds Building Services,Supplies and Services,Other Hired And Contracted Services,265,21/04/2023,2304-00583,0.00,8637.51,R,Alfred Bagnall & Sons (Leeds) Ltd,No
Http://opendatacommunities.org/id/metropolitan-district-council/leeds,Leeds City Council,30/04/2023,Resources,Leeds Building Services,Supplies and Services,Other Hired And Contracted Services,265,21/04/2023,2304-00584,0.00,1012.54,R,Alfred Bagnall & Sons (Leeds) Ltd,No
Http://opendatacommunities.org/id/metropolitan-district-council/leeds,Leeds City Council,30/04/2023,Resources,Leeds Building Services,Supplies and Services,Other Hired And Contracted Services,265,21/04/2023,2304-00585,0.00,5329.50,R,Alfred Bagnall & Sons (Leeds) Ltd,No
Http://opendatacommunities.org/id/metropolitan-district-council/leeds,Leeds City Council,30/04/2023,Resources,Leeds Building Services,Supplies and Services,Other Hired And Contracted Services,265,21/04/2023,2304-00586,0.00,6666.72,R,Alfred Bagnall & Sons (Leeds) Ltd,No
Http://opendatacommunities.org/id/metropolitan-district-council/leeds,Leeds City Council,30/04/2023,Resources,Leeds Building Services,Supplies and Services,Other Hired And Contracted Services,265,21/04/2023,2304-00587,0.00,1506.24,R,Alfred Bagnall & Sons (Leeds) Ltd,No
Http://opendatacommunities.org/id/metropolitan-district-council/leeds,Leeds City Council,30/04/2023,Resources,Leeds Building Services,Supplies and Services,Other Hired And Contracted Services,265,26/04/2023,2304-00588,0.00,750.00,R,Alfred Bagnall & Sons (Leeds) Ltd,No
Http://opendatacommunities.org/id/metropolitan-district-council/leeds,Leeds City Council,30/04/2023,Resources,Leeds Building Services,Supplies and Services,Other Hired And Contracted Services,265,26/04/2023,2304-00589,0.00,790.00,R,Alfred Bagnall & Sons (Leeds) Ltd,No
Http://opendatacommunities.org/id/metropolitan-district-council/leeds,Leeds City Council,30/04/2023,Resources,Leeds Building Services,Supplies and Services,Other Hired And Contracted Services,265,28/04/2023,2304-00590,0.00,5568.45,R,Alfred Bagnall & Sons (Leeds) Ltd,No
Http://opendatacommunities.org/id/metropolitan-district-council/leeds,Leeds City Council,30/04/2023,Resources,Leeds Building Services,Supplies and Services,Other Hired And Contracted Services,265,28/04/2023,2304-00591,0.00,670.00,R,Alfred Bagnall & Sons (Leeds) Ltd,No
Http://opendatacommunities.org/id/metropolitan-district-council/leeds,Leeds City Council,30/04/2023,Resources,Leeds Building Services,Supplies and Services,Other Hired And Contracted Services,265,28/04/2023,2304-00592,0.00,5171.62,R,Alfred Bagnall & Sons (Leeds) Ltd,No
Http://opendatacommunities.org/id/metropolitan-district-council/leeds,Leeds City Council,30/04/2023,Resources,Leeds Building Services,Supplies and Services,Other Hired And Contracted Services,265,28/04/2023,2304-00593,0.00,4477.96,R,Alfred Bagnall & Sons (Leeds) Ltd,No
Http://opendatacommunities.org/id/metropolitan-district-council/leeds,Leeds City Council,30/04/2023,Resources,Leeds Building Services,Supplies and Services,Other Hired And Contracted Services,265,28/04/2023,2304-00594,0.00,690.00,R,Alfred Bagnall & Sons (Leeds) Ltd,No
Http://opendatacommunities.org/id/metropolitan-district-council/leeds,Leeds City Council,30/04/2023,City Development,Markets & City Centre Management,Supplies and Services,City Centre Enhancement,295,28/04/2023,2304-00595,0.00,1780.00,R,Alfred Bagnall & Sons (Leeds) Ltd,No
Http://opendatacommunities.org/id/metropolitan-district-council/leeds,Leeds City Council,30/04/2023,Communities Housing and Environment,Parks and Countryside,Transport,Hire Of Movable Plant & Machinery,315,14/04/2023,2304-00596,0.00,158.30,R,ALGECO UK LIMITED,No
Http://opendatacommunities.org/id/metropolitan-district-council/leeds,Leeds City Council,30/04/2023,Communities Housing and Environment,Parks and Countryside,Transport,Hire Of Movable Plant & Machinery,315,14/04/2023,2304-00597,0.00,158.30,R,ALGECO UK LIMITED,No
Http://opendatacommunities.org/id/metropolitan-district-council/leeds,Leeds City Council,30/04/2023,Communities Housing and Environment,Parks and Countryside,Transport,Hire Of Movable Plant & Machinery,315,14/04/2023,2304-00598,0.00,143.92,R,ALGECO UK LIMITED,No
Http://opendatacommunities.org/id/metropolitan-district-council/leeds,Leeds City Council,30/04/2023,Communities Housing and Environment,Customer Access,Supplies and Services,Bought In Professional Services,277,05/04/2023,2304-00599,0.00,35.00,R,Ali Pourakaberian,No
Http://opendatacommunities.org/id/metropolitan-district-council/leeds,Leeds City Council,30/04/2023,Communities Housing and Environment,Customer Access,Supplies and Services,Bought In Professional Services,277,05/04/2023,2304-00600,0.00,29.20,R,Ali Pourakaberian,No
Http://opendatacommunities.org/id/metropolitan-district-council/leeds,Leeds City Council,30/04/2023,Communities Housing and Environment,Customer Access,Supplies and Services,Bought In Professional Services,277,05/04/2023,2304-00601,0.00,18.00,R,Ali Pourakaberian,No
Http://opendatacommunities.org/id/metropolitan-district-council/leeds,Leeds City Council,30/04/2023,Communities Housing and Environment,Customer Access,Supplies and Services,Bought In Professional Services,277,05/04/2023,2304-00602,0.00,18.00,R,Ali Pourakaberian,No
Http://opendatacommunities.org/id/metropolitan-district-council/leeds,Leeds City Council,30/04/2023,Communities Housing and Environment,Customer Access,Supplies and Services,Bought In Professional Services,277,05/04/2023,2304-00603,0.00,18.00,R,Ali Pourakaberian,No
Http://opendatacommunities.org/id/metropolitan-district-council/leeds,Leeds City Council,30/04/2023,Communities Housing and Environment,Customer Access,Supplies and Services,Bought In Professional Services,277,05/04/2023,2304-00604,0.00,13.50,R,Ali Pourakaberian,No
Http://opendatacommunities.org/id/metropolitan-district-council/leeds,Leeds City Council,30/04/2023,Communities Housing and Environment,Customer Access,Supplies and Services,Bought In Professional Services,277,05/04/2023,2304-00605,0.00,18.00,R,Ali Pourakaberian,No
Http://opendatacommunities.org/id/metropolitan-district-council/leeds,Leeds City Council,30/04/2023,Communities Housing and Environment,Customer Access,Supplies and Services,Bought In Professional Services,277,05/04/2023,2304-00606,0.00,31.50,R,Ali Pourakaberian,No
Http://opendatacommunities.org/id/metropolitan-district-council/leeds,Leeds City Council,30/04/2023,Communities Housing and Environment,Customer Access,Supplies and Services,Bought In Professional Services,277,14/04/2023,2304-00607,0.00,27.00,R,Ali Pourakaberian,No
Http://opendatacommunities.org/id/metropolitan-district-council/leeds,Leeds City Council,30/04/2023,Communities Housing and Environment,Customer Access,Supplies and Services,Bought In Professional Services,277,14/04/2023,2304-00608,0.00,18.00,R,Ali Pourakaberian,No
Http://opendatacommunities.org/id/metropolitan-district-council/leeds,Leeds City Council,30/04/2023,Communities Housing and Environment,Customer Access,Supplies and Services,Bought In Professional Services,277,19/04/2023,2304-00609,0.00,18.00,R,Ali Pourakaberian,No
Http://opendatacommunities.org/id/metropolitan-district-council/leeds,Leeds City Council,30/04/2023,Communities Housing and Environment,Customer Access,Supplies and Services,Bought In Professional Services,277,19/04/2023,2304-00610,0.00,18.00,R,Ali Pourakaberian,No
Http://opendatacommunities.org/id/metropolitan-district-council/leeds,Leeds City Council,30/04/2023,Communities Housing and Environment,Customer Access,Supplies and Services,Bought In Professional Services,277,19/04/2023,2304-00611,0.00,27.00,R,Ali Pourakaberian,No
Http://opendatacommunities.org/id/metropolitan-district-council/leeds,Leeds City Council,30/04/2023,Communities Housing and Environment,Customer Access,Supplies and Services,Bought In Professional Services,277,19/04/2023,2304-00612,0.00,18.00,R,Ali Pourakaberian,No
Http://opendatacommunities.org/id/metropolitan-district-council/leeds,Leeds City Council,30/04/2023,Communities Housing and Environment,Customer Access,Supplies and Services,Bought In Professional Services,277,19/04/2023,2304-00613,0.00,31.50,R,Ali Pourakaberian,No
Http://opendatacommunities.org/id/metropolitan-district-council/leeds,Leeds City Council,30/04/2023,Communities Housing and Environment,Customer Access,Supplies and Services,Bought In Professional Services,277,19/04/2023,2304-00614,0.00,31.50,R,Ali Pourakaberian,No
Http://opendatacommunities.org/id/metropolitan-district-council/leeds,Leeds City Council,30/04/2023,Communities Housing and Environment,Customer Access,Supplies and Services,Bought In Professional Services,277,26/04/2023,2304-00615,0.00,31.50,R,Ali Pourakaberian,No
Http://opendatacommunities.org/id/metropolitan-district-council/leeds,Leeds City Council,30/04/2023,Communities Housing and Environment,Customer Access,Supplies and Services,Bought In Professional Services,277,26/04/2023,2304-00616,0.00,22.50,R,Ali Pourakaberian,No
Http://opendatacommunities.org/id/metropolitan-district-council/leeds,Leeds City Council,30/04/2023,Communities Housing and Environment,Customer Access,Supplies and Services,Bought In Professional Services,277,26/04/2023,2304-00617,0.00,31.50,R,Ali Pourakaberian,No
Http://opendatacommunities.org/id/metropolitan-district-council/leeds,Leeds City Council,30/04/2023,Communities Housing and Environment,Customer Access,Supplies and Services,Bought In Professional Services,277,26/04/2023,2304-00618,0.00,9.00,R,Ali Pourakaberian,No
Http://opendatacommunities.org/id/metropolitan-district-council/leeds,Leeds City Council,30/04/2023,Communities Housing and Environment,Customer Access,Supplies and Services,Bought In Professional Services,277,26/04/2023,2304-00619,0.00,36.00,R,Ali Pourakaberian,No
Http://opendatacommunities.org/id/metropolitan-district-council/leeds,Leeds City Council,30/04/2023,Communities Housing and Environment,Benefits Wlefare and Poverty,Supplies and Services,Grant Related Expenditure,290,24/04/2023,2304-00620,0.00,70.00,R,REDACTED PERSONAL DATA,No
Http://opendatacommunities.org/id/metropolitan-district-council/leeds,Leeds City Council,30/04/2023,City Development,Recreation,Supplies and Services,Bought In Professional Services,277,28/04/2023,2304-00621,0.00,40.00,R,Alice M Richardson,No
Http://opendatacommunities.org/id/metropolitan-district-council/leeds,Leeds City Council,30/04/2023,City Development,Recreation,Supplies and Services,Bought In Professional Services,277,28/04/2023,2304-00622,0.00,100.00,R,Alice M Richardson,No
Http://opendatacommunities.org/id/metropolitan-district-council/leeds,Leeds City Council,30/04/2023,City Development,Recreation,Supplies and Services,Bought In Professional Services,277,28/04/2023,2304-00623,0.00,100.00,R,Alice M Richardson,No
Http://opendatacommunities.org/id/metropolitan-district-council/leeds,Leeds City Council,30/04/2023,City Development,Recreation,Supplies and Services,Bought In Professional Services,277,28/04/2023,2304-00624,0.00,80.00,R,Alice M Richardson,No
Http://opendatacommunities.org/id/metropolitan-district-council/leeds,Leeds City Council,30/04/2023,Adults and Health,Assessment And Care Management,Supplies and Services,Other Hired And Contracted Services,265,06/04/2023,2304-00625,0.00,15.70,R,REDACTED PERSONAL DATA,No
Http://opendatacommunities.org/id/metropolitan-district-council/leeds,Leeds City Council,30/04/2023,Adults and Health,Assessment And Care Management,Supplies and Services,Other Hired And Contracted Services,265,26/04/2023,2304-00626,0.00,34.21,R,REDACTED PERSONAL DATA,No
Http://opendatacommunities.org/id/metropolitan-district-council/leeds,Leeds City Council,30/04/2023,Children and Families,Social Care,Appropriations,Leaving Care Allowances,634,27/04/2023,2304-00627,0.00,30.00,R,REDACTED PERSONAL DATA,No
Http://opendatacommunities.org/id/metropolitan-district-council/leeds,Leeds City Council,30/04/2023,Children and Families,Social Care,Appropriations,Leaving Care Allowances,634,27/04/2023,2304-00628,0.00,50.00,R,REDACTED PERSONAL DATA,No
Http://opendatacommunities.org/id/metropolitan-district-council/leeds,Leeds City Council,30/04/2023,Children and Families,Social Care,Agency Payments,Placement Support,550,12/04/2023,2304-00629,0.00,30.00,R,REDACTED PERSONAL DATA,No
Http://opendatacommunities.org/id/metropolitan-district-council/leeds,Leeds City Council,30/04/2023,Children and Families,Social Care,Agency Payments,Services Rendered By Other Organisations,511,06/04/2023,2304-00630,0.00,959.40,R,REDACTED PERSONAL DATA,No
Http://opendatacommunities.org/id/metropolitan-district-council/leeds,Leeds City Council,30/04/2023,Resources,Commercial Services,Supplies and Services,Other Hired And Contracted Services,265,26/04/2023,2304-00631,0.00,431.20,R,REDACTED PERSONAL DATA,No
Http://opendatacommunities.org/id/metropolitan-district-council/leeds,Leeds City Council,30/04/2023,Communities Housing and Environment,Waste Management ,Supplies and Services,Operational Furniture And Equipment,203,27/02/2023,2304-00632,0.00,230.00,R,Alistair Bromhead Ltd,Yes
Http://opendatacommunities.org/id/metropolitan-district-council/leeds,Leeds City Council,30/04/2023,Insurance,Insurance,Supplies and Services,Insurance Claims,248,19/04/2023,2304-00633,0.00,660.00,R,REDACTED PERSONAL DATA,No
Http://opendatacommunities.org/id/metropolitan-district-council/leeds,Leeds City Council,30/04/2023,Children and Families,Learning,Supplies and Services,Teaching Furniture & Equipment,207,06/04/2023,2304-00634,0.00,500.00,R,ALL BRASS AND WOODWIND,No
Http://opendatacommunities.org/id/metropolitan-district-council/leeds,Leeds City Council,30/04/2023,Children and Families,Learning,Supplies and Services,Teaching Furniture & Equipment,207,06/04/2023,2304-00635,0.00,720.00,R,ALL BRASS AND WOODWIND,No
Http://opendatacommunities.org/id/metropolitan-district-council/leeds,Leeds City Council,30/04/2023,Children and Families,Social Care,Agency Payments,Services Rendered By Other Organisations,511,05/04/2023,2304-00636,0.00,1373.58,R,All Stars Childcare,No
Http://opendatacommunities.org/id/metropolitan-district-council/leeds,Leeds City Council,30/04/2023,Children and Families,Social Care,Agency Payments,Services Rendered By Other Organisations,511,06/04/2023,2304-00637,0.00,9146.28,R,All Stars Childcare,No
Http://opendatacommunities.org/id/metropolitan-district-council/leeds,Leeds City Council,30/04/2023,Children and Families,Social Care,Agency Payments,Placement Support,550,19/04/2023,2304-00638,0.00,151.25,R,REDACTED PERSONAL DATA,No
Http://opendatacommunities.org/id/metropolitan-district-council/leeds,Leeds City Council,30/04/2023,Adults and Health,Services For Older People - 65 And Over ,Premises,First Aid Requisites,128,27/03/2023,2304-00639,0.00,23.94,R,Allanda,Yes
Http://opendatacommunities.org/id/metropolitan-district-council/leeds,Leeds City Council as Accountable Body,30/04/2023,Social Services Pooled Budgets,Jcs For People With Learning Disabilitie,Agency Payments,Sheltered Accommodation,569,26/04/2023,2304-00640,0.00,23443.44,R,Allerton Avenue,No
Http://opendatacommunities.org/id/metropolitan-district-council/leeds,Leeds City Council,30/04/2023,Strategic Accounts,Strategic,Supplies and Services,Office Consumables,210,05/04/2023,2304-00641,0.00,70000.00,R,ALLERTON BYWATER PARISH COUNCIL,No
Http://opendatacommunities.org/id/metropolitan-district-council/leeds,Leeds City Council,30/04/2023,Strategic Accounts,Strategic,Supplies and Services,Non-Recurring Grants,227,05/04/2023,2304-00642,0.00,2164.00,R,ALLERTON BYWATER PARISH COUNCIL,No
Http://opendatacommunities.org/id/metropolitan-district-council/leeds,Leeds City Council,30/04/2023,Adults and Health,Services For Older People - 65 And Over,Agency Payments,Nursing Care Dementia,574,26/04/2023,2304-00643,0.00,5195.38,R,ALLERTON PARK N H,No
Http://opendatacommunities.org/id/metropolitan-district-council/leeds,Leeds City Council,30/04/2023,Resources,Finance,Supplies and Services,Bank Charges,263,05/04/2023,2304-00644,0.00,200.49,R,ALLIANCE & LEICESTER COMMERCIAL BANK,No
Http://opendatacommunities.org/id/metropolitan-district-council/leeds,Leeds City Council,30/04/2023,Resources,Finance,Supplies and Services,Bank Charges,263,05/04/2023,2304-00645,0.00,100.00,R,ALLIANCE & LEICESTER COMMERCIAL BANK,No
Http://opendatacommunities.org/id/metropolitan-district-council/leeds,Leeds City Council,30/04/2023,Resources,Commercial Services,Transport,Vehicle Spares,345,06/04/2023,2304-00646,0.00,-64.36,R,Alliance Automotive UK CV LTD,No
Http://opendatacommunities.org/id/metropolitan-district-council/leeds,Leeds City Council,30/04/2023,Resources,Commercial Services,Transport,Vehicle Spares,345,06/04/2023,2304-00647,0.00,175.76,R,Alliance Automotive UK CV LTD,No
Http://opendatacommunities.org/id/metropolitan-district-council/leeds,Leeds City Council,30/04/2023,Resources,Commercial Services,Transport,Vehicle Spares,345,06/04/2023,2304-00648,0.00,1090.32,R,Alliance Automotive UK CV LTD,No
Http://opendatacommunities.org/id/metropolitan-district-council/leeds,Leeds City Council,30/04/2023,Resources,Commercial Services,Transport,Vehicle Spares,345,06/04/2023,2304-00649,0.00,363.83,R,Alliance Automotive UK CV LTD,No
Http://opendatacommunities.org/id/metropolitan-district-council/leeds,Leeds City Council,30/04/2023,Resources,Commercial Services,Transport,Vehicle Spares,345,06/04/2023,2304-00650,0.00,270.27,R,Alliance Automotive UK CV LTD,No
Http://opendatacommunities.org/id/metropolitan-district-council/leeds,Leeds City Council,30/04/2023,Resources,Commercial Services,Transport,Vehicle Spares,345,06/04/2023,2304-00651,0.00,1302.94,R,Alliance Automotive UK CV LTD,No
Http://opendatacommunities.org/id/metropolitan-district-council/leeds,Leeds City Council,30/04/2023,Resources,Commercial Services,Transport,Vehicle Spares,345,06/04/2023,2304-00652,0.00,286.11,R,Alliance Automotive UK CV LTD,No
Http://opendatacommunities.org/id/metropolitan-district-council/leeds,Leeds City Council,30/04/2023,Resources,Commercial Services,Transport,Vehicle Spares,345,06/04/2023,2304-00653,0.00,340.39,R,Alliance Automotive UK CV LTD,No
Http://opendatacommunities.org/id/metropolitan-district-council/leeds,Leeds City Council,30/04/2023,Resources,Commercial Services,Transport,Vehicle Spares,345,06/04/2023,2304-00654,0.00,324.14,R,Alliance Automotive UK CV LTD,No
Http://opendatacommunities.org/id/metropolitan-district-council/leeds,Leeds City Council,30/04/2023,Resources,Commercial Services,Transport,Vehicle Spares,345,06/04/2023,2304-00655,0.00,88.96,R,Alliance Automotive UK CV LTD,No
Http://opendatacommunities.org/id/metropolitan-district-council/leeds,Leeds City Council,30/04/2023,Resources,Commercial Services,Transport,Vehicle Spares,345,06/04/2023,2304-00656,0.00,290.31,R,Alliance Automotive UK CV LTD,No
Http://opendatacommunities.org/id/metropolitan-district-council/leeds,Leeds City Council,30/04/2023,Resources,Commercial Services,Transport,Vehicle Spares,345,06/04/2023,2304-00657,0.00,167.81,R,Alliance Automotive UK CV LTD,No
Http://opendatacommunities.org/id/metropolitan-district-council/leeds,Leeds City Council,30/04/2023,Resources,Commercial Services,Transport,Vehicle Spares,345,06/04/2023,2304-00658,0.00,81.92,R,Alliance Automotive UK CV LTD,No
Http://opendatacommunities.org/id/metropolitan-district-council/leeds,Leeds City Council,30/04/2023,Resources,Commercial Services,Transport,Vehicle Spares,345,06/04/2023,2304-00659,0.00,318.09,R,Alliance Automotive UK CV LTD,No
Http://opendatacommunities.org/id/metropolitan-district-council/leeds,Leeds City Council,30/04/2023,Resources,Commercial Services,Transport,Vehicle Spares,345,06/04/2023,2304-00660,0.00,149.26,R,Alliance Automotive UK CV LTD,No
Http://opendatacommunities.org/id/metropolitan-district-council/leeds,Leeds City Council,30/04/2023,Resources,Commercial Services,Transport,Vehicle Spares,345,06/04/2023,2304-00661,0.00,431.74,R,Alliance Automotive UK CV LTD,No
Http://opendatacommunities.org/id/metropolitan-district-council/leeds,Leeds City Council,30/04/2023,Resources,Commercial Services,Transport,Vehicle Spares,345,06/04/2023,2304-00662,0.00,58.41,R,Alliance Automotive UK CV LTD,No
Http://opendatacommunities.org/id/metropolitan-district-council/leeds,Leeds City Council,30/04/2023,Resources,Commercial Services,Transport,Vehicle Spares,345,06/04/2023,2304-00663,0.00,57.78,R,Alliance Automotive UK CV LTD,No
Http://opendatacommunities.org/id/metropolitan-district-council/leeds,Leeds City Council,30/04/2023,Resources,Commercial Services,Transport,Vehicle Spares,345,06/04/2023,2304-00664,0.00,24.59,R,Alliance Automotive UK CV LTD,No
Http://opendatacommunities.org/id/metropolitan-district-council/leeds,Leeds City Council,30/04/2023,Resources,Commercial Services,Transport,Vehicle Spares,345,06/04/2023,2304-00665,0.00,256.76,R,Alliance Automotive UK CV LTD,No
Http://opendatacommunities.org/id/metropolitan-district-council/leeds,Leeds City Council,30/04/2023,Resources,Commercial Services,Transport,Vehicle Spares,345,06/04/2023,2304-00666,0.00,124.40,R,Alliance Automotive UK CV LTD,No
Http://opendatacommunities.org/id/metropolitan-district-council/leeds,Leeds City Council,30/04/2023,Resources,Commercial Services,Transport,Vehicle Spares,345,06/04/2023,2304-00667,0.00,187.11,R,Alliance Automotive UK CV LTD,No
Http://opendatacommunities.org/id/metropolitan-district-council/leeds,Leeds City Council,30/04/2023,Resources,Commercial Services,Transport,Vehicle Spares,345,06/04/2023,2304-00668,0.00,247.66,R,Alliance Automotive UK CV LTD,No
Http://opendatacommunities.org/id/metropolitan-district-council/leeds,Leeds City Council,30/04/2023,Resources,Commercial Services,Transport,Vehicle Spares,345,06/04/2023,2304-00669,0.00,377.34,R,Alliance Automotive UK CV LTD,No
Http://opendatacommunities.org/id/metropolitan-district-council/leeds,Leeds City Council,30/04/2023,Resources,Commercial Services,Transport,Vehicle Spares,345,06/04/2023,2304-00670,0.00,7.49,R,Alliance Automotive UK CV LTD,No
Http://opendatacommunities.org/id/metropolitan-district-council/leeds,Leeds City Council,30/04/2023,Resources,Commercial Services,Transport,Vehicle Spares,345,06/04/2023,2304-00671,0.00,311.95,R,Alliance Automotive UK CV LTD,No
Http://opendatacommunities.org/id/metropolitan-district-council/leeds,Leeds City Council,30/04/2023,Resources,Commercial Services,Transport,Vehicle Spares,345,06/04/2023,2304-00672,0.00,30.99,R,Alliance Automotive UK CV LTD,No
Http://opendatacommunities.org/id/metropolitan-district-council/leeds,Leeds City Council,30/04/2023,Resources,Commercial Services,Transport,Vehicle Spares,345,06/04/2023,2304-00673,0.00,997.35,R,Alliance Automotive UK CV LTD,No
Http://opendatacommunities.org/id/metropolitan-district-council/leeds,Leeds City Council,30/04/2023,Resources,Commercial Services,Transport,Vehicle Spares,345,11/04/2023,2304-00674,0.00,-15.27,R,Alliance Automotive UK CV LTD,No
Http://opendatacommunities.org/id/metropolitan-district-council/leeds,Leeds City Council,30/04/2023,Resources,Commercial Services,Transport,Vehicle Spares,345,11/04/2023,2304-00675,0.00,33.66,R,Alliance Automotive UK CV LTD,No
Http://opendatacommunities.org/id/metropolitan-district-council/leeds,Leeds City Council,30/04/2023,Resources,Commercial Services,Transport,Vehicle Spares,345,11/04/2023,2304-00676,0.00,928.63,R,Alliance Automotive UK CV LTD,No
Http://opendatacommunities.org/id/metropolitan-district-council/leeds,Leeds City Council,30/04/2023,Resources,Commercial Services,Transport,Vehicle Spares,345,11/04/2023,2304-00677,0.00,229.78,R,Alliance Automotive UK CV LTD,No
Http://opendatacommunities.org/id/metropolitan-district-council/leeds,Leeds City Council,30/04/2023,Resources,Commercial Services,Transport,Vehicle Spares,345,11/04/2023,2304-00678,0.00,339.06,R,Alliance Automotive UK CV LTD,No
Http://opendatacommunities.org/id/metropolitan-district-council/leeds,Leeds City Council,30/04/2023,Resources,Commercial Services,Transport,Vehicle Spares,345,11/04/2023,2304-00679,0.00,109.41,R,Alliance Automotive UK CV LTD,No
Http://opendatacommunities.org/id/metropolitan-district-council/leeds,Leeds City Council,30/04/2023,Resources,Commercial Services,Transport,Vehicle Spares,345,11/04/2023,2304-00680,0.00,113.14,R,Alliance Automotive UK CV LTD,No
Http://opendatacommunities.org/id/metropolitan-district-council/leeds,Leeds City Council,30/04/2023,Resources,Commercial Services,Transport,Vehicle Spares,345,12/04/2023,2304-00681,0.00,78.21,R,Alliance Automotive UK CV LTD,No
Http://opendatacommunities.org/id/metropolitan-district-council/leeds,Leeds City Council,30/04/2023,Resources,Commercial Services,Transport,Vehicle Spares,345,12/04/2023,2304-00682,0.00,296.41,R,Alliance Automotive UK CV LTD,No
Http://opendatacommunities.org/id/metropolitan-district-council/leeds,Leeds City Council,30/04/2023,Resources,Commercial Services,Transport,Vehicle Spares,345,12/04/2023,2304-00683,0.00,25.30,R,Alliance Automotive UK CV LTD,No
Http://opendatacommunities.org/id/metropolitan-district-council/leeds,Leeds City Council,30/04/2023,Resources,Commercial Services,Transport,Vehicle Spares,345,12/04/2023,2304-00684,0.00,177.71,R,Alliance Automotive UK CV LTD,No
Http://opendatacommunities.org/id/metropolitan-district-council/leeds,Leeds City Council,30/04/2023,Resources,Commercial Services,Transport,Vehicle Spares,345,12/04/2023,2304-00685,0.00,8.65,R,Alliance Automotive UK CV LTD,No
Http://opendatacommunities.org/id/metropolitan-district-council/leeds,Leeds City Council,30/04/2023,Resources,Commercial Services,Transport,Vehicle Spares,345,12/04/2023,2304-00686,0.00,41.51,R,Alliance Automotive UK CV LTD,No
Http://opendatacommunities.org/id/metropolitan-district-council/leeds,Leeds City Council,30/04/2023,Resources,Commercial Services,Transport,Vehicle Spares,345,12/04/2023,2304-00687,0.00,814.53,R,Alliance Automotive UK CV LTD,No
Http://opendatacommunities.org/id/metropolitan-district-council/leeds,Leeds City Council,30/04/2023,Resources,Commercial Services,Transport,Vehicle Spares,345,12/04/2023,2304-00688,0.00,13.31,R,Alliance Automotive UK CV LTD,No
Http://opendatacommunities.org/id/metropolitan-district-council/leeds,Leeds City Council,30/04/2023,Resources,Commercial Services,Transport,Vehicle Spares,345,13/04/2023,2304-00689,0.00,186.45,R,Alliance Automotive UK CV LTD,No
Http://opendatacommunities.org/id/metropolitan-district-council/leeds,Leeds City Council,30/04/2023,Resources,Commercial Services,Transport,Vehicle Spares,345,14/04/2023,2304-00690,0.00,-20.91,R,Alliance Automotive UK CV LTD,No
Http://opendatacommunities.org/id/metropolitan-district-council/leeds,Leeds City Council,30/04/2023,Resources,Commercial Services,Transport,Vehicle Spares,345,14/04/2023,2304-00691,0.00,20.91,R,Alliance Automotive UK CV LTD,No
Http://opendatacommunities.org/id/metropolitan-district-council/leeds,Leeds City Council,30/04/2023,Resources,Commercial Services,Transport,Vehicle Spares,345,14/04/2023,2304-00692,0.00,14.84,R,Alliance Automotive UK CV LTD,No
Http://opendatacommunities.org/id/metropolitan-district-council/leeds,Leeds City Council,30/04/2023,Resources,Commercial Services,Transport,Vehicle Spares,345,14/04/2023,2304-00693,0.00,79.81,R,Alliance Automotive UK CV LTD,No
Http://opendatacommunities.org/id/metropolitan-district-council/leeds,Leeds City Council,30/04/2023,Resources,Commercial Services,Transport,Vehicle Spares,345,14/04/2023,2304-00694,0.00,74.34,R,Alliance Automotive UK CV LTD,No
Http://opendatacommunities.org/id/metropolitan-district-council/leeds,Leeds City Council,30/04/2023,Resources,Commercial Services,Transport,Vehicle Spares,345,14/04/2023,2304-00695,0.00,254.08,R,Alliance Automotive UK CV LTD,No
Http://opendatacommunities.org/id/metropolitan-district-council/leeds,Leeds City Council,30/04/2023,Resources,Commercial Services,Transport,Vehicle Spares,345,14/04/2023,2304-00696,0.00,30.35,R,Alliance Automotive UK CV LTD,No
Http://opendatacommunities.org/id/metropolitan-district-council/leeds,Leeds City Council,30/04/2023,Resources,Commercial Services,Transport,Vehicle Spares,345,14/04/2023,2304-00697,0.00,39.39,R,Alliance Automotive UK CV LTD,No
Http://opendatacommunities.org/id/metropolitan-district-council/leeds,Leeds City Council,30/04/2023,Resources,Commercial Services,Transport,Vehicle Spares,345,14/04/2023,2304-00698,0.00,209.06,R,Alliance Automotive UK CV LTD,No
Http://opendatacommunities.org/id/metropolitan-district-council/leeds,Leeds City Council,30/04/2023,Resources,Commercial Services,Transport,Vehicle Spares,345,14/04/2023,2304-00699,0.00,49.26,R,Alliance Automotive UK CV LTD,No
Http://opendatacommunities.org/id/metropolitan-district-council/leeds,Leeds City Council,30/04/2023,Resources,Commercial Services,Transport,Vehicle Spares,345,14/04/2023,2304-00700,0.00,16.83,R,Alliance Automotive UK CV LTD,No
Http://opendatacommunities.org/id/metropolitan-district-council/leeds,Leeds City Council,30/04/2023,Resources,Commercial Services,Transport,Vehicle Spares,345,14/04/2023,2304-00701,0.00,187.11,R,Alliance Automotive UK CV LTD,No
Http://opendatacommunities.org/id/metropolitan-district-council/leeds,Leeds City Council,30/04/2023,Resources,Commercial Services,Transport,Vehicle Spares,345,14/04/2023,2304-00702,0.00,7200.18,R,Alliance Automotive UK CV LTD,No
Http://opendatacommunities.org/id/metropolitan-district-council/leeds,Leeds City Council,30/04/2023,Resources,Commercial Services,Transport,Vehicle Spares,345,14/04/2023,2304-00703,0.00,7200.18,R,Alliance Automotive UK CV LTD,No
Http://opendatacommunities.org/id/metropolitan-district-council/leeds,Leeds City Council,30/04/2023,Resources,Commercial Services,Transport,Vehicle Spares,345,14/04/2023,2304-00704,0.00,326.07,R,Alliance Automotive UK CV LTD,No
Http://opendatacommunities.org/id/metropolitan-district-council/leeds,Leeds City Council,30/04/2023,Resources,Commercial Services,Transport,Vehicle Spares,345,14/04/2023,2304-00705,0.00,75.64,R,Alliance Automotive UK CV LTD,No
Http://opendatacommunities.org/id/metropolitan-district-council/leeds,Leeds City Council,30/04/2023,Resources,Commercial Services,Transport,Vehicle Spares,345,14/04/2023,2304-00706,0.00,219.01,R,Alliance Automotive UK CV LTD,No
Http://opendatacommunities.org/id/metropolitan-district-council/leeds,Leeds City Council,30/04/2023,Resources,Commercial Services,Transport,Vehicle Spares,345,14/04/2023,2304-00707,0.00,6.92,R,Alliance Automotive UK CV LTD,No
Http://opendatacommunities.org/id/metropolitan-district-council/leeds,Leeds City Council,30/04/2023,Resources,Commercial Services,Transport,Vehicle Spares,345,14/04/2023,2304-00708,0.00,116.82,R,Alliance Automotive UK CV LTD,No
Http://opendatacommunities.org/id/metropolitan-district-council/leeds,Leeds City Council,30/04/2023,Resources,Commercial Services,Transport,Vehicle Spares,345,14/04/2023,2304-00709,0.00,295.02,R,Alliance Automotive UK CV LTD,No
Http://opendatacommunities.org/id/metropolitan-district-council/leeds,Leeds City Council,30/04/2023,Resources,Commercial Services,Transport,Vehicle Spares,345,14/04/2023,2304-00710,0.00,292.05,R,Alliance Automotive UK CV LTD,No
Http://opendatacommunities.org/id/metropolitan-district-council/leeds,Leeds City Council,30/04/2023,Resources,Commercial Services,Transport,Vehicle Spares,345,14/04/2023,2304-00711,0.00,293.14,R,Alliance Automotive UK CV LTD,No
Http://opendatacommunities.org/id/metropolitan-district-council/leeds,Leeds City Council,30/04/2023,Resources,Commercial Services,Transport,Vehicle Spares,345,14/04/2023,2304-00712,0.00,176.52,R,Alliance Automotive UK CV LTD,No
Http://opendatacommunities.org/id/metropolitan-district-council/leeds,Leeds City Council,30/04/2023,Resources,Commercial Services,Transport,Vehicle Spares,345,14/04/2023,2304-00713,0.00,253.35,R,Alliance Automotive UK CV LTD,No
Http://opendatacommunities.org/id/metropolitan-district-council/leeds,Leeds City Council,30/04/2023,Resources,Commercial Services,Transport,Vehicle Spares,345,14/04/2023,2304-00714,0.00,149.00,R,Alliance Automotive UK CV LTD,No
Http://opendatacommunities.org/id/metropolitan-district-council/leeds,Leeds City Council,30/04/2023,Resources,Commercial Services,Transport,Vehicle Spares,345,14/04/2023,2304-00715,0.00,151.53,R,Alliance Automotive UK CV LTD,No
Http://opendatacommunities.org/id/metropolitan-district-council/leeds,Leeds City Council,30/04/2023,Resources,Commercial Services,Transport,Vehicle Spares,345,14/04/2023,2304-00716,0.00,75.17,R,Alliance Automotive UK CV LTD,No
Http://opendatacommunities.org/id/metropolitan-district-council/leeds,Leeds City Council,30/04/2023,Resources,Commercial Services,Transport,Vehicle Spares,345,14/04/2023,2304-00717,0.00,345.76,R,Alliance Automotive UK CV LTD,No
Http://opendatacommunities.org/id/metropolitan-district-council/leeds,Leeds City Council,30/04/2023,Resources,Commercial Services,Transport,Vehicle Spares,345,14/04/2023,2304-00718,0.00,244.70,R,Alliance Automotive UK CV LTD,No
Http://opendatacommunities.org/id/metropolitan-district-council/leeds,Leeds City Council,30/04/2023,Resources,Commercial Services,Transport,Vehicle Spares,345,14/04/2023,2304-00719,0.00,158.31,R,Alliance Automotive UK CV LTD,No
Http://opendatacommunities.org/id/metropolitan-district-council/leeds,Leeds City Council,30/04/2023,Resources,Commercial Services,Transport,Vehicle Spares,345,14/04/2023,2304-00720,0.00,411.10,R,Alliance Automotive UK CV LTD,No
Http://opendatacommunities.org/id/metropolitan-district-council/leeds,Leeds City Council,30/04/2023,Resources,Commercial Services,Transport,Vehicle Spares,345,14/04/2023,2304-00721,0.00,32.99,R,Alliance Automotive UK CV LTD,No
Http://opendatacommunities.org/id/metropolitan-district-council/leeds,Leeds City Council,30/04/2023,Resources,Commercial Services,Transport,Vehicle Spares,345,14/04/2023,2304-00722,0.00,138.98,R,Alliance Automotive UK CV LTD,No
Http://opendatacommunities.org/id/metropolitan-district-council/leeds,Leeds City Council,30/04/2023,Resources,Commercial Services,Transport,Vehicle Spares,345,14/04/2023,2304-00723,0.00,154.87,R,Alliance Automotive UK CV LTD,No
Http://opendatacommunities.org/id/metropolitan-district-council/leeds,Leeds City Council,30/04/2023,Resources,Commercial Services,Transport,Vehicle Spares,345,14/04/2023,2304-00724,0.00,277.20,R,Alliance Automotive UK CV LTD,No
Http://opendatacommunities.org/id/metropolitan-district-council/leeds,Leeds City Council,30/04/2023,Resources,Commercial Services,Transport,Vehicle Spares,345,14/04/2023,2304-00725,0.00,1189.23,R,Alliance Automotive UK CV LTD,No
Http://opendatacommunities.org/id/metropolitan-district-council/leeds,Leeds City Council,30/04/2023,Resources,Commercial Services,Transport,Vehicle Spares,345,14/04/2023,2304-00726,0.00,33.57,R,Alliance Automotive UK CV LTD,No
Http://opendatacommunities.org/id/metropolitan-district-council/leeds,Leeds City Council,30/04/2023,Resources,Commercial Services,Transport,Vehicle Spares,345,14/04/2023,2304-00727,0.00,21.79,R,Alliance Automotive UK CV LTD,No
Http://opendatacommunities.org/id/metropolitan-district-council/leeds,Leeds City Council,30/04/2023,Resources,Commercial Services,Transport,Vehicle Spares,345,17/04/2023,2304-00728,0.00,363.77,R,Alliance Automotive UK CV LTD,No
Http://opendatacommunities.org/id/metropolitan-district-council/leeds,Leeds City Council,30/04/2023,Resources,Commercial Services,Transport,Vehicle Spares,345,17/04/2023,2304-00729,0.00,34.87,R,Alliance Automotive UK CV LTD,No
Http://opendatacommunities.org/id/metropolitan-district-council/leeds,Leeds City Council,30/04/2023,Resources,Commercial Services,Transport,Vehicle Spares,345,18/04/2023,2304-00730,0.00,297.05,R,Alliance Automotive UK CV LTD,No
Http://opendatacommunities.org/id/metropolitan-district-council/leeds,Leeds City Council,30/04/2023,Resources,Commercial Services,Transport,Vehicle Spares,345,21/04/2023,2304-00731,0.00,-8.16,R,Alliance Automotive UK CV LTD,No
Http://opendatacommunities.org/id/metropolitan-district-council/leeds,Leeds City Council,30/04/2023,Resources,Commercial Services,Transport,Vehicle Spares,345,21/04/2023,2304-00732,0.00,-197.37,R,Alliance Automotive UK CV LTD,No
Http://opendatacommunities.org/id/metropolitan-district-council/leeds,Leeds City Council,30/04/2023,Resources,Commercial Services,Transport,Vehicle Spares,345,21/04/2023,2304-00733,0.00,69.74,R,Alliance Automotive UK CV LTD,No
Http://opendatacommunities.org/id/metropolitan-district-council/leeds,Leeds City Council,30/04/2023,Resources,Commercial Services,Transport,Vehicle Spares,345,21/04/2023,2304-00734,0.00,622.66,R,Alliance Automotive UK CV LTD,No
Http://opendatacommunities.org/id/metropolitan-district-council/leeds,Leeds City Council,30/04/2023,Resources,Commercial Services,Transport,Vehicle Spares,345,21/04/2023,2304-00735,0.00,103.26,R,Alliance Automotive UK CV LTD,No
Http://opendatacommunities.org/id/metropolitan-district-council/leeds,Leeds City Council,30/04/2023,Resources,Commercial Services,Transport,Vehicle Spares,345,21/04/2023,2304-00736,0.00,128.63,R,Alliance Automotive UK CV LTD,No
Http://opendatacommunities.org/id/metropolitan-district-council/leeds,Leeds City Council,30/04/2023,Resources,Commercial Services,Transport,Vehicle Spares,345,21/04/2023,2304-00737,0.00,53.20,R,Alliance Automotive UK CV LTD,No
Http://opendatacommunities.org/id/metropolitan-district-council/leeds,Leeds City Council,30/04/2023,Resources,Commercial Services,Transport,Vehicle Spares,345,21/04/2023,2304-00738,0.00,422.77,R,Alliance Automotive UK CV LTD,No
Http://opendatacommunities.org/id/metropolitan-district-council/leeds,Leeds City Council,30/04/2023,Resources,Commercial Services,Transport,Vehicle Spares,345,21/04/2023,2304-00739,0.00,71.68,R,Alliance Automotive UK CV LTD,No
Http://opendatacommunities.org/id/metropolitan-district-council/leeds,Leeds City Council,30/04/2023,Resources,Commercial Services,Transport,Vehicle Spares,345,21/04/2023,2304-00740,0.00,14.85,R,Alliance Automotive UK CV LTD,No
Http://opendatacommunities.org/id/metropolitan-district-council/leeds,Leeds City Council,30/04/2023,Resources,Commercial Services,Transport,Vehicle Spares,345,21/04/2023,2304-00741,0.00,205.43,R,Alliance Automotive UK CV LTD,No
Http://opendatacommunities.org/id/metropolitan-district-council/leeds,Leeds City Council,30/04/2023,Resources,Commercial Services,Transport,Vehicle Spares,345,21/04/2023,2304-00742,0.00,122.73,R,Alliance Automotive UK CV LTD,No
Http://opendatacommunities.org/id/metropolitan-district-council/leeds,Leeds City Council,30/04/2023,Resources,Commercial Services,Transport,Vehicle Spares,345,21/04/2023,2304-00743,0.00,30.69,R,Alliance Automotive UK CV LTD,No
Http://opendatacommunities.org/id/metropolitan-district-council/leeds,Leeds City Council,30/04/2023,Resources,Commercial Services,Transport,Vehicle Spares,345,21/04/2023,2304-00744,0.00,914.57,R,Alliance Automotive UK CV LTD,No
Http://opendatacommunities.org/id/metropolitan-district-council/leeds,Leeds City Council,30/04/2023,Resources,Commercial Services,Transport,Vehicle Spares,345,21/04/2023,2304-00745,0.00,524.88,R,Alliance Automotive UK CV LTD,No
Http://opendatacommunities.org/id/metropolitan-district-council/leeds,Leeds City Council,30/04/2023,Resources,Commercial Services,Transport,Vehicle Spares,345,21/04/2023,2304-00746,0.00,749.83,R,Alliance Automotive UK CV LTD,No
Http://opendatacommunities.org/id/metropolitan-district-council/leeds,Leeds City Council,30/04/2023,Resources,Commercial Services,Transport,Vehicle Spares,345,21/04/2023,2304-00747,0.00,519.64,R,Alliance Automotive UK CV LTD,No
Http://opendatacommunities.org/id/metropolitan-district-council/leeds,Leeds City Council,30/04/2023,Resources,Commercial Services,Transport,Vehicle Spares,345,21/04/2023,2304-00748,0.00,226.75,R,Alliance Automotive UK CV LTD,No
Http://opendatacommunities.org/id/metropolitan-district-council/leeds,Leeds City Council,30/04/2023,Resources,Commercial Services,Transport,Vehicle Spares,345,21/04/2023,2304-00749,0.00,66.29,R,Alliance Automotive UK CV LTD,No
Http://opendatacommunities.org/id/metropolitan-district-council/leeds,Leeds City Council,30/04/2023,Resources,Commercial Services,Transport,Vehicle Spares,345,21/04/2023,2304-00750,0.00,18.57,R,Alliance Automotive UK CV LTD,No
Http://opendatacommunities.org/id/metropolitan-district-council/leeds,Leeds City Council,30/04/2023,Resources,Commercial Services,Transport,Vehicle Spares,345,21/04/2023,2304-00751,0.00,435.60,R,Alliance Automotive UK CV LTD,No
Http://opendatacommunities.org/id/metropolitan-district-council/leeds,Leeds City Council,30/04/2023,Resources,Commercial Services,Transport,Vehicle Spares,345,21/04/2023,2304-00752,0.00,168.08,R,Alliance Automotive UK CV LTD,No
Http://opendatacommunities.org/id/metropolitan-district-council/leeds,Leeds City Council,30/04/2023,Resources,Commercial Services,Transport,Vehicle Spares,345,21/04/2023,2304-00753,0.00,46.51,R,Alliance Automotive UK CV LTD,No
Http://opendatacommunities.org/id/metropolitan-district-council/leeds,Leeds City Council,30/04/2023,Resources,Commercial Services,Transport,Vehicle Spares,345,21/04/2023,2304-00754,0.00,6.92,R,Alliance Automotive UK CV LTD,No
Http://opendatacommunities.org/id/metropolitan-district-council/leeds,Leeds City Council,30/04/2023,Resources,Commercial Services,Transport,Vehicle Spares,345,21/04/2023,2304-00755,0.00,6.92,R,Alliance Automotive UK CV LTD,No
Http://opendatacommunities.org/id/metropolitan-district-council/leeds,Leeds City Council,30/04/2023,Resources,Commercial Services,Transport,Vehicle Spares,345,21/04/2023,2304-00756,0.00,6.92,R,Alliance Automotive UK CV LTD,No
Http://opendatacommunities.org/id/metropolitan-district-council/leeds,Leeds City Council,30/04/2023,Resources,Commercial Services,Transport,Vehicle Spares,345,21/04/2023,2304-00757,0.00,6.92,R,Alliance Automotive UK CV LTD,No
Http://opendatacommunities.org/id/metropolitan-district-council/leeds,Leeds City Council,30/04/2023,Resources,Commercial Services,Transport,Vehicle Spares,345,21/04/2023,2304-00758,0.00,6.92,R,Alliance Automotive UK CV LTD,No
Http://opendatacommunities.org/id/metropolitan-district-council/leeds,Leeds City Council,30/04/2023,Resources,Commercial Services,Transport,Vehicle Spares,345,21/04/2023,2304-00759,0.00,51.73,R,Alliance Automotive UK CV LTD,No
Http://opendatacommunities.org/id/metropolitan-district-council/leeds,Leeds City Council,30/04/2023,Resources,Commercial Services,Transport,Vehicle Spares,345,21/04/2023,2304-00760,0.00,10.35,R,Alliance Automotive UK CV LTD,No
Http://opendatacommunities.org/id/metropolitan-district-council/leeds,Leeds City Council,30/04/2023,Resources,Commercial Services,Transport,Vehicle Spares,345,21/04/2023,2304-00761,0.00,1100.87,R,Alliance Automotive UK CV LTD,No
Http://opendatacommunities.org/id/metropolitan-district-council/leeds,Leeds City Council,30/04/2023,Resources,Commercial Services,Transport,Vehicle Spares,345,21/04/2023,2304-00762,0.00,62.03,R,Alliance Automotive UK CV LTD,No
Http://opendatacommunities.org/id/metropolitan-district-council/leeds,Leeds City Council,30/04/2023,Resources,Commercial Services,Transport,Vehicle Spares,345,21/04/2023,2304-00763,0.00,51.72,R,Alliance Automotive UK CV LTD,No
Http://opendatacommunities.org/id/metropolitan-district-council/leeds,Leeds City Council,30/04/2023,Resources,Commercial Services,Transport,Vehicle Spares,345,21/04/2023,2304-00764,0.00,6.92,R,Alliance Automotive UK CV LTD,No
Http://opendatacommunities.org/id/metropolitan-district-council/leeds,Leeds City Council,30/04/2023,Resources,Commercial Services,Transport,Vehicle Spares,345,21/04/2023,2304-00765,0.00,6.92,R,Alliance Automotive UK CV LTD,No
Http://opendatacommunities.org/id/metropolitan-district-council/leeds,Leeds City Council,30/04/2023,Resources,Commercial Services,Transport,Vehicle Spares,345,21/04/2023,2304-00766,0.00,6.92,R,Alliance Automotive UK CV LTD,No
Http://opendatacommunities.org/id/metropolitan-district-council/leeds,Leeds City Council,30/04/2023,Resources,Commercial Services,Transport,Vehicle Spares,345,21/04/2023,2304-00767,0.00,482.04,R,Alliance Automotive UK CV LTD,No
Http://opendatacommunities.org/id/metropolitan-district-council/leeds,Leeds City Council,30/04/2023,Resources,Commercial Services,Transport,Vehicle Spares,345,21/04/2023,2304-00768,0.00,1176.12,R,Alliance Automotive UK CV LTD,No
Http://opendatacommunities.org/id/metropolitan-district-council/leeds,Leeds City Council,30/04/2023,Resources,Commercial Services,Transport,Vehicle Spares,345,21/04/2023,2304-00769,0.00,232.65,R,Alliance Automotive UK CV LTD,No
Http://opendatacommunities.org/id/metropolitan-district-council/leeds,Leeds City Council,30/04/2023,Resources,Commercial Services,Transport,Vehicle Spares,345,21/04/2023,2304-00770,0.00,880.95,R,Alliance Automotive UK CV LTD,No
Http://opendatacommunities.org/id/metropolitan-district-council/leeds,Leeds City Council,30/04/2023,Resources,Commercial Services,Transport,Vehicle Spares,345,27/04/2023,2304-00771,0.00,1033.38,R,Alliance Automotive UK CV LTD,No
Http://opendatacommunities.org/id/metropolitan-district-council/leeds,Leeds City Council,30/04/2023,Resources,Commercial Services,Transport,Vehicle Spares,345,27/04/2023,2304-00772,0.00,199.11,R,Alliance Automotive UK CV LTD,No
Http://opendatacommunities.org/id/metropolitan-district-council/leeds,Leeds City Council,30/04/2023,Resources,Commercial Services,Transport,Vehicle Spares,345,27/04/2023,2304-00773,0.00,227.70,R,Alliance Automotive UK CV LTD,No
Http://opendatacommunities.org/id/metropolitan-district-council/leeds,Leeds City Council,30/04/2023,Resources,Commercial Services,Transport,Vehicle Spares,345,27/04/2023,2304-00774,0.00,132.23,R,Alliance Automotive UK CV LTD,No
Http://opendatacommunities.org/id/metropolitan-district-council/leeds,Leeds City Council,30/04/2023,Resources,Commercial Services,Transport,Vehicle Spares,345,27/04/2023,2304-00775,0.00,252.45,R,Alliance Automotive UK CV LTD,No
Http://opendatacommunities.org/id/metropolitan-district-council/leeds,Leeds City Council,30/04/2023,Resources,Commercial Services,Transport,Vehicle Spares,345,27/04/2023,2304-00776,0.00,368.01,R,Alliance Automotive UK CV LTD,No
Http://opendatacommunities.org/id/metropolitan-district-council/leeds,Leeds City Council,30/04/2023,Resources,Commercial Services,Transport,Vehicle Spares,345,27/04/2023,2304-00777,0.00,17.41,R,Alliance Automotive UK CV LTD,No
Http://opendatacommunities.org/id/metropolitan-district-council/leeds,Leeds City Council,30/04/2023,Resources,Commercial Services,Transport,Vehicle Spares,345,27/04/2023,2304-00778,0.00,298.73,R,Alliance Automotive UK CV LTD,No
Http://opendatacommunities.org/id/metropolitan-district-council/leeds,Leeds City Council,30/04/2023,Resources,Commercial Services,Transport,Vehicle Spares,345,27/04/2023,2304-00779,0.00,171.43,R,Alliance Automotive UK CV LTD,No
Http://opendatacommunities.org/id/metropolitan-district-council/leeds,Leeds City Council,30/04/2023,Resources,Commercial Services,Transport,Vehicle Spares,345,27/04/2023,2304-00780,0.00,690.75,R,Alliance Automotive UK CV LTD,No
Http://opendatacommunities.org/id/metropolitan-district-council/leeds,Leeds City Council,30/04/2023,Resources,Commercial Services,Transport,Vehicle Spares,345,27/04/2023,2304-00781,0.00,630.63,R,Alliance Automotive UK CV LTD,No
Http://opendatacommunities.org/id/metropolitan-district-council/leeds,Leeds City Council,30/04/2023,Resources,Commercial Services,Transport,Vehicle Spares,345,27/04/2023,2304-00782,0.00,168.08,R,Alliance Automotive UK CV LTD,No
Http://opendatacommunities.org/id/metropolitan-district-council/leeds,Leeds City Council,30/04/2023,Resources,Commercial Services,Transport,Vehicle Spares,345,27/04/2023,2304-00783,0.00,336.15,R,Alliance Automotive UK CV LTD,No
Http://opendatacommunities.org/id/metropolitan-district-council/leeds,Leeds City Council,30/04/2023,Resources,Commercial Services,Transport,Vehicle Spares,345,27/04/2023,2304-00784,0.00,101.46,R,Alliance Automotive UK CV LTD,No
Http://opendatacommunities.org/id/metropolitan-district-council/leeds,Leeds City Council,30/04/2023,Resources,Commercial Services,Transport,Vehicle Spares,345,27/04/2023,2304-00785,0.00,374.22,R,Alliance Automotive UK CV LTD,No
Http://opendatacommunities.org/id/metropolitan-district-council/leeds,Leeds City Council,30/04/2023,Resources,Commercial Services,Transport,Vehicle Spares,345,27/04/2023,2304-00786,0.00,26.58,R,Alliance Automotive UK CV LTD,No
Http://opendatacommunities.org/id/metropolitan-district-council/leeds,Leeds City Council,30/04/2023,Resources,Commercial Services,Transport,Vehicle Spares,345,27/04/2023,2304-00787,0.00,194.95,R,Alliance Automotive UK CV LTD,No
Http://opendatacommunities.org/id/metropolitan-district-council/leeds,Leeds City Council,30/04/2023,Resources,Commercial Services,Transport,Vehicle Spares,345,27/04/2023,2304-00788,0.00,118.69,R,Alliance Automotive UK CV LTD,No
Http://opendatacommunities.org/id/metropolitan-district-council/leeds,Leeds City Council,30/04/2023,Resources,Commercial Services,Transport,Vehicle Spares,345,27/04/2023,2304-00789,0.00,44.72,R,Alliance Automotive UK CV LTD,No
Http://opendatacommunities.org/id/metropolitan-district-council/leeds,Leeds City Council,30/04/2023,Resources,Commercial Services,Transport,Vehicle Spares,345,27/04/2023,2304-00790,0.00,38.81,R,Alliance Automotive UK CV LTD,No
Http://opendatacommunities.org/id/metropolitan-district-council/leeds,Leeds City Council,30/04/2023,Resources,Commercial Services,Transport,Vehicle Spares,345,27/04/2023,2304-00791,0.00,87.91,R,Alliance Automotive UK CV LTD,No
Http://opendatacommunities.org/id/metropolitan-district-council/leeds,Leeds City Council,30/04/2023,Resources,Commercial Services,Transport,Vehicle Spares,345,27/04/2023,2304-00792,0.00,1038.40,R,Alliance Automotive UK CV LTD,No
Http://opendatacommunities.org/id/metropolitan-district-council/leeds,Leeds City Council,30/04/2023,Resources,Commercial Services,Transport,Vehicle Spares,345,28/04/2023,2304-00793,0.00,-49.51,R,Alliance Automotive UK CV LTD,No
Http://opendatacommunities.org/id/metropolitan-district-council/leeds,Leeds City Council,30/04/2023,Resources,Commercial Services,Transport,Vehicle Spares,345,28/04/2023,2304-00794,0.00,-1026.14,R,Alliance Automotive UK CV LTD,No
Http://opendatacommunities.org/id/metropolitan-district-council/leeds,Leeds City Council,30/04/2023,Resources,Commercial Services,Transport,Vehicle Spares,345,28/04/2023,2304-00795,0.00,10.87,R,Alliance Automotive UK CV LTD,No
Http://opendatacommunities.org/id/metropolitan-district-council/leeds,Leeds City Council,30/04/2023,Resources,Commercial Services,Transport,Vehicle Spares,345,28/04/2023,2304-00796,0.00,418.15,R,Alliance Automotive UK CV LTD,No
Http://opendatacommunities.org/id/metropolitan-district-council/leeds,Leeds City Council,30/04/2023,Resources,Commercial Services,Transport,Vehicle Spares,345,28/04/2023,2304-00797,0.00,154.08,R,Alliance Automotive UK CV LTD,No
Http://opendatacommunities.org/id/metropolitan-district-council/leeds,Leeds City Council,30/04/2023,Resources,Commercial Services,Transport,Vehicle Spares,345,28/04/2023,2304-00798,0.00,443.52,R,Alliance Automotive UK CV LTD,No
Http://opendatacommunities.org/id/metropolitan-district-council/leeds,Leeds City Council,30/04/2023,Resources,Commercial Services,Transport,Vehicle Spares,345,28/04/2023,2304-00799,0.00,1026.14,R,Alliance Automotive UK CV LTD,No
Http://opendatacommunities.org/id/metropolitan-district-council/leeds,Leeds City Council,30/04/2023,Resources,Commercial Services,Transport,Vehicle Spares,345,28/04/2023,2304-00800,0.00,227.33,R,Alliance Automotive UK CV LTD,No
Http://opendatacommunities.org/id/metropolitan-district-council/leeds,Leeds City Council,30/04/2023,Resources,Commercial Services,Transport,Vehicle Spares,345,28/04/2023,2304-00801,0.00,40.34,R,Alliance Automotive UK CV LTD,No
Http://opendatacommunities.org/id/metropolitan-district-council/leeds,Leeds City Council,30/04/2023,Resources,Commercial Services,Transport,Vehicle Spares,345,28/04/2023,2304-00802,0.00,5.11,R,Alliance Automotive UK CV LTD,No
Http://opendatacommunities.org/id/metropolitan-district-council/leeds,Leeds City Council,30/04/2023,Resources,Commercial Services,Transport,Vehicle Spares,345,28/04/2023,2304-00803,0.00,306.81,R,Alliance Automotive UK CV LTD,No
Http://opendatacommunities.org/id/metropolitan-district-council/leeds,Leeds City Council,30/04/2023,Resources,Commercial Services,Transport,Vehicle Spares,345,28/04/2023,2304-00804,0.00,183.36,R,Alliance Automotive UK CV LTD,No
Http://opendatacommunities.org/id/metropolitan-district-council/leeds,Leeds City Council,30/04/2023,Resources,Commercial Services,Transport,Vehicle Spares,345,28/04/2023,2304-00805,0.00,176.29,R,Alliance Automotive UK CV LTD,No
Http://opendatacommunities.org/id/metropolitan-district-council/leeds,Leeds City Council,30/04/2023,Resources,Commercial Services,Transport,Vehicle Spares,345,28/04/2023,2304-00806,0.00,339.04,R,Alliance Automotive UK CV LTD,No
Http://opendatacommunities.org/id/metropolitan-district-council/leeds,Leeds City Council,30/04/2023,Resources,Commercial Services,Transport,Vehicle Spares,345,28/04/2023,2304-00807,0.00,130.39,R,Alliance Automotive UK CV LTD,No
Http://opendatacommunities.org/id/metropolitan-district-council/leeds,Leeds City Council,30/04/2023,Resources,Commercial Services,Transport,Vehicle Spares,345,28/04/2023,2304-00808,0.00,192.20,R,Alliance Automotive UK CV LTD,No
